Organisation Name,Effective Date,Purch Date,Service Area,Expense Area,Beneficiary,Net amount,    Tax,     Gross,G/L Acct Long Text,MCC Description
Buckinghamshire Council ,30.06.2023,30.06.2023,Deputy Chief Executive,AH&R- DCE Dir,PAYPAL,510.83,102.17,613,Miscellaneous (Other)  Expenses,Electronics shops
Buckinghamshire Council ,30.06.2023,30.06.2023,Deputy Chief Executive,AH&R- DCE Dir,PAYPAL,-95,0,-95,Miscellaneous (Other)  Expenses,Variety stores
Buckinghamshire Council ,30.06.2023,30.06.2023,Communities,Culture & Leisure - Communities Dir,WWW.MAGIBOARDS.COM,89.26,0,89.26,Stationery & Office Supplies,Stationery & office supplies stores
Buckinghamshire Council ,30.06.2023,30.06.2023,Communities,Culture & Leisure - Communities Dir,CJ'S LOCKSMITHS,4.95,0,4.95,Administrative Equipment & Tools,Misc. repair services
Buckinghamshire Council ,30.06.2023,30.06.2023,Children's Services,Education & Childrens Services - CS Dir,HM PASSPORT OFFICE,53.5,0,53.5,Sec 20/31: Specialist Services,Government services
Buckinghamshire Council ,30.06.2023,30.06.2023,Children's Services,Education & Childrens Services - CS Dir,THE WORKS,52.5,0,52.5,Awaiting Coding,Discount stores
Buckinghamshire Council ,30.06.2023,30.06.2023,Children's Services,Education & Childrens Services - CS Dir,ARGOS  AYLESBURY GATEHOU,22.99,0,22.99,Awaiting Coding,Discount stores
Buckinghamshire Council ,30.06.2023,30.06.2023,Children's Services,Education & Childrens Services - CS Dir,PREMIER INN,79.33,15.87,95.2,"Courses, Conference and Seminar Fees",Premier Inn
Buckinghamshire Council ,30.06.2023,30.06.2023,Children's Services,Education & Childrens Services - CS Dir,TRAVELODGE GB0000,192.74,0,192.74,"Courses, Conference and Seminar Fees",Travelodge
Buckinghamshire Council ,30.06.2023,30.06.2023,Resources,AH&R - Res Dir,PARK ROYAL HOTEL OPERATOR,733.97,0,733.97,Sec 17: Accommodation,
Buckinghamshire Council ,30.06.2023,30.06.2023,Resources,AH&R - Res Dir,PARK ROYAL HOTEL OPERATOR,733.98,0,733.98,Sec 17: Accommodation,
Buckinghamshire Council ,30.06.2023,30.06.2023,Deputy Chief Executive,Communities - DCE,WWW.ARGOS.CO.UK,50.79,10.16,60.95,Other Personal Needs,Department stores
Buckinghamshire Council ,30.06.2023,30.06.2023,Deputy Chief Executive,Communities - DCE,AO RETAIL LIMITED,947.49,189.51,"1,137.00",Other Personal Needs,Household appliance stores
Buckinghamshire Council ,30.06.2023,30.06.2023,Deputy Chief Executive,Communities - DCE,AO RETAIL LIMITED,-9,0,-9,Other Personal Needs,Household appliance stores
Buckinghamshire Council ,30.06.2023,30.06.2023,Children's Services,Education & Childrens Services - CS Dir,TESCO GIFT CARD,20,0,20,Sec 17: Financial Assistance One Off,Grocery stores
Buckinghamshire Council ,30.06.2023,30.06.2023,"Planning, Growth & Sustainability",Housing & Homelessness & Regulatory PGS,AMZNMKTPLACE,22.77,0,22.77,Other General Office Expenses,Miscellaneous retail
Buckinghamshire Council ,30.06.2023,30.06.2023,Communities,Culture & Leisure - Communities Dir,AMZNMKTPLACE,2,0.4,2.4,Administrative Equipment & Tools,Miscellaneous retail
Buckinghamshire Council ,30.06.2023,30.06.2023,Communities,Culture & Leisure - Communities Dir,AMZNMKTPLACE,0.02,0,0.02,Administrative Equipment & Tools,Miscellaneous retail
Buckinghamshire Council ,30.06.2023,30.06.2023,Children's Services,Education & Childrens Services - CS Dir,TAXIPAY,120,0,120,Staff Travelling Expenses,Taxicabs & limousines
Buckinghamshire Council ,30.06.2023,30.06.2023,Communities,Culture & Leisure - Communities Dir,WWW.SCREWFIX.COM,18.73,3.75,22.48,"Workshop - Materials,Tools & Equipment",Timber & building supplies
Buckinghamshire Council ,30.06.2023,30.06.2023,Communities,artnerships - Communities,GREGGS PLC,4.4,0,4.4,Subsistence,Restaurants
Buckinghamshire Council ,30.06.2023,30.06.2023,Communities,artnerships - Communities,COSTA NEWTON LEYS C316,23.35,0,23.35,Subsistence,Fast food restaurants
Buckinghamshire Council ,30.06.2023,30.06.2023,Communities,Housing & Homelessness & Regulatory Comm,BP CHALFONTS WAY S/STN,32.23,0,32.23,Maintenance of Grounds,Service stations
Buckinghamshire Council ,30.06.2023,30.06.2023,Communities,Housing & Homelessness & Regulatory Comm,WWW.GOPAK.CO.UK,273.72,0,273.72,Awaiting Coding,Furniture & home furnishing
Buckinghamshire Council ,30.06.2023,30.06.2023,"Planning, Growth & Sustainability",AH&R - PGS Dir,TOOLSTATION LTD,51.65,0,51.65,General Repairs & Maintenance,Timber & building supplies
Buckinghamshire Council ,30.06.2023,30.06.2023,"Planning, Growth & Sustainability",AH&R - PGS Dir,TOOLSTATION LTD,35.99,0,35.99,General Repairs & Maintenance,Timber & building supplies
Buckinghamshire Council ,30.06.2023,30.06.2023,Children's Services,Education & Childrens Services - CS Dir,APCOA PARKING UK,7.25,1.45,8.7,Staff Travelling Expenses,Car parking & garages
Buckinghamshire Council ,30.06.2023,30.06.2023,Children's Services,Education & Childrens Services - CS Dir,AMZNMKTPLACE,2.75,0,2.75,Miscellaneous (Other)  Expenses,Miscellaneous retail
Buckinghamshire Council ,30.06.2023,30.06.2023,Children's Services,Education & Childrens Services - CS Dir,WWW.ARGOS.CO.UK,119,0,119,YOS - Direct Work,Department stores
Buckinghamshire Council ,30.06.2023,30.06.2023,Deputy Chief Executive,AH&R- DCE Dir,AMAZON.CO.UK,62.13,0,62.13,Other Personal Needs,Direct sales companies
Buckinghamshire Council ,30.06.2023,30.06.2023,Children's Services,Education & Childrens Services - CS Dir,AMAZON.CO.UK,14.25,0,14.25,Stationery & Office Supplies,Direct sales companies
Buckinghamshire Council ,30.06.2023,30.06.2023,Communities,Culture & Leisure - Communities Dir,AMZNMktplace,26.72,0,26.72,Awaiting Coding,Miscellaneous retail
Buckinghamshire Council ,30.06.2023,30.06.2023,Adults and Health,Health & Wellbeing - Adults & Health Dir,TESCO STORES 5927,8.05,0,8.05,Awaiting Coding,Grocery stores
Buckinghamshire Council ,30.06.2023,30.06.2023,Children's Services,Education & Childrens Services - CS Dir,AMAZON.CO.UK,32.96,0,32.96,"Books, Records, Films & Oth Publications",Direct sales companies
Buckinghamshire Council ,30.06.2023,30.06.2023,Children's Services,Education & Childrens Services - CS Dir,NEALES TAXIS LTD,83.3,16.66,99.96,Staff Travelling Expenses,Taxicabs & limousines
Buckinghamshire Council ,30.06.2023,30.06.2023,Children's Services,Education & Childrens Services - CS Dir,NEALES TAXIS LTD,0.04,0,0.04,Staff Travelling Expenses,Taxicabs & limousines
Buckinghamshire Council ,30.06.2023,30.06.2023,Children's Services,Education & Childrens Services - CS Dir,NEALES TAXIS LTD,500,0,500,Sec 20/31: Financial Assistance One Off,Taxicabs & limousines
Buckinghamshire Council ,30.06.2023,30.06.2023,Children's Services,Education & Childrens Services - CS Dir,NEALES TAXIS LTD,500,0,500,Sec 20/31: Financial Assistance One Off,Taxicabs & limousines
Buckinghamshire Council ,30.06.2023,30.06.2023,Children's Services,Education & Childrens Services - CS Dir,NEALES TAXIS LTD,80,0,80,Sec 20/31: Financial Assistance One Off,Taxicabs & limousines
Buckinghamshire Council ,30.06.2023,30.06.2023,Communities,Culture & Leisure - Communities Dir,WWW.LESAR.CO.UK,215,0,258,Computer Consumables,Computer software stores
Buckinghamshire Council ,30.06.2023,30.06.2023,"Planning, Growth & Sustainability",AH&R - PGS Dir,WILKO RETAIL LIMITED,11.65,2.33,13.98,General Repairs & Maintenance,Misc. general merchandise
Buckinghamshire Council ,30.06.2023,30.06.2023,"Planning, Growth & Sustainability",AH&R - PGS Dir,WILKO RETAIL LIMITED,0.02,0,0.02,General Repairs & Maintenance,Misc. general merchandise
Buckinghamshire Council ,30.06.2023,30.06.2023,Deputy Chief Executive,Leader - DCE,FACEBK 9F9FRRPPN2,265.21,0,265.21,Advertising,Advertising services
Buckinghamshire Council ,30.06.2023,30.06.2023,Children's Services,Education & Childrens Services - CS Dir,ST JOHN AMBULANCE,360,0,360,Awaiting Coding,Charitable organisations
Buckinghamshire Council ,30.06.2023,30.06.2023,CC Obsolete Cost Centres,Obsolete Cost Centres,AMZNMktplace,25.95,0,25.95,Awaiting Coding,Miscellaneous retail
Buckinghamshire Council ,30.06.2023,30.06.2023,Children's Services,Education & Childrens Services - CS Dir,BUCKINGHAMSHIRE CNCL,11,0,11,Sec 20/31: Specialist Services,Government services
Buckinghamshire Council ,30.06.2023,30.06.2023,Children's Services,Education & Childrens Services - CS Dir,BUCKINGHAMSHIRE CNCL,33,0,33,Sec 20/31: Specialist Services,Government services
Buckinghamshire Council ,30.06.2023,30.06.2023,"Planning, Growth & Sustainability",Planning & Regeneration - PGS,TFL TRAVEL CH,8.1,0,8.1,Staff Travelling Expenses,Local commuter transport
Buckinghamshire Council ,30.06.2023,30.06.2023,"Planning, Growth & Sustainability",Planning & Regeneration - PGS,TRAINLINE,33,0,33,Staff Travelling Expenses,Passenger railways
Buckinghamshire Council ,30.06.2023,30.06.2023,Resources,AH&R - Res Dir,FACEBK K3LB4PTG82,57.09,0,57.09,Permanent Recruitment Costs,Advertising services
Buckinghamshire Council ,30.06.2023,30.06.2023,Children's Services,Education & Childrens Services - CS Dir,Park Royal Hotel Operator,576.21,0,576.21,Awaiting Coding,
Buckinghamshire Council ,30.06.2023,30.06.2023,Children's Services,Education & Childrens Services - CS Dir,"FTC MILTON KEYNES, GB133",6,0,6,Awaiting Coding,"Hobby, toy & game shops"
Buckinghamshire Council ,30.06.2023,30.06.2023,Adults and Health,Health & Wellbeing - Adults & Health Dir,NEALES TAXIS LTD,960,0,960,Staff Travelling Expenses,Taxicabs & limousines
Buckinghamshire Council ,30.06.2023,30.06.2023,Adults and Health,Health & Wellbeing - Adults & Health Dir,AMZNMKTPLACE,13.9,0,13.9,Health & Safety Supplies & Services,Miscellaneous retail
Buckinghamshire Council ,30.06.2023,30.06.2023,Adults and Health,Health & Wellbeing - Adults & Health Dir,AMZNMKTPLACE,41.97,0,41.97,Other Personal Needs,Miscellaneous retail
Buckinghamshire Council ,30.06.2023,30.06.2023,Children's Services,Education & Childrens Services - CS Dir,UK CARS (HIGH WYCOMBE) LT,"1,000.00",200,"1,200.00",Sec 20/31: Transport,Taxicabs & limousines
Buckinghamshire Council ,30.06.2023,30.06.2023,Children's Services,Education & Childrens Services - CS Dir,AMAZON.CO.UK,99.99,0,99.99,Stationery & Office Supplies,Direct sales companies
Buckinghamshire Council ,30.06.2023,30.06.2023,Resources,AH&R - Res Dir,SECURITYSAFETYPRODUCTS,115.38,0,115.38,Awaiting Coding,Detective & security services
Buckinghamshire Council ,30.06.2023,30.06.2023,Children's Services,Education & Childrens Services - CS Dir,AMZNMKTPLACE,8.99,0,8.99,General Repairs & Maintenance,Miscellaneous retail
Buckinghamshire Council ,30.06.2023,30.06.2023,Children's Services,Education & Childrens Services - CS Dir,AMAZON.CO.UK,32.96,0,32.96,"Books, Records, Films & Oth Publications",Direct sales companies
Buckinghamshire Council ,30.06.2023,30.06.2023,Children's Services,Education & Childrens Services - CS Dir,AMZNMktplace,4.79,0,4.79,Awaiting Coding,Miscellaneous retail
Buckinghamshire Council ,30.06.2023,29.06.2023,Children's Services,Education & Childrens Services - CS Dir,AMZNMKTPLACE,14.99,0,14.99,Stationery & Office Supplies,Miscellaneous retail
Buckinghamshire Council ,30.06.2023,29.06.2023,Children's Services,Education & Childrens Services - CS Dir,AMZNMKTPLACE,49.97,0,49.97,IT Equipment Purchase,Miscellaneous retail
Buckinghamshire Council ,30.06.2023,29.06.2023,Communities,Culture & Leisure - Communities Dir,AMZNMKTPLACE,41.97,0,41.97,Administrative Equipment & Tools,Miscellaneous retail
Buckinghamshire Council ,30.06.2023,29.06.2023,Children's Services,Education & Childrens Services - CS Dir,AMZNMKTPLACE,8.99,0,8.99,Health & Safety Supplies & Services,Miscellaneous retail
Buckinghamshire Council ,30.06.2023,29.06.2023,Deputy Chief Executive,AH&R- DCE Dir,PAYPAL,74.1,14.82,88.92,Miscellaneous (Other)  Expenses,Variety stores
Buckinghamshire Council ,30.06.2023,29.06.2023,Deputy Chief Executive,AH&R- DCE Dir,PAYPAL,0.03,0,0.03,Miscellaneous (Other)  Expenses,Variety stores
Buckinghamshire Council ,30.06.2023,29.06.2023,Deputy Chief Executive,Communities - DCE,PAYPAL,83.33,16.67,100,Other Personal Needs,Variety stores
Buckinghamshire Council ,30.06.2023,29.06.2023,Deputy Chief Executive,Communities - DCE,PAYPAL,149.1,29.82,178.92,Other Personal Needs,Variety stores
Buckinghamshire Council ,30.06.2023,29.06.2023,Deputy Chief Executive,Communities - DCE,PAYPAL,0.03,0,0.03,Other Personal Needs,Variety stores
Buckinghamshire Council ,30.06.2023,29.06.2023,Children's Services,Education & Childrens Services - CS Dir,TRAINLINE,130.2,0,130.2,Sec 20/31: Transport,Passenger railways
Buckinghamshire Council ,30.06.2023,29.06.2023,Children's Services,Education & Childrens Services - CS Dir,TRAINLINE,37.2,0,37.2,Sec 20/31: Transport,Passenger railways
Buckinghamshire Council ,30.06.2023,29.06.2023,CC Obsolete Cost Centres,Obsolete Cost Centres,PAYPAL,673.95,0,673.95,Awaiting Coding,Variety stores
Buckinghamshire Council ,30.06.2023,29.06.2023,CC Obsolete Cost Centres,Obsolete Cost Centres,PAYPAL,130,0,130,Awaiting Coding,Variety stores
Buckinghamshire Council ,30.06.2023,29.06.2023,Deputy Chief Executive,AH&R- DCE Dir,PAYPAL,-302.95,0,-302.95,Miscellaneous (Other)  Expenses,Variety stores
Buckinghamshire Council ,30.06.2023,29.06.2023,"Planning, Growth & Sustainability",Housing & Homelessness & Regulatory PGS,ROYAL MAIL ONLINE SHOP,55,0,55,General Postage,Postal services
Buckinghamshire Council ,30.06.2023,29.06.2023,Deputy Chief Executive,AH&R- DCE Dir,A1 TAXILINE,40,0,40,Staff Travelling Expenses,Taxicabs & limousines
Buckinghamshire Council ,30.06.2023,29.06.2023,Deputy Chief Executive,Communities - DCE,AO RETAIL LIMITED,257.5,51.5,309,Other Personal Needs,Household appliance stores
Buckinghamshire Council ,30.06.2023,29.06.2023,Deputy Chief Executive,Communities - DCE,WWW.ARGOS.CO.UK,224.1,44.82,268.92,Other Personal Needs,Department stores
Buckinghamshire Council ,30.06.2023,29.06.2023,Deputy Chief Executive,Communities - DCE,WWW.ARGOS.CO.UK,0.03,0,0.03,Other Personal Needs,Department stores
Buckinghamshire Council ,30.06.2023,29.06.2023,Deputy Chief Executive,Communities - DCE,AO RETAIL LIMITED,743.3,148.66,891.96,Other Personal Needs,Household appliance stores
Buckinghamshire Council ,30.06.2023,29.06.2023,Deputy Chief Executive,Communities - DCE,AO RETAIL LIMITED,0.04,0,0.04,Other Personal Needs,Household appliance stores
Buckinghamshire Council ,30.06.2023,29.06.2023,Deputy Chief Executive,Communities - DCE,AO RETAIL LIMITED,257.5,51.5,309,Other Personal Needs,Household appliance stores
Buckinghamshire Council ,30.06.2023,29.06.2023,Deputy Chief Executive,Communities - DCE,AO RETAIL LIMITED,228.3,45.66,273.96,Other Personal Needs,Household appliance stores
Buckinghamshire Council ,30.06.2023,29.06.2023,Deputy Chief Executive,Communities - DCE,AO RETAIL LIMITED,0.04,0,0.04,Other Personal Needs,Household appliance stores
Buckinghamshire Council ,30.06.2023,29.06.2023,Deputy Chief Executive,Communities - DCE,AO RETAIL LIMITED,627.49,125.51,753,Other Personal Needs,Household appliance stores
Buckinghamshire Council ,30.06.2023,29.06.2023,Deputy Chief Executive,Communities - DCE,WWW.ARGOS.CO.UK,135.79,27.16,162.95,Other Personal Needs,Department stores
Buckinghamshire Council ,30.06.2023,29.06.2023,Deputy Chief Executive,Communities - DCE,AO RETAIL LIMITED,249.16,49.84,299,Other Personal Needs,Household appliance stores
Buckinghamshire Council ,30.06.2023,29.06.2023,Deputy Chief Executive,Communities - DCE,AO RETAIL LIMITED,-20,0,-20,Other Personal Needs,Household appliance stores
Buckinghamshire Council ,30.06.2023,29.06.2023,Adults and Health,Health & Wellbeing - Adults & Health Dir,AMZNMKTPLACE,40.43,0,40.43,Health & Safety Supplies & Services,Miscellaneous retail
Buckinghamshire Council ,30.06.2023,29.06.2023,Deputy Chief Executive,AH&R- DCE Dir,ABL RETAIL LTD,84.9,0,84.9,Legal Fees,Medical & health services
Buckinghamshire Council ,30.06.2023,29.06.2023,Communities,artnerships - Communities,WWW.TONERGIANT.CO.UK,76.85,0,76.85,Equipment,Misc Industrial supplies
Buckinghamshire Council ,30.06.2023,29.06.2023,Adults and Health,Health & Wellbeing - Adults & Health Dir,BIG BEAR PROMO,182.5,36.5,219,Payments To Contractors,Miscellaneous retail
Buckinghamshire Council ,30.06.2023,29.06.2023,Adults and Health,Health & Wellbeing - Adults & Health Dir,WWW.MARKALLENGROUP.COM,60,12,72,"Courses, Conference and Seminar Fees",Schools
Buckinghamshire Council ,30.06.2023,29.06.2023,Adults and Health,Health & Wellbeing - Adults & Health Dir,TESCO STORES 2162,33.35,0,33.35,General Provisions (Food),Grocery stores
Buckinghamshire Council ,30.06.2023,29.06.2023,Resources,AH&R - Res Dir,NEW YORK DELI GATEHOUSE,4,0,4,Subsistence,Restaurants
Buckinghamshire Council ,30.06.2023,29.06.2023,"Planning, Growth & Sustainability",AH&R - PGS Dir,B & Q 1305,42,0,42,General Repairs & Maintenance,Home supply warehouse stores
Buckinghamshire Council ,30.06.2023,29.06.2023,Communities,Culture & Leisure - Communities Dir,LEEDERS HARDWARE,9,0,9,Miscellaneous (Other)  Expenses,Hardware stores
Buckinghamshire Council ,30.06.2023,29.06.2023,Children's Services,Education & Childrens Services - CS Dir,AMAZON.CO.UK,43,0,43,Miscellaneous (Other)  Expenses,Direct sales companies
Buckinghamshire Council ,30.06.2023,29.06.2023,"Planning, Growth & Sustainability",AH&R - PGS Dir,EDMUNDSON ELECTRICAL,8.22,0,8.22,General Repairs & Maintenance,Electrical parts & equipment
Buckinghamshire Council ,30.06.2023,29.06.2023,"Planning, Growth & Sustainability",AH&R - PGS Dir,EDMUNDSON ELECTRICAL,20.09,0,20.09,General Repairs & Maintenance,Electrical parts & equipment
Buckinghamshire Council ,30.06.2023,29.06.2023,Children's Services,Education & Childrens Services - CS Dir,WICKES CHESHAM,36,0,36,General Repairs & Maintenance,Timber & building supplies
Buckinghamshire Council ,30.06.2023,29.06.2023,Children's Services,Education & Childrens Services - CS Dir,SAVERS HEALTH & BEAUTY,6.45,0,6.45,Medical Supplies & Services inc Vet'nary,Chemists & pharmacies
Buckinghamshire Council ,30.06.2023,29.06.2023,Communities,Culture & Leisure - Communities Dir,Langley Park Cafe,6.35,0,6.35,Subsistence,Restaurants
Buckinghamshire Council ,30.06.2023,29.06.2023,Communities,Transport - Communities Dir,THOMSON REUTERS UK LTD,96,0,96,Other Works,Professional services
Buckinghamshire Council ,30.06.2023,29.06.2023,Children's Services,Education & Childrens Services - CS Dir,FINDEL EDUCATION,179.99,0,179.99,"Books, Records, Films & Oth Publications",Direct sales companies
Buckinghamshire Council ,30.06.2023,29.06.2023,Children's Services,artnerships - Children's Services,TESCO STORES 2885,24,0,24,"Courses, Conference and Seminar Fees",Grocery stores
Buckinghamshire Council ,30.06.2023,29.06.2023,Children's Services,artnerships - Children's Services,COSTCO WHOLESALE #117,113.37,0,113.37,"Courses, Conference and Seminar Fees",Buying & shopping services/clubs
Buckinghamshire Council ,30.06.2023,29.06.2023,"Planning, Growth & Sustainability",Partnership Climate Change & Envir - PGS,PREMIER INN,134.5,0,134.5,"Courses, Conference and Seminar Fees",Premier Inn
Buckinghamshire Council ,30.06.2023,29.06.2023,Children's Services,Education & Childrens Services - CS Dir,GEN REGISTER OFFICE,33,0,33,Sec 17: Financial Assistance One Off,Government services
Buckinghamshire Council ,30.06.2023,29.06.2023,Children's Services,Education & Childrens Services - CS Dir,BUCKINGHAMSHIRE CNCL,11,0,11,Sec 17: Financial Assistance One Off,Government services
Buckinghamshire Council ,30.06.2023,29.06.2023,Communities,Climate Change & Environment - Community,CIVIL ENFORCEMENT,60,0,60,Car Allowances Mileage & Lump Sum,Car parking & garages
Buckinghamshire Council ,30.06.2023,29.06.2023,Children's Services,Education & Childrens Services - CS Dir,ASDA  STORES 4396,16.74,0,16.74,General Provisions (Food),Grocery stores
Buckinghamshire Council ,30.06.2023,29.06.2023,Communities,Transport - Communities Dir,TOOLSTATION UK,17.92,0,17.92,Awaiting Coding,Hardware stores
Buckinghamshire Council ,30.06.2023,29.06.2023,Resources,AH&R - Res Dir,C2E858100586V UKVI,"1,199.00",0,"1,199.00",Professional Services (non curriculum) - External,Government services
Buckinghamshire Council ,30.06.2023,29.06.2023,Children's Services,Education & Childrens Services - CS Dir,WWW.ANYVAN.COM,99,0,99,Equipment (including storage),"Haulage, removals & delivery"
Buckinghamshire Council ,30.06.2023,29.06.2023,Deputy Chief Executive,AH&R- DCE Dir,MOONPIG,8.44,0,8.44,"Courses, Conference and Seminar Fees",Misc. general merchandise
Buckinghamshire Council ,30.06.2023,29.06.2023,Communities,Culture & Leisure - Communities Dir,TUFF SHOP .CO.UK,71.98,0,71.98,Awaiting Coding,Family clothing shops
Buckinghamshire Council ,30.06.2023,29.06.2023,CC Obsolete Cost Centres,Obsolete Cost Centres,AMZNMktplace,79.98,0,79.98,Awaiting Coding,Miscellaneous retail
Buckinghamshire Council ,30.06.2023,29.06.2023,CC Obsolete Cost Centres,Obsolete Cost Centres,AMZNMktplace,120.99,0,120.99,Awaiting Coding,Miscellaneous retail
Buckinghamshire Council ,30.06.2023,29.06.2023,CC Obsolete Cost Centres,Obsolete Cost Centres,ASDA GROCERIES ONLINE,41.5,0,41.5,Awaiting Coding,Grocery stores
Buckinghamshire Council ,30.06.2023,29.06.2023,CC Obsolete Cost Centres,Obsolete Cost Centres,AMZNMktplace,45.97,0,45.97,Awaiting Coding,Miscellaneous retail
Buckinghamshire Council ,30.06.2023,29.06.2023,Communities,ommunities - Trust Accounts,BOOKER LIMITED ECOM,574.72,0,574.72,Awaiting Coding,Grocery stores
Buckinghamshire Council ,30.06.2023,29.06.2023,Communities,ommunities - Trust Accounts,Home & Interiors,18.72,0,18.72,Awaiting Coding,Misc. general merchandise
Buckinghamshire Council ,30.06.2023,29.06.2023,Communities,ommunities - Trust Accounts,WEXHAM MOWER SVCS,105.84,0,105.84,Seeds & Plants,Lawn & garden supply/nursery
Buckinghamshire Council ,30.06.2023,29.06.2023,Resources,AH&R - Res Dir,LINKEDIN ADS,100.57,0,100.57,Permanent Recruitment Costs,Advertising services
Buckinghamshire Council ,30.06.2023,29.06.2023,Resources,AH&R - Res Dir,EB *LOCAL WILDLIFE SIT,20,0,20,Awaiting Coding,Misc business services
Buckinghamshire Council ,30.06.2023,29.06.2023,Resources,AH&R - Res Dir,EB *LOCAL WILDLIFE SIT,20,0,20,Awaiting Coding,Misc business services
Buckinghamshire Council ,30.06.2023,29.06.2023,Children's Services,Education & Childrens Services - CS Dir,TAXI PAYMENT,119,0,119,Staff Travelling Expenses,Taxicabs & limousines
Buckinghamshire Council ,30.06.2023,29.06.2023,Children's Services,Education & Childrens Services - CS Dir,TAXI PAYMENT,39,0,39,Staff Travelling Expenses,Taxicabs & limousines
Buckinghamshire Council ,30.06.2023,29.06.2023,Deputy Chief Executive,AH&R- DCE Dir,AMZNMKTPLACE,15.9,0,15.9,Stationery & Office Supplies,Miscellaneous retail
Buckinghamshire Council ,30.06.2023,29.06.2023,Children's Services,Education & Childrens Services - CS Dir,HOLIDAY INN AYLESB,7.6,0,7.6,"Courses, Conference and Seminar Fees","Hotels, motels & resorts"
Buckinghamshire Council ,30.06.2023,29.06.2023,Children's Services,Education & Childrens Services - CS Dir,HOLIDAY INN AYLESB,3.65,0,3.65,"Courses, Conference and Seminar Fees","Hotels, motels & resorts"
Buckinghamshire Council ,30.06.2023,29.06.2023,Adults and Health,Health & Wellbeing - Adults & Health Dir,NEALES TAXIS LTD,60,0,60,Staff Travelling Expenses,Taxicabs & limousines
Buckinghamshire Council ,30.06.2023,29.06.2023,Resources,AH&R - Res Dir,AMZNMKTPLACE,9.98,0,9.98,Miscellaneous (Other)  Expenses,Miscellaneous retail
Buckinghamshire Council ,30.06.2023,29.06.2023,Adults and Health,Health & Wellbeing - Adults & Health Dir,AMZNMKTPLACE,13.99,0,13.99,Miscellaneous (Other)  Expenses,Miscellaneous retail
Buckinghamshire Council ,30.06.2023,29.06.2023,Adults and Health,Health & Wellbeing - Adults & Health Dir,TESCO GIFT CARD,60,0,60,Other Short Term Support,Grocery stores
Buckinghamshire Council ,30.06.2023,29.06.2023,Children's Services,Education & Childrens Services - CS Dir,SUMUP  *IMTIAZ AHMAD T,"2,016.00",0,"2,016.00",Sec 20/31: Transport,Taxicabs & limousines
Buckinghamshire Council ,30.06.2023,28.06.2023,Communities,Culture & Leisure - Communities Dir,AMZNMKTPLACE,11.99,0,11.99,Events Expenditure,Miscellaneous retail
Buckinghamshire Council ,30.06.2023,28.06.2023,Children's Services,Education & Childrens Services - CS Dir,SLOUGH B/C ATP,3,0,3,Sec 17: Specialist Services,Government services
Buckinghamshire Council ,30.06.2023,28.06.2023,Children's Services,Education & Childrens Services - CS Dir,SLOUGH B/C ATP,11,0,11,Sec 17: Specialist Services,Government services
Buckinghamshire Council ,30.06.2023,28.06.2023,Children's Services,Education & Childrens Services - CS Dir,THE OXFORDSHIRE TAXI COMP,35,0,35,Sec 17: Transport,Taxicabs & limousines
Buckinghamshire Council ,30.06.2023,28.06.2023,"Planning, Growth & Sustainability",Planning & Regeneration - PGS,RTPI,66.67,0,66.67,Professional Subscriptions re Employees,"Member clubs, sport, recreation & golf"
Buckinghamshire Council ,30.06.2023,28.06.2023,Children's Services,Education & Childrens Services - CS Dir,ROGUE BOWLING,36,0,36,Activities & General Recreation,"Member clubs, sport, recreation & golf"
Buckinghamshire Council ,30.06.2023,28.06.2023,Deputy Chief Executive,Communities - DCE,CROWN COFFEE,7.75,0,7.75,Subsistence,Restaurants
Buckinghamshire Council ,30.06.2023,28.06.2023,Children's Services,Education & Childrens Services - CS Dir,RBK REGISTER OFFICE,11,0,11,Sec 20/31: Specialist Services,Government services
Buckinghamshire Council ,30.06.2023,28.06.2023,Children's Services,Education & Childrens Services - CS Dir,PAYPAL,60,0,60,"Courses, Conference and Seminar Fees",Vocational & trade schools
Buckinghamshire Council ,30.06.2023,28.06.2023,Children's Services,Education & Childrens Services - CS Dir,POST OFFICE COUNTER,7.65,0,7.65,General Postage,Postal services
Buckinghamshire Council ,30.06.2023,28.06.2023,Deputy Chief Executive,Communities - DCE,AO RETAIL LIMITED,453.33,90.67,544,Other Personal Needs,Household appliance stores
Buckinghamshire Council ,30.06.2023,28.06.2023,Deputy Chief Executive,Communities - DCE,WWW.ARGOS.CO.UK,224.1,44.82,268.92,Other Personal Needs,Department stores
Buckinghamshire Council ,30.06.2023,28.06.2023,Deputy Chief Executive,Communities - DCE,WWW.ARGOS.CO.UK,0.03,0,0.03,Other Personal Needs,Department stores
Buckinghamshire Council ,30.06.2023,28.06.2023,Deputy Chief Executive,Communities - DCE,AO RETAIL LIMITED,387.08,77.42,464.5,Other Personal Needs,Household appliance stores
Buckinghamshire Council ,30.06.2023,28.06.2023,Deputy Chief Executive,Communities - DCE,MANOMANO,219.99,0,219.99,Other Personal Needs,Household appliance stores
Buckinghamshire Council ,30.06.2023,28.06.2023,Deputy Chief Executive,Communities - DCE,AO RETAIL LIMITED,255.08,51.02,306.1,Other Personal Needs,Household appliance stores
Buckinghamshire Council ,30.06.2023,28.06.2023,Deputy Chief Executive,Communities - DCE,AO RETAIL LIMITED,602.5,120.5,723,Other Personal Needs,Household appliance stores
Buckinghamshire Council ,30.06.2023,28.06.2023,Deputy Chief Executive,Communities - DCE,AO RETAIL LIMITED,715.91,143.19,859.1,Other Personal Needs,Household appliance stores
Buckinghamshire Council ,30.06.2023,28.06.2023,Deputy Chief Executive,Communities - DCE,WWW.ARGOS.CO.UK,224.1,44.82,268.92,Other Personal Needs,Department stores
Buckinghamshire Council ,30.06.2023,28.06.2023,Deputy Chief Executive,Communities - DCE,WWW.ARGOS.CO.UK,0.03,0,0.03,Other Personal Needs,Department stores
Buckinghamshire Council ,30.06.2023,28.06.2023,Deputy Chief Executive,Communities - DCE,AO RETAIL LIMITED,734.99,147.01,882,Other Personal Needs,Household appliance stores
Buckinghamshire Council ,30.06.2023,28.06.2023,Deputy Chief Executive,Communities - DCE,WWW.ARGOS.CO.UK,224.1,44.82,268.92,Other Personal Needs,Department stores
Buckinghamshire Council ,30.06.2023,28.06.2023,Deputy Chief Executive,Communities - DCE,WWW.ARGOS.CO.UK,0.03,0,0.03,Other Personal Needs,Department stores
Buckinghamshire Council ,30.06.2023,28.06.2023,Communities,artnerships - Communities,AMZNMKTPLACE,16.99,0,16.99,Equipment,Miscellaneous retail
Buckinghamshire Council ,30.06.2023,28.06.2023,Adults and Health,Health & Wellbeing - Adults & Health Dir,TESCO STORES 2041,52.21,0,52.21,General Provisions (Food),Grocery stores
Buckinghamshire Council ,30.06.2023,28.06.2023,Resources,AH&R - Res Dir,NEW YORK DELI (AYLESBURY),7.7,0,7.7,Subsistence,Restaurants
Buckinghamshire Council ,30.06.2023,28.06.2023,"Planning, Growth & Sustainability",AH&R - PGS Dir,TOOLSTATION LTD,6.98,0,6.98,General Repairs & Maintenance,Timber & building supplies
Buckinghamshire Council ,30.06.2023,28.06.2023,"Planning, Growth & Sustainability",AH&R - PGS Dir,HALFORDS 0529,4.57,0,4.57,General Repairs & Maintenance,"Bicycle shops, sales & service"
Buckinghamshire Council ,30.06.2023,28.06.2023,Children's Services,Education & Childrens Services - CS Dir,PRESTIG*EFLOWERS,44.89,8.98,53.87,Seeds & Plants,Florists
Buckinghamshire Council ,30.06.2023,28.06.2023,Children's Services,Education & Childrens Services - CS Dir,WWW.ARGOS.CO.UK,153,0,153,YOS - Direct Work,Department stores
Buckinghamshire Council ,30.06.2023,28.06.2023,Resources,AH&R - Res Dir,ABRATAX - MTD,12,0,12,Computer Consumables,Computer software stores
Buckinghamshire Council ,30.06.2023,28.06.2023,Communities,Culture & Leisure - Communities Dir,SP RINKIT.COM,44.99,0,44.99,Events Expenditure,Furniture & home furnishing
Buckinghamshire Council ,30.06.2023,28.06.2023,Children's Services,Education & Childrens Services - CS Dir,TAXIPAY,80,0,80,Sec 20/31: Transport,Taxicabs & limousines
Buckinghamshire Council ,30.06.2023,28.06.2023,Children's Services,Education & Childrens Services - CS Dir,TAXIPAY,80,0,80,Sec 20/31: Transport,Taxicabs & limousines
Buckinghamshire Council ,30.06.2023,28.06.2023,Children's Services,Education & Childrens Services - CS Dir,PREMIER INN,96.49,0,96.49,Staff Travelling Expenses,Premier Inn
Buckinghamshire Council ,30.06.2023,28.06.2023,Children's Services,Education & Childrens Services - CS Dir,TAXIPAY,80,0,80,Sec 20/31: Transport,Taxicabs & limousines
Buckinghamshire Council ,30.06.2023,28.06.2023,Children's Services,Education & Childrens Services - CS Dir,TAXIPAY,80,0,80,Sec 20/31: Transport,Taxicabs & limousines
Buckinghamshire Council ,30.06.2023,28.06.2023,Children's Services,Education & Childrens Services - CS Dir,TAXIPAY,80,0,80,Sec 20/31: Transport,Taxicabs & limousines
Buckinghamshire Council ,30.06.2023,28.06.2023,Children's Services,Education & Childrens Services - CS Dir,TAXIPAY,80,0,80,Sec 20/31: Transport,Taxicabs & limousines
Buckinghamshire Council ,30.06.2023,28.06.2023,Children's Services,Education & Childrens Services - CS Dir,TRAINLINE.COM,46.79,0,46.79,Sec 20/31: Specialist Services,Passenger railways
Buckinghamshire Council ,30.06.2023,28.06.2023,Children's Services,Education & Childrens Services - CS Dir,TAXIPAY,80,0,80,Sec 20/31: Transport,Taxicabs & limousines
Buckinghamshire Council ,30.06.2023,28.06.2023,Children's Services,artnerships - Children's Services,SAINSBURYS S/MKTS,12.64,0,12.64,"Courses, Conference and Seminar Fees",Grocery stores
Buckinghamshire Council ,30.06.2023,28.06.2023,Children's Services,Education & Childrens Services - CS Dir,POUNDLAND LTD - 1301,6,0,6,Other Equipment and Materials,Discount stores
Buckinghamshire Council ,30.06.2023,28.06.2023,Children's Services,Education & Childrens Services - CS Dir,ONE BELOW,4,0,4,Other Equipment and Materials,Grocery stores
Buckinghamshire Council ,30.06.2023,28.06.2023,Children's Services,Education & Childrens Services - CS Dir,THE WORKS,8,0,8,Other Equipment and Materials,Discount stores
Buckinghamshire Council ,30.06.2023,28.06.2023,Children's Services,Education & Childrens Services - CS Dir,MUSIC MAGPIE,499.99,0,499.99,Other Equipment and Materials,Electronics shops
Buckinghamshire Council ,30.06.2023,28.06.2023,Adults and Health,Health & Wellbeing - Adults & Health Dir,WILKO RETAIL LIMITED,10.25,2.05,12.3,Equipment for Training and Mats for Ins.,Misc. general merchandise
Buckinghamshire Council ,30.06.2023,28.06.2023,Adults and Health,Health & Wellbeing - Adults & Health Dir,TESCO STORES 2041,24,0,24,Equipment for Training and Mats for Ins.,Grocery stores
Buckinghamshire Council ,30.06.2023,28.06.2023,Adults and Health,Health & Wellbeing - Adults & Health Dir,ASDA  STORES 4396,11.85,0,11.85,Equipment for Training and Mats for Ins.,Grocery stores
Buckinghamshire Council ,30.06.2023,28.06.2023,Adults and Health,Health & Wellbeing - Adults & Health Dir,TRAVELODGE GB0000,891.93,0,891.93,Other Short Term Support,Travelodge
Buckinghamshire Council ,30.06.2023,28.06.2023,Children's Services,Education & Childrens Services - CS Dir,AMZNMKTPLACE,102.07,0,102.07,Furniture,Miscellaneous retail
Buckinghamshire Council ,30.06.2023,28.06.2023,Resources,AH&R - Res Dir,PAYPAL,7.2,0,7.2,IT - Computer Network Charges,Computer network information services
Buckinghamshire Council ,30.06.2023,28.06.2023,Children's Services,Education & Childrens Services - CS Dir,AMZNMKTPLACE,19.99,0,19.99,Support for Foster Carers,Miscellaneous retail
Buckinghamshire Council ,30.06.2023,28.06.2023,Deputy Chief Executive,AH&R- DCE Dir,XL DISPLAYS LTD,82.8,0,82.8,Awaiting Coding,Misc. general merchandise
Buckinghamshire Council ,30.06.2023,28.06.2023,CC Obsolete Cost Centres,Obsolete Cost Centres,WWW.THERANGE.CO.UK,453.98,0,453.98,Awaiting Coding,Misc. home furnishing
Buckinghamshire Council ,30.06.2023,28.06.2023,CC Obsolete Cost Centres,Obsolete Cost Centres,Debenhams.com,24.99,0,24.99,Awaiting Coding,Womens clothes shops
Buckinghamshire Council ,30.06.2023,28.06.2023,CC Obsolete Cost Centres,Obsolete Cost Centres,eBay O*25-10219-82377,127.95,0,127.95,Awaiting Coding,Department stores
Buckinghamshire Council ,30.06.2023,28.06.2023,CC Obsolete Cost Centres,Obsolete Cost Centres,High Street Vouchers,100,0,100,Awaiting Coding,Department stores
Buckinghamshire Council ,30.06.2023,28.06.2023,CC Obsolete Cost Centres,Obsolete Cost Centres,High Street Vouchers,50,0,50,Awaiting Coding,Department stores
Buckinghamshire Council ,30.06.2023,28.06.2023,CC Obsolete Cost Centres,Obsolete Cost Centres,AMZNMktplace,29.99,0,29.99,Awaiting Coding,Miscellaneous retail
Buckinghamshire Council ,30.06.2023,28.06.2023,CC Obsolete Cost Centres,Obsolete Cost Centres,AMZNMktplace,91.02,0,91.02,Awaiting Coding,Miscellaneous retail
Buckinghamshire Council ,30.06.2023,28.06.2023,CC Obsolete Cost Centres,Obsolete Cost Centres,AMZNMktplace,219,0,219,Awaiting Coding,Miscellaneous retail
Buckinghamshire Council ,30.06.2023,28.06.2023,CC Obsolete Cost Centres,Obsolete Cost Centres,WWW.THERANGE.CO.UK,45.52,0,45.52,Awaiting Coding,Misc. home furnishing
Buckinghamshire Council ,30.06.2023,28.06.2023,CC Obsolete Cost Centres,Obsolete Cost Centres,AMZNMktplace,228,0,228,Awaiting Coding,Miscellaneous retail
Buckinghamshire Council ,30.06.2023,28.06.2023,CC Obsolete Cost Centres,Obsolete Cost Centres,AMZ*Y1 Furniture Ltd,-32.99,0,-32.99,Awaiting Coding,Miscellaneous retail
Buckinghamshire Council ,30.06.2023,28.06.2023,Children's Services,Education & Childrens Services - CS Dir,TRAVELODGE GB0000,111.16,0,111.16,"Courses, Conference and Seminar Fees",Travelodge
Buckinghamshire Council ,30.06.2023,28.06.2023,Communities,Climate Change & Environment - Community,POST OFFICE COUNTER,6.85,0,6.85,General Postage,Postal services
Buckinghamshire Council ,30.06.2023,28.06.2023,Deputy Chief Executive,Communities - DCE,SUMUP  *HILLS CAFE,2.4,0,2.4,General Provisions (Food),Restaurants
Buckinghamshire Council ,30.06.2023,28.06.2023,Deputy Chief Executive,Communities - DCE,ZETTLE_*TONE COFFEE SH,4.4,0,4.4,General Provisions (Food),Restaurants
Buckinghamshire Council ,30.06.2023,28.06.2023,Children's Services,Education & Childrens Services - CS Dir,SAINSBURY S S/MKTS,20.15,0,20.15,Awaiting Coding,Grocery stores
Buckinghamshire Council ,30.06.2023,28.06.2023,Deputy Chief Executive,AH&R- DCE Dir,PAYPAL,130,0,130,Miscellaneous (Other)  Expenses,Automobile dealers - used only
Buckinghamshire Council ,30.06.2023,27.06.2023,Children's Services,Education & Childrens Services - CS Dir,AMZNMKTPLACE,13.39,0,13.39,Consumable Supplies,Miscellaneous retail
Buckinghamshire Council ,30.06.2023,27.06.2023,Communities,Culture & Leisure - Communities Dir,WWW.SCREWFIX.COM,14.99,3,17.99,General Repairs & Maintenance,Timber & building supplies
Buckinghamshire Council ,30.06.2023,27.06.2023,Communities,Culture & Leisure - Communities Dir,AMZNMKTPLACE,18.6,3.72,22.32,Events Expenditure,Miscellaneous retail
Buckinghamshire Council ,30.06.2023,27.06.2023,Communities,Culture & Leisure - Communities Dir,AMZNMKTPLACE,0.04,0,0.04,Events Expenditure,Miscellaneous retail
Buckinghamshire Council ,30.06.2023,27.06.2023,Communities,Culture & Leisure - Communities Dir,WWW.BARNOWLTRUST.ORG.U,49.15,0,49.15,Events Expenditure,Charitable organisations
Buckinghamshire Council ,30.06.2023,27.06.2023,Children's Services,Education & Childrens Services - CS Dir,TAXIPAY,60,0,60,Sec 20/31: Supp for Contact,Taxicabs & limousines
Buckinghamshire Council ,30.06.2023,27.06.2023,Children's Services,Education & Childrens Services - CS Dir,TAXIPAY,7,0,7,Sec 20/31: Transport,Taxicabs & limousines
Buckinghamshire Council ,30.06.2023,27.06.2023,"Planning, Growth & Sustainability",Housing & Homelessness & Regulatory PGS,NEALES TAXIS LTD,40,0,40,Miscellaneous (Other)  Expenses,Taxicabs & limousines
Buckinghamshire Council ,30.06.2023,27.06.2023,Children's Services,Education & Childrens Services - CS Dir,THE OXFORDSHIRE TAXI COMP,145,0,145,Sec 17: Transport,Taxicabs & limousines
Buckinghamshire Council ,30.06.2023,27.06.2023,Children's Services,Education & Childrens Services - CS Dir,THE OXFORDSHIRE TAXI COMP,145,0,145,Sec 17: Transport,Taxicabs & limousines
Buckinghamshire Council ,30.06.2023,27.06.2023,Adults and Health,Health & Wellbeing - Adults & Health Dir,LYRECO UK LTD,68.22,13.65,81.87,Stationery & Office Supplies,Stationery & office supplies
Buckinghamshire Council ,30.06.2023,27.06.2023,Adults and Health,Health & Wellbeing - Adults & Health Dir,LYRECO UK LTD,13.79,2.76,16.55,Stationery & Office Supplies,Stationery & office supplies
Buckinghamshire Council ,30.06.2023,27.06.2023,Children's Services,Education & Childrens Services - CS Dir,THE ENTERTAINER 113,50,0,50,Awaiting Coding,"Hobby, toy & game shops"
Buckinghamshire Council ,30.06.2023,27.06.2023,Children's Services,Education & Childrens Services - CS Dir,WILKO RETAIL LIMITED,21.55,0,21.55,Awaiting Coding,Misc. general merchandise
Buckinghamshire Council ,30.06.2023,27.06.2023,Children's Services,Education & Childrens Services - CS Dir,POUNDLAND LTD - 1301,3,0,3,Awaiting Coding,Discount stores
Buckinghamshire Council ,30.06.2023,27.06.2023,Deputy Chief Executive,Communities - DCE,WWW.ARGOS.CO.UK,-185,0,-185,Awaiting Coding,Department stores
Buckinghamshire Council ,30.06.2023,27.06.2023,Deputy Chief Executive,Communities - DCE,WWW.ARGOS.CO.UK,-6.95,0,-6.95,Awaiting Coding,Department stores
Buckinghamshire Council ,30.06.2023,27.06.2023,Deputy Chief Executive,Communities - DCE,WWW AYLESBURY AC UK,99,0,99,"Courses, Conference and Seminar Fees",Colleges & universities
Buckinghamshire Council ,30.06.2023,27.06.2023,Deputy Chief Executive,Communities - DCE,WWW AYLESBURY AC UK,99,0,99,"Courses, Conference and Seminar Fees",Colleges & universities
Buckinghamshire Council ,30.06.2023,27.06.2023,"Planning, Growth & Sustainability",Planning & Regeneration - PGS,RTPI,248.25,0,248.25,Professional Subscriptions re Employees,"Member clubs, sport, recreation & golf"
Buckinghamshire Council ,30.06.2023,27.06.2023,Communities,Culture & Leisure - Communities Dir,WICKES BUILDING,75,15,90,"Workshop - Materials,Tools & Equipment",Timber & building supplies
Buckinghamshire Council ,30.06.2023,27.06.2023,Children's Services,Education & Childrens Services - CS Dir,TRAVELODGE GB0000,65.28,0,65.28,Sec 20/31: Financial Assistance One Off,Travelodge
Buckinghamshire Council ,30.06.2023,27.06.2023,Deputy Chief Executive,Communities - DCE,AO RETAIL LIMITED,232.5,46.5,279,Other Personal Needs,Household appliance stores
Buckinghamshire Council ,30.06.2023,27.06.2023,Deputy Chief Executive,Communities - DCE,AO RETAIL LIMITED,255.08,51.02,306.1,Other Personal Needs,Household appliance stores
Buckinghamshire Council ,30.06.2023,27.06.2023,Deputy Chief Executive,Communities - DCE,WWW.ARGOS.CO.UK,169.95,33.99,203.94,Other Personal Needs,Department stores
Buckinghamshire Council ,30.06.2023,27.06.2023,Deputy Chief Executive,Communities - DCE,WWW.ARGOS.CO.UK,0.01,0,0.01,Other Personal Needs,Department stores
Buckinghamshire Council ,30.06.2023,27.06.2023,Deputy Chief Executive,Communities - DCE,WWW.ARGOS.CO.UK,94.95,18.99,113.94,Other Personal Needs,Department stores
Buckinghamshire Council ,30.06.2023,27.06.2023,Deputy Chief Executive,Communities - DCE,WWW.ARGOS.CO.UK,0.01,0,0.01,Other Personal Needs,Department stores
Buckinghamshire Council ,30.06.2023,27.06.2023,Communities,Culture & Leisure - Communities Dir,AMZNMKTPLACE,89.99,0,89.99,Administrative Equipment & Tools,Miscellaneous retail
Buckinghamshire Council ,30.06.2023,27.06.2023,Children's Services,Education & Childrens Services - CS Dir,ZETTLE_*COOK FAMILY LTD,99.98,0,99.98,YOS - Direct Work,Misc. personal services
Buckinghamshire Council ,30.06.2023,27.06.2023,Communities,Transport - Communities Dir,PHONE STAR,10,0,10,Materials,Phone equipment & sales
Buckinghamshire Council ,30.06.2023,27.06.2023,"Planning, Growth & Sustainability",Housing & Homelessness & Regulatory PGS,AMAZON.CO.UK,250,0,250,Long Service Awards,Direct sales companies
Buckinghamshire Council ,30.06.2023,27.06.2023,Communities,artnerships - Communities,TESCO STORES 2041,5.5,0,5.5,Equipment,Grocery stores
Buckinghamshire Council ,30.06.2023,27.06.2023,Communities,Housing & Homelessness & Regulatory Comm,HOMEBASE,41.75,0,41.75,Maintenance of Grounds,Home supply warehouse stores
Buckinghamshire Council ,30.06.2023,27.06.2023,"Planning, Growth & Sustainability",AH&R - PGS Dir,ASDA SUPERSTORE,3.33,0.67,4,Cleaning Materials,Grocery stores
Buckinghamshire Council ,30.06.2023,27.06.2023,Children's Services,Education & Childrens Services - CS Dir,ST JOHN AMBULANCE,957.6,0,957.6,Home Office Training - Staff,Charitable organisations
Buckinghamshire Council ,30.06.2023,27.06.2023,Resources,AH&R - Res Dir,TRAINLINE,29.9,0,29.9,Staff Travelling Expenses,Passenger railways
Buckinghamshire Council ,30.06.2023,27.06.2023,"Planning, Growth & Sustainability",AH&R - PGS Dir,STOKE MANDEVILLE HOSPITAL,9,0,9,Other Equipment and Materials,Car parking & garages
Buckinghamshire Council ,30.06.2023,27.06.2023,"Planning, Growth & Sustainability",AH&R - PGS Dir,SCREWFIX DIR LTD,218.16,0,218.16,General Repairs & Maintenance,Timber & building supplies
Buckinghamshire Council ,30.06.2023,27.06.2023,"Planning, Growth & Sustainability",AH&R - PGS Dir,B & Q 1305,10.8,0,10.8,General Repairs & Maintenance,Home supply warehouse stores
Buckinghamshire Council ,30.06.2023,27.06.2023,Children's Services,Education & Childrens Services - CS Dir,WWW.ARGOS.CO.UK,85,0,85,Miscellaneous (Other)  Expenses,Department stores
Buckinghamshire Council ,30.06.2023,27.06.2023,Children's Services,Education & Childrens Services - CS Dir,AMAZON.CO.UK,72.7,0,72.7,Stationery & Office Supplies,Direct sales companies
Buckinghamshire Council ,30.06.2023,27.06.2023,Children's Services,Education & Childrens Services - CS Dir,AMAZON.CO.UK,48.74,0,48.74,"Books, Records, Films & Oth Publications",Direct sales companies
Buckinghamshire Council ,30.06.2023,27.06.2023,Children's Services,Education & Childrens Services - CS Dir,BUCKINGHAMSHIRE CNCL,-11,0,-11,Sec 20/31: Specialist Services,Government services
Buckinghamshire Council ,30.06.2023,27.06.2023,Children's Services,Education & Childrens Services - CS Dir,READING BOROUGH COUNCI,-11,0,-11,Sec 20/31: Specialist Services,Government services
Buckinghamshire Council ,30.06.2023,27.06.2023,Children's Services,Education & Childrens Services - CS Dir,AMZNMktplace,12.74,0,12.74,Awaiting Coding,Miscellaneous retail
Buckinghamshire Council ,30.06.2023,27.06.2023,Children's Services,Education & Childrens Services - CS Dir,AMZNMktplace,15.99,0,15.99,Awaiting Coding,Miscellaneous retail
Buckinghamshire Council ,30.06.2023,27.06.2023,Children's Services,Education & Childrens Services - CS Dir,KING DO,54.2,0,54.2,Subsistence,Restaurants
Buckinghamshire Council ,30.06.2023,27.06.2023,Children's Services,Education & Childrens Services - CS Dir,MUSIC MAGPIE,484.99,0,484.99,Awaiting Coding,Electronics shops
Buckinghamshire Council ,30.06.2023,27.06.2023,Children's Services,Education & Childrens Services - CS Dir,ASDA GROCERIES ONLINE,65.14,0,65.14,Awaiting Coding,Grocery stores
Buckinghamshire Council ,30.06.2023,27.06.2023,Children's Services,Education & Childrens Services - CS Dir,TRAVELODGE GB0000,499,0,499,Sec 17: Accommodation,Travelodge
Buckinghamshire Council ,30.06.2023,27.06.2023,Communities,Climate Change & Environment - Community,HELLOPRINT UNITED KINGDOM,176.35,0,176.35,Photocopiers,Photocopy & reproduction services
Buckinghamshire Council ,30.06.2023,27.06.2023,Deputy Chief Executive,AH&R- DCE Dir,DAC REMOVALS AND S,40,0,40,Equipment (including storage),"Haulage, removals & delivery"
Buckinghamshire Council ,30.06.2023,27.06.2023,Resources,AH&R - Res Dir,PAYPAL,8.99,0,8.99,IT - Computer Network Charges,Computer network information services
Buckinghamshire Council ,30.06.2023,27.06.2023,Children's Services,Education & Childrens Services - CS Dir,MARKS&SPENCER PLC SA,46.05,0,46.05,Support for Foster Carers,Grocery stores
Buckinghamshire Council ,30.06.2023,27.06.2023,Children's Services,Education & Childrens Services - CS Dir,ARGOS  AYLESBURY GATEHOU,23.5,0,23.5,Support for Foster Carers,Discount stores
Buckinghamshire Council ,30.06.2023,27.06.2023,Communities,Culture & Leisure - Communities Dir,SPORTSDIRECT 210,4.5,0,4.5,Miscellaneous (Other)  Expenses,Sporting goods shops
Buckinghamshire Council ,30.06.2023,27.06.2023,Deputy Chief Executive,Leader - DCE,SAINSBURY S S/MKTS,4.6,0,4.6,General Provisions (Food),Grocery stores
Buckinghamshire Council ,30.06.2023,27.06.2023,Deputy Chief Executive,Leader - DCE,POWTOON.COM,701.17,0,701.17,Computer Consumables,Computer software stores
Buckinghamshire Council ,30.06.2023,27.06.2023,Children's Services,Education & Childrens Services - CS Dir,AMAZON.CO.UK,68.8,0,68.8,Stationery & Office Supplies,Direct sales companies
Buckinghamshire Council ,30.06.2023,27.06.2023,Children's Services,Education & Childrens Services - CS Dir,WWW.ARGOS.CO.UK,21.95,0,21.95,Leaving Care - Grants for Care Leavers,Department stores
Buckinghamshire Council ,30.06.2023,27.06.2023,Children's Services,Education & Childrens Services - CS Dir,BUY IT DIRECT,643.93,0,643.93,Leaving Care - Grants for Care Leavers,Electronics shops
Buckinghamshire Council ,30.06.2023,27.06.2023,Children's Services,Education & Childrens Services - CS Dir,FRUUGO.COM,65.91,0,65.91,Leaving Care - Grants for Care Leavers,Department stores
Buckinghamshire Council ,30.06.2023,27.06.2023,Children's Services,Education & Childrens Services - CS Dir,WWW.ABAKUSDIRECT.CO.UK,399,0,399,Leaving Care - Grants for Care Leavers,Furniture & home furnishing
Buckinghamshire Council ,30.06.2023,27.06.2023,Children's Services,Education & Childrens Services - CS Dir,ONBUY.COM,51.99,0,51.99,Leaving Care - Grants for Care Leavers,
Buckinghamshire Council ,30.06.2023,27.06.2023,Children's Services,Education & Childrens Services - CS Dir,BUCKINGHAMSHIRE CNCL,11,0,11,Sec 20/31: Specialist Services,Government services
Buckinghamshire Council ,30.06.2023,27.06.2023,Communities,ommunities - Trust Accounts,CO-OP GROUP FOOD,10.75,0,10.75,Awaiting Coding,Grocery stores
Buckinghamshire Council ,30.06.2023,27.06.2023,"Planning, Growth & Sustainability",Planning & Regeneration - PGS,AMZNMKTPLACE,5.94,0,5.94,IT Equipment Purchase,Miscellaneous retail
Buckinghamshire Council ,30.06.2023,27.06.2023,Children's Services,Education & Childrens Services - CS Dir,VOUCHER EXPRESS,300,0,300,"Courses, Conference and Seminar Fees",Misc business services
Buckinghamshire Council ,30.06.2023,27.06.2023,Children's Services,Education & Childrens Services - CS Dir,AMZNMKTPLACE,19.73,0,19.73,Health & Safety Supplies & Services,Miscellaneous retail
Buckinghamshire Council ,30.06.2023,27.06.2023,Children's Services,Education & Childrens Services - CS Dir,AMAZON PRIME,8.99,0,8.99,Stationery & Office Supplies,Continuous subscriptions
Buckinghamshire Council ,30.06.2023,27.06.2023,Adults and Health,Health & Wellbeing - Adults & Health Dir,EB *INTRODUCTION TO CO,50,0,50,"Courses, Conference and Seminar Fees",Misc business services
Buckinghamshire Council ,30.06.2023,27.06.2023,"Planning, Growth & Sustainability",Housing & Homelessness & Regulatory PGS,HPI INSTANT INK UK,9.99,0,9.99,Stationery & Office Supplies,Electronics shops
Buckinghamshire Council ,30.06.2023,27.06.2023,Children's Services,Education & Childrens Services - CS Dir,TESCO STORES 2020,26.17,0,26.17,Awaiting Coding,Grocery stores
Buckinghamshire Council ,30.06.2023,27.06.2023,Adults and Health,Health & Wellbeing - Adults & Health Dir,A1 TAXILINE,80,0,80,Staff Travelling Expenses,Taxicabs & limousines
Buckinghamshire Council ,30.06.2023,27.06.2023,Adults and Health,Health & Wellbeing - Adults & Health Dir,SP DISABILITYRIGHTUK,129,0,129,"Books, Records, Films & Oth Publications",Book stores
Buckinghamshire Council ,30.06.2023,27.06.2023,Adults and Health,Health & Wellbeing - Adults & Health Dir,TRAVELODGE GB0000,"1,247.34",0,"1,247.34",Other Short Term Support,Travelodge
Buckinghamshire Council ,30.06.2023,27.06.2023,Children's Services,Education & Childrens Services - CS Dir,A1 TAXI SERVICE,35,7,42,Sec 17: Transport,Taxicabs & limousines
Buckinghamshire Council ,30.06.2023,27.06.2023,CC Obsolete Cost Centres,Obsolete Cost Centres,PARADIGM HOUSING GROUP,508.26,0,508.26,Awaiting Coding,Government services
Buckinghamshire Council ,30.06.2023,27.06.2023,Deputy Chief Executive,AH&R- DCE Dir,PLAZA CARS,70,0,70,Staff Travelling Expenses,Taxicabs & limousines
Buckinghamshire Council ,30.06.2023,27.06.2023,Deputy Chief Executive,AH&R- DCE Dir,PAYPAL,382.5,76.5,459,Miscellaneous (Other)  Expenses,Variety stores
Buckinghamshire Council ,30.06.2023,27.06.2023,Deputy Chief Executive,AH&R- DCE Dir,PAYPAL,75.15,15.03,90.18,Miscellaneous (Other)  Expenses,Variety stores
Buckinghamshire Council ,30.06.2023,27.06.2023,Deputy Chief Executive,AH&R- DCE Dir,PAYPAL,0.02,0,0.02,Miscellaneous (Other)  Expenses,Variety stores
Buckinghamshire Council ,30.06.2023,27.06.2023,Deputy Chief Executive,AH&R- DCE Dir,PAYPAL,163.25,32.65,195.9,Miscellaneous (Other)  Expenses,Variety stores
Buckinghamshire Council ,30.06.2023,27.06.2023,Deputy Chief Executive,AH&R- DCE Dir,PAYPAL,0.04,0,0.04,Miscellaneous (Other)  Expenses,Variety stores
Buckinghamshire Council ,30.06.2023,27.06.2023,Deputy Chief Executive,AH&R- DCE Dir,PAYPAL,302.95,0,302.95,Miscellaneous (Other)  Expenses,Variety stores
Buckinghamshire Council ,30.06.2023,27.06.2023,Deputy Chief Executive,AH&R- DCE Dir,PAYPAL,775,0,775,Miscellaneous (Other)  Expenses,Variety stores
Buckinghamshire Council ,30.06.2023,27.06.2023,Deputy Chief Executive,AH&R- DCE Dir,PAYPAL,390.79,78.16,468.95,Miscellaneous (Other)  Expenses,Variety stores
Buckinghamshire Council ,30.06.2023,27.06.2023,Deputy Chief Executive,AH&R- DCE Dir,PAYPAL,341.65,68.33,409.98,Miscellaneous (Other)  Expenses,Variety stores
Buckinghamshire Council ,30.06.2023,27.06.2023,Deputy Chief Executive,Communities - DCE,PAYPAL,75,15,90,Other Personal Needs,Variety stores
Buckinghamshire Council ,30.06.2023,27.06.2023,Deputy Chief Executive,Communities - DCE,PAYPAL,347.45,69.49,416.94,Other Personal Needs,Variety stores
Buckinghamshire Council ,30.06.2023,27.06.2023,Deputy Chief Executive,Communities - DCE,PAYPAL,0.01,0,0.01,Other Personal Needs,Variety stores
Buckinghamshire Council ,30.06.2023,27.06.2023,Resources,AH&R - Res Dir,PAYPAL,248.95,0,248.95,Awaiting Coding,Variety stores
Buckinghamshire Council ,30.06.2023,27.06.2023,Resources,AH&R - Res Dir,PAYPAL,66,0,66,Awaiting Coding,Variety stores
Buckinghamshire Council ,30.06.2023,26.06.2023,Adults and Health,Health & Wellbeing - Adults & Health Dir,SAINSBURYS S/MKTS,5.6,0,5.6,General Provisions (Food),Grocery stores
Buckinghamshire Council ,30.06.2023,26.06.2023,Children's Services,Education & Childrens Services - CS Dir,BUCKINGHAMSHIRE CNCL,-11,0,-11,Sec 17: Specialist Services,Government services
Buckinghamshire Council ,30.06.2023,26.06.2023,"Planning, Growth & Sustainability",Housing & Homelessness & Regulatory PGS,LAND REGISTRY ECOM CCC,3,0,3,Homelessness,Government services
Buckinghamshire Council ,30.06.2023,26.06.2023,"Planning, Growth & Sustainability",Housing & Homelessness & Regulatory PGS,LAND REGISTRY ECOM CCC,3,0,3,Homelessness,Government services
Buckinghamshire Council ,30.06.2023,26.06.2023,Children's Services,Education & Childrens Services - CS Dir,TESCO STORES 2038,195.87,0,195.87,General Provisions (Food),Grocery stores
Buckinghamshire Council ,30.06.2023,26.06.2023,"Planning, Growth & Sustainability",AH&R - PGS Dir,GRANT AND STONE,31.75,0,31.75,Special Projects,Hardware stores
Buckinghamshire Council ,30.06.2023,26.06.2023,Deputy Chief Executive,Communities - DCE,AO RETAIL LIMITED,910.83,182.17,"1,093.00",Other Personal Needs,Household appliance stores
Buckinghamshire Council ,30.06.2023,26.06.2023,Deputy Chief Executive,Communities - DCE,WWW.ARGOS.CO.UK,227.45,45.49,272.94,Other Personal Needs,Department stores
Buckinghamshire Council ,30.06.2023,26.06.2023,Deputy Chief Executive,Communities - DCE,WWW.ARGOS.CO.UK,0.01,0,0.01,Other Personal Needs,Department stores
Buckinghamshire Council ,30.06.2023,26.06.2023,Deputy Chief Executive,Communities - DCE,AO RETAIL LIMITED,843.33,168.67,"1,012.00",Other Personal Needs,Household appliance stores
Buckinghamshire Council ,30.06.2023,26.06.2023,Deputy Chief Executive,Communities - DCE,AO RETAIL LIMITED,606.66,121.34,728,Other Personal Needs,Household appliance stores
Buckinghamshire Council ,30.06.2023,26.06.2023,Deputy Chief Executive,Communities - DCE,WWW.ARGOS.CO.UK,224.1,44.82,268.92,Other Personal Needs,Department stores
Buckinghamshire Council ,30.06.2023,26.06.2023,Deputy Chief Executive,Communities - DCE,WWW.ARGOS.CO.UK,0.03,0,0.03,Other Personal Needs,Department stores
Buckinghamshire Council ,30.06.2023,26.06.2023,Deputy Chief Executive,Communities - DCE,AO RETAIL LIMITED,128.3,25.66,153.96,Other Personal Needs,Household appliance stores
Buckinghamshire Council ,30.06.2023,26.06.2023,Deputy Chief Executive,Communities - DCE,AO RETAIL LIMITED,0.04,0,0.04,Other Personal Needs,Household appliance stores
Buckinghamshire Council ,30.06.2023,26.06.2023,Deputy Chief Executive,Communities - DCE,AO RETAIL LIMITED,685.83,137.17,823,Other Personal Needs,Household appliance stores
Buckinghamshire Council ,30.06.2023,26.06.2023,Deputy Chief Executive,Communities - DCE,AO RETAIL LIMITED,254.15,50.83,304.98,Other Personal Needs,Household appliance stores
Buckinghamshire Council ,30.06.2023,26.06.2023,Deputy Chief Executive,Communities - DCE,AO RETAIL LIMITED,0.02,0,0.02,Other Personal Needs,Household appliance stores
Buckinghamshire Council ,30.06.2023,26.06.2023,"Planning, Growth & Sustainability",Housing & Homelessness & Regulatory PGS,LAND REGISTRY ECOM CCC,3,0,3,Homelessness,Government services
Buckinghamshire Council ,30.06.2023,26.06.2023,"Planning, Growth & Sustainability",Housing & Homelessness & Regulatory PGS,LAND REGISTRY ECOM CCC,3,0,3,Homelessness,Government services
Buckinghamshire Council ,30.06.2023,26.06.2023,Communities,Housing & Homelessness & Regulatory Comm,WWW.LANGSTANE.CO.UK,190.42,0,190.42,Miscellaneous (Other)  Expenses,Misc. general merchandise
Buckinghamshire Council ,30.06.2023,26.06.2023,Resources,AH&R - Res Dir,A1 TAXILINE,80,0,80,Staff Travelling Expenses,Taxicabs & limousines
Buckinghamshire Council ,30.06.2023,26.06.2023,Children's Services,Education & Childrens Services - CS Dir,POST OFFICE COUNTER,48,0,48,General Postage,Postal services
Buckinghamshire Council ,30.06.2023,26.06.2023,Adults and Health,Health & Wellbeing - Adults & Health Dir,AMZNMKTPLACE,17.58,0,17.58,Stationery & Office Supplies,Miscellaneous retail
Buckinghamshire Council ,30.06.2023,26.06.2023,Adults and Health,Health & Wellbeing - Adults & Health Dir,AMZNMKTPLACE,27.72,0,27.72,Catering & Domestic Equipment,Miscellaneous retail
Buckinghamshire Council ,30.06.2023,26.06.2023,Communities,artnerships - Communities,NEW YORK DELI GATEHOUSE,86.4,0,86.4,Subsistence,Restaurants
Buckinghamshire Council ,30.06.2023,26.06.2023,Communities,Housing & Homelessness & Regulatory Comm,AMAZON.CO.UK,259.96,0,259.96,Protective Clothing & Uniforms,Direct sales companies
Buckinghamshire Council ,30.06.2023,26.06.2023,Adults and Health,Health & Wellbeing - Adults & Health Dir,B & Q 1305,12,0,12,Maintenance of Grounds,Home supply warehouse stores
Buckinghamshire Council ,30.06.2023,26.06.2023,Children's Services,Education & Childrens Services - CS Dir,OFSTED INTERNET,"3,742.00",0,"3,742.00",Supply of consultancy services,Government services
Buckinghamshire Council ,30.06.2023,26.06.2023,Children's Services,Education & Childrens Services - CS Dir,BT.COM CONSUMER BP,29.73,0,29.73,Accomodation Costs,Phone services
Buckinghamshire Council ,30.06.2023,26.06.2023,Children's Services,Education & Childrens Services - CS Dir,BT BUSINESS BILL,61.46,0,61.46,Telephones,Phone services
Buckinghamshire Council ,30.06.2023,26.06.2023,Children's Services,Education & Childrens Services - CS Dir,SCOTTISH POWER,843.76,0,843.76,Accomodation Costs,Fuel dealers
Buckinghamshire Council ,30.06.2023,26.06.2023,Children's Services,Education & Childrens Services - CS Dir,PRESTIG*EFLOWERS,31.48,0,31.48,Other Employees Expenses,Florists
Buckinghamshire Council ,30.06.2023,26.06.2023,Children's Services,Education & Childrens Services - CS Dir,PRESTIG*EFLOWERS,26.48,0,26.48,Other Employees Expenses,Florists
Buckinghamshire Council ,30.06.2023,26.06.2023,Resources,AH&R - Res Dir,HIGH STREET VOUCHERS,100,0,100,Other Employees Expenses,Department stores
Buckinghamshire Council ,30.06.2023,26.06.2023,Children's Services,Education & Childrens Services - CS Dir,AMAZON.CO.UK,262.97,0,262.97,IT Equipment Purchase,Direct sales companies
Buckinghamshire Council ,30.06.2023,26.06.2023,Children's Services,Education & Childrens Services - CS Dir,HARTWELL RIDING STABLE,250,0,250,Miscellaneous (Other)  Expenses,Schools
Buckinghamshire Council ,30.06.2023,26.06.2023,Children's Services,Education & Childrens Services - CS Dir,BUCKINGHAMSHIRE CNCL,11,0,11,Sec 20/31: Specialist Services,Government services
Buckinghamshire Council ,30.06.2023,26.06.2023,Children's Services,Education & Childrens Services - CS Dir,WWW.LINCOLNSHIRE,11,0,11,Sec 20/31: Specialist Services,Government services
Buckinghamshire Council ,30.06.2023,26.06.2023,Children's Services,Education & Childrens Services - CS Dir,WWW.EALING.GOV.UK,19.5,0,19.5,Sec 20/31: Specialist Services,Government services
Buckinghamshire Council ,30.06.2023,26.06.2023,Children's Services,Education & Childrens Services - CS Dir,GEN REGISTER OFFICE,28,0,28,Sec 20/31: Specialist Services,Government services
Buckinghamshire Council ,30.06.2023,26.06.2023,Children's Services,Education & Childrens Services - CS Dir,WWW.ARGOS.CO.UK,10.99,0,10.99,Other Equipment and Materials,Department stores
Buckinghamshire Council ,30.06.2023,26.06.2023,Children's Services,Education & Childrens Services - CS Dir,AMFBOWLING.CO.UK,19.9,0,19.9,Sec 20/31: Financial Assistance,Bowling alleys
Buckinghamshire Council ,30.06.2023,26.06.2023,Children's Services,Education & Childrens Services - CS Dir,BAKER ROSS,57.6,0,57.6,Activities & General Recreation,Art & craft shops
Buckinghamshire Council ,30.06.2023,26.06.2023,Children's Services,Education & Childrens Services - CS Dir,AMZNMKTPLACE,26.26,0,26.26,Activities & General Recreation,Miscellaneous retail
Buckinghamshire Council ,30.06.2023,26.06.2023,Deputy Chief Executive,Leader - DCE,WP ENGINE,29.22,0,29.22,Computer Support Services,Computer network information services
Buckinghamshire Council ,30.06.2023,26.06.2023,Children's Services,Education & Childrens Services - CS Dir,ARGOS  AYLESBURY GATEHOU,63,0,63,Support for Foster Carers,Discount stores
Buckinghamshire Council ,30.06.2023,26.06.2023,Children's Services,Education & Childrens Services - CS Dir,WWW.JOHNLEWIS.COM,100,0,100,Support for Foster Carers,Department stores
Buckinghamshire Council ,30.06.2023,26.06.2023,Children's Services,Education & Childrens Services - CS Dir,WALMARTCANADAGC-BUYA,61.5,0,61.5,Leaving Care  - Financial Assistance,"Gift, card & novelty shops"
Buckinghamshire Council ,30.06.2023,26.06.2023,Adults and Health,Health & Wellbeing - Adults & Health Dir,ICELAND FOODS,-2.6,0,-2.6,General Provisions (Food),Grocery stores
Buckinghamshire Council ,30.06.2023,26.06.2023,,,IKEA LTD SHOP ONLINE,357,0,357,Purchase of Furniture,Furniture & home furnishing
Buckinghamshire Council ,30.06.2023,26.06.2023,Resources,AH&R - Res Dir,POST OFFICE COUNTER,25,0,25,Other Employees Expenses,Postal services
Buckinghamshire Council ,30.06.2023,26.06.2023,Resources,AH&R - Res Dir,COSTA COFFEE 43010475,20,0,20,Other Employees Expenses,Fast food restaurants
Buckinghamshire Council ,30.06.2023,26.06.2023,Resources,AH&R - Res Dir,AMZNMKTPLACE,73.06,0,73.06,Stationery & Office Supplies,Miscellaneous retail
Buckinghamshire Council ,30.06.2023,26.06.2023,Resources,AH&R - Res Dir,WWW.LABWORLD.CO.UK,31.33,0,31.33,Medical Supplies & Services inc Vet'nary,"Laboratory, medical & hospital equipment"
Buckinghamshire Council ,30.06.2023,26.06.2023,Children's Services,Education & Childrens Services - CS Dir,PARTICIPANT UK LTD,354,0,354,Computer Support Services,Computer network information services
Buckinghamshire Council ,30.06.2023,26.06.2023,Adults and Health,Health & Wellbeing - Adults & Health Dir,TESCO STORES 5135,101.89,0,101.89,General Provisions (Food),Grocery stores
Buckinghamshire Council ,30.06.2023,26.06.2023,Adults and Health,Health & Wellbeing - Adults & Health Dir,NEALES TAXIS LTD,196,0,196,Staff Travelling Expenses,Taxicabs & limousines
Buckinghamshire Council ,30.06.2023,26.06.2023,Communities,Culture & Leisure - Communities Dir,WWW.FLAGSANDFLAGPOLES.,88.2,0,88.2,Printing & Stationery,Publishing & printing services
Buckinghamshire Council ,30.06.2023,26.06.2023,Communities,Climate Change & Environment - Community,PAYPAL,33,0,33,Advertising,Advertising services
Buckinghamshire Council ,30.06.2023,26.06.2023,Deputy Chief Executive,Communities - DCE,GAILS GERRARDS CROSS,3.9,0,3.9,Subsistence,Restaurants
Buckinghamshire Council ,30.06.2023,26.06.2023,"Planning, Growth & Sustainability",Leader - PGS,1 AND 1 IONOS LTD,36.14,0,36.14,Computer Support Services,Computer network information services
Buckinghamshire Council ,30.06.2023,26.06.2023,Deputy Chief Executive,AH&R- DCE Dir,PAYPAL,318.95,0,318.95,Miscellaneous (Other)  Expenses,Variety stores
Buckinghamshire Council ,30.06.2023,25.06.2023,Children's Services,Education & Childrens Services - CS Dir,AMZNMKTPLACE,22.99,0,22.99,Leaving Care - Grants for Care Leavers,Miscellaneous retail
Buckinghamshire Council ,30.06.2023,25.06.2023,Deputy Chief Executive,Communities - DCE,WWW.ARGOS.CO.UK,-105.95,0,-105.95,Other Personal Needs,Department stores
Buckinghamshire Council ,30.06.2023,25.06.2023,Deputy Chief Executive,Communities - DCE,AO RETAIL LIMITED,-20,0,-20,Other Personal Needs,Household appliance stores
Buckinghamshire Council ,30.06.2023,25.06.2023,Adults and Health,Health & Wellbeing - Adults & Health Dir,AMAZON.CO.UK,241.38,0,241.38,Catering & Domestic Equipment,Direct sales companies
Buckinghamshire Council ,30.06.2023,25.06.2023,Adults and Health,Health & Wellbeing - Adults & Health Dir,AMZNMKTPLACE,168.1,0,168.1,Catering & Domestic Equipment,Miscellaneous retail
Buckinghamshire Council ,30.06.2023,25.06.2023,Adults and Health,Health & Wellbeing - Adults & Health Dir,AMZNMKTPLACE,18.98,0,18.98,Health & Safety Supplies & Services,Miscellaneous retail
Buckinghamshire Council ,30.06.2023,25.06.2023,Communities,Culture & Leisure - Communities Dir,AMZNMKTPLACE,29.99,0,29.99,Events Expenditure,Miscellaneous retail
Buckinghamshire Council ,30.06.2023,25.06.2023,Deputy Chief Executive,AH&R- DCE Dir,MARKS&SPENCER PLC SF,25.35,0,25.35,Awaiting Coding,Grocery stores
Buckinghamshire Council ,30.06.2023,25.06.2023,Communities,Climate Change & Environment - Community,PAYPAL,34.56,0,34.56,Advertising,Advertising services
Buckinghamshire Council ,30.06.2023,25.06.2023,Children's Services,Education & Childrens Services - CS Dir,RIVENDELL STUDIOS,316,0,316,"Rents, Wayleaves & Hire of Premises","Hotels, motels & resorts"
Buckinghamshire Council ,30.06.2023,25.06.2023,Deputy Chief Executive,Leader - DCE,FACEBK *HN73QN7G22,9.52,0,9.52,Advertising,Advertising services
Buckinghamshire Council ,30.06.2023,25.06.2023,Deputy Chief Executive,Leader - DCE,FACEBK NW5D6RFQN2,840,0,840,Advertising,Advertising services
Buckinghamshire Council ,30.06.2023,25.06.2023,Communities,ommunities - Trust Accounts,COSTCO WHOLESALE #102,48.78,0,48.78,Stationery & Office Supplies,Buying & shopping services/clubs
Buckinghamshire Council ,30.06.2023,24.06.2023,Adults and Health,Health & Wellbeing - Adults & Health Dir,AMAZON.CO.UK,14.17,0,14.17,Stationery & Office Supplies,Direct sales companies
Buckinghamshire Council ,30.06.2023,24.06.2023,Deputy Chief Executive,Communities - DCE,AO RETAIL LIMITED,20,0,20,Other Personal Needs,Household appliance stores
Buckinghamshire Council ,30.06.2023,24.06.2023,Deputy Chief Executive,Communities - DCE,RINGGO PARKING,3.9,0,3.9,Staff Travelling Expenses,Car parking & garages
Buckinghamshire Council ,30.06.2023,24.06.2023,Communities,Culture & Leisure - Communities Dir,WWW.E-BADGES.NET,31.8,6.36,38.16,Administrative Equipment & Tools,Misc. general merchandise
Buckinghamshire Council ,30.06.2023,24.06.2023,Communities,Housing & Homelessness & Regulatory Comm,BRITISH GAS OTP,10.63,0,10.63,Gas,Utilities
Buckinghamshire Council ,30.06.2023,24.06.2023,Deputy Chief Executive,Communities - DCE,RINGGO PARKING,2.6,0,2.6,Staff Travelling Expenses,Car parking & garages
Buckinghamshire Council ,30.06.2023,24.06.2023,Communities,Climate Change & Environment - Community,PAYPAL,33,0,33,Advertising,Advertising services
Buckinghamshire Council ,30.06.2023,24.06.2023,Children's Services,Education & Childrens Services - CS Dir,WWW.ARGOS.CO.UK,-45,0,-45,Leaving Care - Grants for Care Leavers,Department stores
Buckinghamshire Council ,30.06.2023,24.06.2023,Communities,Transport - Communities Dir,ISTRUCTE LTD,92.96,0,92.96,"Books, Records, Films & Oth Publications",Newspapers / newsagents
Buckinghamshire Council ,30.06.2023,24.06.2023,Deputy Chief Executive,Communities - DCE,PARKING-MOUNT,2.6,0,2.6,Staff Travelling Expenses,Car parking & garages
Buckinghamshire Council ,30.06.2023,24.06.2023,Adults and Health,Health & Wellbeing - Adults & Health Dir,ICELAND FOODS,69.68,0,69.68,General Provisions (Food),Grocery stores
Buckinghamshire Council ,30.06.2023,23.06.2023,Children's Services,Education & Childrens Services - CS Dir,AMZNMKTPLACE,40.95,0,40.95,Activities & General Recreation,Miscellaneous retail
Buckinghamshire Council ,30.06.2023,23.06.2023,Adults and Health,Health & Wellbeing - Adults & Health Dir,AMZNMKTPLACE,39.98,0,39.98,Activities & General Recreation,Miscellaneous retail
Buckinghamshire Council ,30.06.2023,23.06.2023,Deputy Chief Executive,AH&R- DCE Dir,THE TAXI PEOPLE,30,0,30,Staff Travelling Expenses,Taxicabs & limousines
Buckinghamshire Council ,30.06.2023,23.06.2023,Deputy Chief Executive,AH&R- DCE Dir,PAYPAL,-374,0,-374,Miscellaneous (Other)  Expenses,Electronics shops
Buckinghamshire Council ,30.06.2023,23.06.2023,Communities,Culture & Leisure - Communities Dir,WF EDUCATION GROUP LTD,28.2,0,28.2,Medical Supplies & Services inc Vet'nary,"Laboratory, medical & hospital equipment"
Buckinghamshire Council ,30.06.2023,23.06.2023,"Planning, Growth & Sustainability",Housing & Homelessness & Regulatory PGS,ROYAL MAIL ONLINE SHOP,80,0,80,General Postage,Postal services
Buckinghamshire Council ,30.06.2023,23.06.2023,Children's Services,Education & Childrens Services - CS Dir,BUCKINGHAMSHIRE CNCL,11,0,11,Sec 17: Specialist Services,Government services
Buckinghamshire Council ,30.06.2023,23.06.2023,Children's Services,Education & Childrens Services - CS Dir,BUCKINGHAMSHIRE CNCL,35,0,35,Sec 17: Specialist Services,Government services
Buckinghamshire Council ,30.06.2023,23.06.2023,Deputy Chief Executive,Communities - DCE,AO RETAIL LIMITED,775.08,155.02,930.1,Other Personal Needs,Household appliance stores
Buckinghamshire Council ,30.06.2023,23.06.2023,Deputy Chief Executive,Communities - DCE,PAYPAL,43,0,43,Other Personal Needs,Variety stores
Buckinghamshire Council ,30.06.2023,23.06.2023,Deputy Chief Executive,Communities - DCE,WWW.ARGOS.CO.UK,219.12,43.83,262.95,Other Personal Needs,Department stores
Buckinghamshire Council ,30.06.2023,23.06.2023,Deputy Chief Executive,Communities - DCE,PAYPAL,272.95,0,272.95,Other Personal Needs,Variety stores
Buckinghamshire Council ,30.06.2023,23.06.2023,Deputy Chief Executive,Communities - DCE,AO RETAIL LIMITED,38.9,0,38.9,Other Personal Needs,Household appliance stores
Buckinghamshire Council ,30.06.2023,23.06.2023,Deputy Chief Executive,Communities - DCE,AO RETAIL LIMITED,542.58,108.52,651.1,Other Personal Needs,Household appliance stores
Buckinghamshire Council ,30.06.2023,23.06.2023,Deputy Chief Executive,Communities - DCE,AO RETAIL LIMITED,322.58,64.52,387.1,Other Personal Needs,Household appliance stores
Buckinghamshire Council ,30.06.2023,23.06.2023,Communities,Culture & Leisure - Communities Dir,VISTAPRINT,996.57,0,996.57,Events Expenditure,Misc business services
Buckinghamshire Council ,30.06.2023,23.06.2023,Deputy Chief Executive,Communities - DCE,WH SMITH MARLOW,24.34,0,24.34,"Books, Records, Films & Oth Publications",Newspapers / newsagents
Buckinghamshire Council ,30.06.2023,23.06.2023,Deputy Chief Executive,Communities - DCE,LIDL GB MARLOW,6.27,0,6.27,Marketing,Grocery stores
Buckinghamshire Council ,30.06.2023,23.06.2023,Deputy Chief Executive,Leader - DCE,NAPIER PARKING LTD TRA,10,0,10,Staff Travelling Expenses,Car parking & garages
Buckinghamshire Council ,30.06.2023,23.06.2023,Children's Services,Education & Childrens Services - CS Dir,NEALES TAXIS LTD,600,0,600,Staff Travelling Expenses,Taxicabs & limousines
Buckinghamshire Council ,30.06.2023,23.06.2023,Deputy Chief Executive,Communities - DCE,WWW.ARGOS.CO.UK,326.95,0,326.95,Other Personal Needs,Department stores
Buckinghamshire Council ,30.06.2023,23.06.2023,Deputy Chief Executive,Communities - DCE,AO RETAIL LIMITED,731.65,146.33,877.98,Other Personal Needs,Household appliance stores
Buckinghamshire Council ,30.06.2023,23.06.2023,Deputy Chief Executive,Communities - DCE,AO RETAIL LIMITED,0.02,0,0.02,Other Personal Needs,Household appliance stores
Buckinghamshire Council ,30.06.2023,23.06.2023,Deputy Chief Executive,Communities - DCE,AO RETAIL LIMITED,224.15,44.83,268.98,Other Personal Needs,Household appliance stores
Buckinghamshire Council ,30.06.2023,23.06.2023,Deputy Chief Executive,Communities - DCE,AO RETAIL LIMITED,0.02,0,0.02,Other Personal Needs,Household appliance stores
Buckinghamshire Council ,30.06.2023,23.06.2023,Children's Services,Education & Childrens Services - CS Dir,BUCKINGHAM HOTELS,"1,890.00",0,"1,890.00",Sec 17: Accommodation,"Hotels, motels & resorts"
Buckinghamshire Council ,30.06.2023,23.06.2023,Children's Services,Education & Childrens Services - CS Dir,BUCKINGHAM HOTELS,"1,890.00",0,"1,890.00",Sec 17: Accommodation,"Hotels, motels & resorts"
Buckinghamshire Council ,30.06.2023,23.06.2023,Children's Services,Education & Childrens Services - CS Dir,BUCKINGHAM HOTELS,270,0,270,Sec 17: Accommodation,"Hotels, motels & resorts"
Buckinghamshire Council ,30.06.2023,23.06.2023,Children's Services,Education & Childrens Services - CS Dir,TRAVELODGE GB0000,323.81,0,323.81,Sec 17: Accommodation,Travelodge
Buckinghamshire Council ,30.06.2023,23.06.2023,Resources,AH&R - Res Dir,GEN REGISTER OFFICE,14,0,14,Miscellaneous (Other)  Expenses,Government services
Buckinghamshire Council ,30.06.2023,23.06.2023,Children's Services,Education & Childrens Services - CS Dir,WM MORRISONS STORE,8.8,0,8.8,General Postage,Grocery stores
Buckinghamshire Council ,30.06.2023,23.06.2023,Communities,Transport - Communities Dir,CHESHAM WATER MEADOW,0.8,0,0.8,Repair and Maintenance of Equipment,Car parking & garages
Buckinghamshire Council ,30.06.2023,23.06.2023,Communities,artnerships - Communities,AMZNMKTPLACE,24.24,0,24.24,Equipment,Miscellaneous retail
Buckinghamshire Council ,30.06.2023,23.06.2023,"Planning, Growth & Sustainability",AH&R - PGS Dir,AMZNMKTPLACE,484,0,484,General Repairs & Maintenance,Miscellaneous retail
Buckinghamshire Council ,30.06.2023,23.06.2023,"Planning, Growth & Sustainability",AH&R - PGS Dir,THE TYRE STORE AYLESBURY,100,0,100,General Repairs & Maintenance,Automotive tyres
Buckinghamshire Council ,30.06.2023,23.06.2023,Children's Services,Education & Childrens Services - CS Dir,GREAT MISSENDEN STATIO,47.25,0,47.25,YOS - Travelling Expenses,Passenger railways
Buckinghamshire Council ,30.06.2023,23.06.2023,Children's Services,Education & Childrens Services - CS Dir,ASDA STORES LTD,75,0,75,Miscellaneous (Other)  Expenses,Grocery stores
Buckinghamshire Council ,30.06.2023,23.06.2023,Resources,AH&R - Res Dir,WWW.CPAG.ORG.UK,330,0,330,Training (Inc. Health & Safety Courses),Charitable organisations
Buckinghamshire Council ,30.06.2023,23.06.2023,Communities,Culture & Leisure - Communities Dir,AMZNMktplace,8.98,0,8.98,Awaiting Coding,Miscellaneous retail
Buckinghamshire Council ,30.06.2023,23.06.2023,Deputy Chief Executive,AH&R- DCE Dir,B & Q 1124,66.73,0,66.73,Awaiting Coding,Home supply warehouse stores
Buckinghamshire Council ,30.06.2023,23.06.2023,Children's Services,Education & Childrens Services - CS Dir,AMAZON.CO.UK,262.97,0,262.97,IT Equipment Purchase,Direct sales companies
Buckinghamshire Council ,30.06.2023,23.06.2023,Children's Services,Education & Childrens Services - CS Dir,PRIME VIDEO,3.49,0,3.49,Out of Hours Standby Allowance,Record shops
Buckinghamshire Council ,30.06.2023,23.06.2023,Children's Services,Education & Childrens Services - CS Dir,LONDON BOROUGH OF EALI,-19.5,0,-19.5,Sec 20/31: Specialist Services,Government services
Buckinghamshire Council ,30.06.2023,23.06.2023,Children's Services,Education & Childrens Services - CS Dir,BUCKINGHAMSHIRE CNCL,11,0,11,Sec 17: Financial Assistance One Off,Government services
Buckinghamshire Council ,30.06.2023,23.06.2023,Children's Services,Education & Childrens Services - CS Dir,BUCKINGHAMSHIRE CNCL,11,0,11,Sec 17: Financial Assistance One Off,Government services
Buckinghamshire Council ,30.06.2023,23.06.2023,Children's Services,Education & Childrens Services - CS Dir,GEN REGISTER OFFICE,11,0,11,Sec 20/31: Financial Assistance One Off,Government services
Buckinghamshire Council ,30.06.2023,23.06.2023,Children's Services,Education & Childrens Services - CS Dir,BUCKINGHAMSHIRE CNCL,11,0,11,Sec 17: Financial Assistance One Off,Government services
Buckinghamshire Council ,30.06.2023,23.06.2023,Children's Services,Education & Childrens Services - CS Dir,NEALES TAXIS LTD,104.15,20.83,124.98,Sec 20/31: Transport,Taxicabs & limousines
Buckinghamshire Council ,30.06.2023,23.06.2023,Children's Services,Education & Childrens Services - CS Dir,NEALES TAXIS LTD,0.02,0,0.02,Sec 20/31: Transport,Taxicabs & limousines
Buckinghamshire Council ,30.06.2023,23.06.2023,Communities,Climate Change & Environment - Community,PAYPAL,33,0,33,Advertising,Advertising services
Buckinghamshire Council ,30.06.2023,23.06.2023,Communities,Culture & Leisure - Communities Dir,EURO CAR PARTS P,50.4,10.08,60.48,Repair & Maint of Vehicles & Plant,Automotive parts & accessories
Buckinghamshire Council ,30.06.2023,23.06.2023,"Planning, Growth & Sustainability",AH&R - PGS Dir,ASDA SUPERSTORE,12.4,0,12.4,General Provisions (Food),Grocery stores
Buckinghamshire Council ,30.06.2023,23.06.2023,Children's Services,Education & Childrens Services - CS Dir,VOUCHER EXPRESS,150,0,150,General Allowances,Misc business services
Buckinghamshire Council ,30.06.2023,23.06.2023,Children's Services,Education & Childrens Services - CS Dir,AMAZON.CO.UK,100,0,100,General Allowances,Direct sales companies
Buckinghamshire Council ,30.06.2023,23.06.2023,Children's Services,Education & Childrens Services - CS Dir,VOUCHER EXPRESS,400,0,400,General Allowances,Misc business services
Buckinghamshire Council ,30.06.2023,23.06.2023,Children's Services,Education & Childrens Services - CS Dir,SAINSBURY S S/MKTS,8,0,8,Other Equipment and Materials,Grocery stores
Buckinghamshire Council ,30.06.2023,23.06.2023,Children's Services,Education & Childrens Services - CS Dir,LINKEDIN ADS 9169119904,20.34,0,20.34,Advertising,Advertising services
Buckinghamshire Council ,30.06.2023,23.06.2023,Deputy Chief Executive,Leader - DCE,TIMES NEWSPAPERS LTD,26,0,26,"Books, Records, Films & Oth Publications","Books, periodicals & newspapers"
Buckinghamshire Council ,30.06.2023,23.06.2023,Deputy Chief Executive,Leader - DCE,TELEGRAPH SUBSCRIPTION,0.5,0,0.5,Stationery & Office Supplies,Continuous subscriptions
Buckinghamshire Council ,30.06.2023,23.06.2023,Children's Services,Education & Childrens Services - CS Dir,ST JOHN AMBULANCE,-180,0,-180,Training (Inc. Health & Safety Courses),Charitable organisations
Buckinghamshire Council ,30.06.2023,23.06.2023,Children's Services,Education & Childrens Services - CS Dir,ST JOHN AMBULANCE,-180,0,-180,Training (Inc. Health & Safety Courses),Charitable organisations
Buckinghamshire Council ,30.06.2023,23.06.2023,Children's Services,Education & Childrens Services - CS Dir,AMZNMKTPLACE,39.99,0,39.99,Leaving Care - Grants for Care Leavers,Miscellaneous retail
Buckinghamshire Council ,30.06.2023,23.06.2023,Children's Services,Education & Childrens Services - CS Dir,HM PASSPORT OFFICE,58.5,0,58.5,Sec 20/31: Specialist Services,Government services
Buckinghamshire Council ,30.06.2023,23.06.2023,Children's Services,Education & Childrens Services - CS Dir,HM PASSPORT OFFICE,58.5,0,58.5,Sec 20/31: Specialist Services,Government services
Buckinghamshire Council ,30.06.2023,23.06.2023,Children's Services,Education & Childrens Services - CS Dir,TAXIPAY,110,0,110,Sec 20/31: Transport,Taxicabs & limousines
Buckinghamshire Council ,30.06.2023,23.06.2023,Children's Services,Education & Childrens Services - CS Dir,TAXIPAY,110,0,110,Sec 20/31: Transport,Taxicabs & limousines
Buckinghamshire Council ,30.06.2023,23.06.2023,Communities,ommunities - Trust Accounts,LIDL GB SLOUGH,18.98,0,18.98,Awaiting Coding,Grocery stores
Buckinghamshire Council ,30.06.2023,23.06.2023,"Planning, Growth & Sustainability",Housing & Homelessness & Regulatory PGS,AMZNMKTPLACE,24.95,0,24.95,Furniture,Miscellaneous retail
Buckinghamshire Council ,30.06.2023,23.06.2023,"Planning, Growth & Sustainability",Housing & Homelessness & Regulatory PGS,AMZNMKTPLACE,129.65,0,129.65,Furniture,Miscellaneous retail
Buckinghamshire Council ,30.06.2023,23.06.2023,Resources,AH&R - Res Dir,LINKEDIN ADS,19.14,0,19.14,Permanent Recruitment Costs,Advertising services
Buckinghamshire Council ,30.06.2023,23.06.2023,Resources,AH&R - Res Dir,TEAMGANTT,47.9,0,47.9,Computer Consumables,"Computers, peripherals & software"
Buckinghamshire Council ,30.06.2023,23.06.2023,Children's Services,Education & Childrens Services - CS Dir,EA DIGITICKETS CORAL REEF,13.45,0,13.45,Activities & General Recreation,Tourist attractions and exhibitions
Buckinghamshire Council ,30.06.2023,23.06.2023,Children's Services,Education & Childrens Services - CS Dir,TRAINLINE.COM,66.14,0,66.14,Activities & General Recreation,Passenger railways
Buckinghamshire Council ,30.06.2023,23.06.2023,Children's Services,Education & Childrens Services - CS Dir,WWW.MEADOPENFARM.CO.UK,34.45,0,34.45,Activities & General Recreation,Tourist attractions and exhibitions
Buckinghamshire Council ,30.06.2023,23.06.2023,Resources,AH&R - Res Dir,OnBuy.com,15.01,0,15.01,Awaiting Coding,
Buckinghamshire Council ,30.06.2023,23.06.2023,"Planning, Growth & Sustainability",Housing & Homelessness & Regulatory PGS,JAYNE RICHARDS FLOWERS,46,0,46,Other General Office Expenses,Florist supplies & nursery stock
Buckinghamshire Council ,30.06.2023,23.06.2023,Resources,AH&R - Res Dir,ARRIVA UK BUS,28.6,0,28.6,Staff Travelling Expenses,"Buses, charter & tour"
Buckinghamshire Council ,30.06.2023,23.06.2023,Resources,AH&R - Res Dir,AMAZON.CO.UK,100,0,100,Other Employees Expenses,Direct sales companies
Buckinghamshire Council ,30.06.2023,23.06.2023,Communities,Climate Change & Environment - Community,OMNI-TECH ELECTRONICS,354,0,354,Repair & Maint of Vehicles & Plant,"Radio, TV & stereo repairs"
Buckinghamshire Council ,30.06.2023,23.06.2023,Children's Services,Education & Childrens Services - CS Dir,POST OFFICE COUNTER,8.8,0,8.8,General Postage,Postal services
Buckinghamshire Council ,30.06.2023,23.06.2023,Adults and Health,Health & Wellbeing - Adults & Health Dir,TRAVELODGE GB0000,531.96,0,531.96,Other Short Term Support,Travelodge
Buckinghamshire Council ,30.06.2023,23.06.2023,Communities,Culture & Leisure - Communities Dir,SP BUNTING WAREHOUSE,352.5,0,352.5,Computer Consumables,Computer software stores
Buckinghamshire Council ,30.06.2023,23.06.2023,Children's Services,Education & Childrens Services - CS Dir,UK CARS (HIGH WYCOMBE) LT,"1,000.00",200,"1,200.00",Sec 20/31: Transport,Taxicabs & limousines
Buckinghamshire Council ,30.06.2023,23.06.2023,Children's Services,Education & Childrens Services - CS Dir,NEW LOOK INTERNET,134.98,0,134.98,Awaiting Coding,Womens clothes shops
Buckinghamshire Council ,30.06.2023,22.06.2023,Adults and Health,Health & Wellbeing - Adults & Health Dir,AMZNMKTPLACE,54.57,0,54.57,Security & Safety Supplies & Equipment,Miscellaneous retail
Buckinghamshire Council ,30.06.2023,22.06.2023,"Planning, Growth & Sustainability",Housing & Homelessness & Regulatory PGS,LAND REGISTRY ECOM CCC,3,0,3,Homelessness,Government services
Buckinghamshire Council ,30.06.2023,22.06.2023,Deputy Chief Executive,Communities - DCE,AO RETAIL LIMITED,254.15,50.83,304.98,Other Personal Needs,Household appliance stores
Buckinghamshire Council ,30.06.2023,22.06.2023,Deputy Chief Executive,Communities - DCE,AO RETAIL LIMITED,0.02,0,0.02,Other Personal Needs,Household appliance stores
Buckinghamshire Council ,30.06.2023,22.06.2023,Deputy Chief Executive,Communities - DCE,WWW.ARGOS.CO.UK,167.45,33.49,200.94,Other Personal Needs,Department stores
Buckinghamshire Council ,30.06.2023,22.06.2023,Deputy Chief Executive,Communities - DCE,WWW.ARGOS.CO.UK,0.01,0,0.01,Other Personal Needs,Department stores
Buckinghamshire Council ,30.06.2023,22.06.2023,Deputy Chief Executive,Communities - DCE,WWW.ARGOS.CO.UK,81.2,16.25,97.45,Other Personal Needs,Department stores
Buckinghamshire Council ,30.06.2023,22.06.2023,Deputy Chief Executive,Communities - DCE,WWW.ARGOS.CO.UK,59.1,11.82,70.92,Other Personal Needs,Department stores
Buckinghamshire Council ,30.06.2023,22.06.2023,Deputy Chief Executive,Communities - DCE,WWW.ARGOS.CO.UK,0.03,0,0.03,Other Personal Needs,Department stores
Buckinghamshire Council ,30.06.2023,22.06.2023,Children's Services,Education & Childrens Services - CS Dir,VESTA VODAFONE TOPUP,15,0,15,Sec 20/31: Financial Assistance One Off,Phone services
Buckinghamshire Council ,30.06.2023,22.06.2023,"Planning, Growth & Sustainability",Climate Change & Environment - PGS,TRAINLINE.COM,133.41,0,133.41,Staff Travelling Expenses,Passenger railways
Buckinghamshire Council ,30.06.2023,22.06.2023,"Planning, Growth & Sustainability",Climate Change & Environment - PGS,TRAINLINE.COM,53.26,0,53.26,Staff Travelling Expenses,Passenger railways
Buckinghamshire Council ,30.06.2023,22.06.2023,"Planning, Growth & Sustainability",Climate Change & Environment - PGS,TRAINLINE,24.64,0,24.64,Staff Travelling Expenses,Passenger railways
Buckinghamshire Council ,30.06.2023,22.06.2023,Resources,AH&R - Res Dir,QUADIENT UK LTD,863.52,0,863.52,Stationery & Office Supplies,Stationery & office supplies
Buckinghamshire Council ,30.06.2023,22.06.2023,Children's Services,Education & Childrens Services - CS Dir,HM PASSPORT OFFICE,87.5,0,87.5,Sec 20/31: Specialist Services,Government services
Buckinghamshire Council ,30.06.2023,22.06.2023,Children's Services,Education & Childrens Services - CS Dir,TRAVELODGE GB0000,70.87,0,70.87,"Courses, Conference and Seminar Fees",Travelodge
Buckinghamshire Council ,30.06.2023,22.06.2023,Children's Services,Education & Childrens Services - CS Dir,TRAINLINE,164.17,0,164.17,Staff Travelling Expenses,Passenger railways
Buckinghamshire Council ,30.06.2023,22.06.2023,Children's Services,Education & Childrens Services - CS Dir,FREEDOM PROGRAMME LIMITED,12,0,12,Sec 17: Financial Assistance One Off,Schools
Buckinghamshire Council ,30.06.2023,22.06.2023,Communities,Transport - Communities Dir,PHONE STAR,30,0,30,Materials,Phone equipment & sales
Buckinghamshire Council ,30.06.2023,22.06.2023,Communities,Transport - Communities Dir,SAINSBURYS S/MKTS,7,0,7,Materials,Grocery stores
Buckinghamshire Council ,30.06.2023,22.06.2023,Adults and Health,Health & Wellbeing - Adults & Health Dir,SAINSBURYS S/MKTS,41.5,0,41.5,Activities & General Recreation,Grocery stores
Buckinghamshire Council ,30.06.2023,22.06.2023,Adults and Health,Health & Wellbeing - Adults & Health Dir,SAINSBURY'S S/MKT,29.6,0,29.6,General Postage,Grocery stores
Buckinghamshire Council ,30.06.2023,22.06.2023,"Planning, Growth & Sustainability",AH&R - PGS Dir,AMZNMKTPLACE,242,0,242,General Repairs & Maintenance,Miscellaneous retail
Buckinghamshire Council ,30.06.2023,22.06.2023,Communities,Culture & Leisure - Communities Dir,TESCO STORES 2640,16.73,0,16.73,Administrative Equipment & Tools,Grocery stores
Buckinghamshire Council ,30.06.2023,22.06.2023,"Planning, Growth & Sustainability",AH&R - PGS Dir,TESCO STORES 2020,16.25,0,16.25,Purchase.of Refreshments and Food,Grocery stores
Buckinghamshire Council ,30.06.2023,22.06.2023,Communities,Housing & Homelessness & Regulatory Comm,CBCE CONFERENCE,594,0,594,Professional Services (non curriculum) - External,Consultants & public relation services
Buckinghamshire Council ,30.06.2023,22.06.2023,Children's Services,Education & Childrens Services - CS Dir,TESCO STORES 2020,90.65,0,90.65,Activities & General Recreation,Grocery stores
Buckinghamshire Council ,30.06.2023,22.06.2023,Deputy Chief Executive,Leader - DCE,SLI DO,144,0,144,Computer Consumables,Computer software stores
Buckinghamshire Council ,30.06.2023,22.06.2023,Deputy Chief Executive,Communities - DCE,ZETTLE_*CHILTERN VELO LTD,7.2,0,7.2,General Provisions (Food),Restaurants
Buckinghamshire Council ,30.06.2023,22.06.2023,Communities,Culture & Leisure - Communities Dir,AMZNMKTPLACE,8.29,1.66,9.95,Events Expenditure,Miscellaneous retail
Buckinghamshire Council ,30.06.2023,22.06.2023,Communities,Culture & Leisure - Communities Dir,AMZNMKTPLACE,4.15,0.83,4.98,Events Expenditure,Miscellaneous retail
Buckinghamshire Council ,30.06.2023,22.06.2023,Communities,Culture & Leisure - Communities Dir,AMZNMKTPLACE,0.01,0,0.01,Events Expenditure,Miscellaneous retail
Buckinghamshire Council ,30.06.2023,22.06.2023,Children's Services,artnerships - Children's Services,LIDL GB OAKFIELD ROAD,8.15,0,8.15,"Courses, Conference and Seminar Fees",Grocery stores
Buckinghamshire Council ,30.06.2023,22.06.2023,Children's Services,Education & Childrens Services - CS Dir,CARD FACTORY,4.4,0,4.4,Other Equipment and Materials,"Gift, card & novelty shops"
Buckinghamshire Council ,30.06.2023,22.06.2023,Children's Services,Education & Childrens Services - CS Dir,WM MORRISONS STORE,21.64,0,21.64,Other Equipment and Materials,Grocery stores
Buckinghamshire Council ,30.06.2023,22.06.2023,Children's Services,Education & Childrens Services - CS Dir,MARKS&SPENCER PLC SACA,13.2,0,13.2,Other Equipment and Materials,Grocery stores
Buckinghamshire Council ,30.06.2023,22.06.2023,Children's Services,Education & Childrens Services - CS Dir,HOBBYCRAFT,37.5,0,37.5,Other Equipment and Materials,Art & craft shops
Buckinghamshire Council ,30.06.2023,22.06.2023,Resources,AH&R - Res Dir,VOUCHER EXPRESS,250,0,250,Awaiting Coding,Misc business services
Buckinghamshire Council ,30.06.2023,22.06.2023,Children's Services,Education & Childrens Services - CS Dir,BUCKINGHAMSHIRE CNCL,11,0,11,Sec 20/31: Financial Assistance One Off,Government services
Buckinghamshire Council ,30.06.2023,22.06.2023,Adults and Health,Health & Wellbeing - Adults & Health Dir,TRAVELODGE GB0000,"1,231.86",0,"1,231.86",Other Short Term Support,Travelodge
Buckinghamshire Council ,30.06.2023,22.06.2023,Communities,Climate Change & Environment - Community,HIPPOPRINT,53.94,0,53.94,Waste Prevention costs,Publishing & printing services
Buckinghamshire Council ,30.06.2023,22.06.2023,Communities,Climate Change & Environment - Community,AMZNMKTPLACE,29.49,0,29.49,Waste Prevention costs,Miscellaneous retail
Buckinghamshire Council ,30.06.2023,22.06.2023,,,AMZNMKTPLACE,59.68,11.94,71.62,Purchase of Other Items,Miscellaneous retail
Buckinghamshire Council ,30.06.2023,22.06.2023,Children's Services,Education & Childrens Services - CS Dir,AMZNMKTPLACE,24.98,0,24.98,Support for Foster Carers,Miscellaneous retail
Buckinghamshire Council ,30.06.2023,22.06.2023,Children's Services,Education & Childrens Services - CS Dir,ASDA SUPERSTORE,6.3,0,6.3,General Provisions (Food),Grocery stores
Buckinghamshire Council ,30.06.2023,22.06.2023,Children's Services,Education & Childrens Services - CS Dir,ALDI 110 775,10.21,0,10.21,Awaiting Coding,Grocery stores
Buckinghamshire Council ,30.06.2023,22.06.2023,Deputy Chief Executive,AH&R- DCE Dir,TRAINLINE.COM,113.29,0,113.29,"Courses, Conference and Seminar Fees",Passenger railways
Buckinghamshire Council ,30.06.2023,22.06.2023,Children's Services,Education & Childrens Services - CS Dir,TAXIPAY,25,0,25,Leaving Care - Transport,Taxicabs & limousines
Buckinghamshire Council ,30.06.2023,22.06.2023,Children's Services,Education & Childrens Services - CS Dir,WALMARTCANADAGC-BUYA,61.37,0,61.37,Leaving Care  - Financial Assistance,"Gift, card & novelty shops"
Buckinghamshire Council ,30.06.2023,22.06.2023,Adults and Health,Health & Wellbeing - Adults & Health Dir,AMZNMKTPLACE,118.95,0,118.95,Activities & General Recreation,Miscellaneous retail
Buckinghamshire Council ,30.06.2023,22.06.2023,Children's Services,Education & Childrens Services - CS Dir,AMZNMKTPLACE,134.97,0,134.97,Furniture,Miscellaneous retail
Buckinghamshire Council ,30.06.2023,22.06.2023,Children's Services,Education & Childrens Services - CS Dir,DISTANCELEARNINGCENTRE,354,0,354,Health & Safety Supplies & Services,Schools
Buckinghamshire Council ,30.06.2023,22.06.2023,Resources,AH&R - Res Dir,ROPESDIRECT.CO.UK,66.3,0,66.3,Awaiting Coding,"Hobby, toy & game shops"
Buckinghamshire Council ,30.06.2023,22.06.2023,Resources,AH&R - Res Dir,SP ASTRA CASES UK,33.49,0,33.49,Awaiting Coding,Miscellaneous retail
Buckinghamshire Council ,30.06.2023,22.06.2023,Communities,Climate Change & Environment - Community,WWW.HIGHFIELDQUALIFICA,64.8,0,64.8,Health & Safety Supplies & Services,Vocational & trade schools
Buckinghamshire Council ,30.06.2023,22.06.2023,Communities,Climate Change & Environment - Community,DVLA DRIVERS TACHOGRAPH W,32,0,32,Repair & Maint of Vehicles & Plant,Government services
Buckinghamshire Council ,30.06.2023,22.06.2023,Adults and Health,Health & Wellbeing - Adults & Health Dir,AMAZON.CO.UK,24.97,0,24.97,Stationery & Office Supplies,Direct sales companies
Buckinghamshire Council ,30.06.2023,22.06.2023,Deputy Chief Executive,AH&R- DCE Dir,PAYPAL,383.33,76.67,460,Miscellaneous (Other)  Expenses,Electronics shops
Buckinghamshire Council ,30.06.2023,22.06.2023,Deputy Chief Executive,AH&R- DCE Dir,PAYPAL,442.87,88.58,531.45,Miscellaneous (Other)  Expenses,Variety stores
Buckinghamshire Council ,30.06.2023,22.06.2023,Deputy Chief Executive,Communities - DCE,PAYPAL,265.79,53.16,318.95,Other Personal Needs,Variety stores
Buckinghamshire Council ,30.06.2023,22.06.2023,Deputy Chief Executive,Communities - DCE,PAYPAL,33.33,6.67,40,Other Personal Needs,Variety stores
Buckinghamshire Council ,30.06.2023,22.06.2023,Children's Services,Education & Childrens Services - CS Dir,PREMIER INN,80.4,16.08,96.48,Sec 20/31: Specialist Services,Premier Inn
Buckinghamshire Council ,30.06.2023,22.06.2023,Children's Services,Education & Childrens Services - CS Dir,PREMIER INN,0.02,0,0.02,Sec 20/31: Specialist Services,Premier Inn
Buckinghamshire Council ,30.06.2023,22.06.2023,Children's Services,Education & Childrens Services - CS Dir,TRAVELODGE BAR CAFE LO,25.9,0,25.9,Sec 17: Accommodation,Travelodge
Buckinghamshire Council ,30.06.2023,22.06.2023,Communities,Culture & Leisure - Communities Dir,FIREPROTECT,43.98,8.8,52.78,Health & Safety Supplies & Services,Electronics shops
Buckinghamshire Council ,30.06.2023,22.06.2023,Children's Services,Education & Childrens Services - CS Dir,TRAINLINE,-149.2,0,-149.2,Staff Travelling Expenses,Passenger railways
Buckinghamshire Council ,30.06.2023,22.06.2023,"Planning, Growth & Sustainability",Climate Change & Environment - PGS,TRAINLINE,-13.2,0,-13.2,Staff Travelling Expenses,Passenger railways
Buckinghamshire Council ,30.06.2023,21.06.2023,Children's Services,Education & Childrens Services - CS Dir,BRENT COUNCIL,11,0,11,Sec 20/31: Specialist Services,Government services
Buckinghamshire Council ,30.06.2023,21.06.2023,Deputy Chief Executive,Communities - DCE,PAYPAL,227.45,45.49,272.94,Other Personal Needs,Variety stores
Buckinghamshire Council ,30.06.2023,21.06.2023,Deputy Chief Executive,Communities - DCE,PAYPAL,0.01,0,0.01,Other Personal Needs,Variety stores
Buckinghamshire Council ,30.06.2023,21.06.2023,Deputy Chief Executive,Communities - DCE,PAYPAL,93.29,18.66,111.95,Other Personal Needs,Variety stores
Buckinghamshire Council ,30.06.2023,21.06.2023,Deputy Chief Executive,Communities - DCE,PAYPAL,552.45,110.49,662.94,Other Personal Needs,Variety stores
Buckinghamshire Council ,30.06.2023,21.06.2023,Deputy Chief Executive,Communities - DCE,PAYPAL,0.01,0,0.01,Other Personal Needs,Variety stores
Buckinghamshire Council ,30.06.2023,21.06.2023,Deputy Chief Executive,Communities - DCE,PAYPAL,146.65,29.33,175.98,Other Personal Needs,Variety stores
Buckinghamshire Council ,30.06.2023,21.06.2023,Deputy Chief Executive,Communities - DCE,PAYPAL,0.02,0,0.02,Other Personal Needs,Variety stores
Buckinghamshire Council ,30.06.2023,21.06.2023,Deputy Chief Executive,Communities - DCE,PAYPAL,80.8,16.16,96.96,Other Personal Needs,Variety stores
Buckinghamshire Council ,30.06.2023,21.06.2023,Deputy Chief Executive,Communities - DCE,PAYPAL,0.04,0,0.04,Other Personal Needs,Variety stores
Buckinghamshire Council ,30.06.2023,21.06.2023,Deputy Chief Executive,Communities - DCE,PAYPAL,60.83,12.17,73,Other Personal Needs,Variety stores
Buckinghamshire Council ,30.06.2023,21.06.2023,Resources,AH&R - Res Dir,AMZNMKTPLACE,58.79,0,58.79,Marketing,Miscellaneous retail
Buckinghamshire Council ,30.06.2023,21.06.2023,"Planning, Growth & Sustainability",Planning & Regeneration - PGS,AMZNMKTPLACE,5.19,0,5.19,IT Equipment - Internal Leasing Costs,Miscellaneous retail
Buckinghamshire Council ,30.06.2023,21.06.2023,Children's Services,Education & Childrens Services - CS Dir,AMAZON.CO.UK,120.86,0,120.86,Sec 20/31: Specialist Services,Direct sales companies
Buckinghamshire Council ,30.06.2023,21.06.2023,"Planning, Growth & Sustainability",Housing & Homelessness & Regulatory PGS,ASDA SUPERSTORE,1.5,0,1.5,Other Employees Expenses,Grocery stores
Buckinghamshire Council ,30.06.2023,21.06.2023,Communities,Culture & Leisure - Communities Dir,AMZNMKTPLACE,62.37,0,62.37,Events Expenditure,Miscellaneous retail
Buckinghamshire Council ,30.06.2023,21.06.2023,Children's Services,Education & Childrens Services - CS Dir,THE OXFORDSHIRE TAXI COMP,275,0,275,Sec 17: Transport,Taxicabs & limousines
Buckinghamshire Council ,30.06.2023,21.06.2023,Deputy Chief Executive,Communities - DCE,WWW.ARGOS.CO.UK,235.79,47.16,282.95,Other Personal Needs,Department stores
Buckinghamshire Council ,30.06.2023,21.06.2023,Deputy Chief Executive,Communities - DCE,WWW.ARGOS.CO.UK,173.29,34.66,207.95,Other Personal Needs,Department stores
Buckinghamshire Council ,30.06.2023,21.06.2023,Deputy Chief Executive,Communities - DCE,WWW.ARGOS.CO.UK,50.79,10.16,60.95,Other Personal Needs,Department stores
Buckinghamshire Council ,30.06.2023,21.06.2023,Deputy Chief Executive,Communities - DCE,AO RETAIL LIMITED,864.16,172.84,"1,037.00",Other Personal Needs,Household appliance stores
Buckinghamshire Council ,30.06.2023,21.06.2023,Deputy Chief Executive,Communities - DCE,AO RETAIL LIMITED,775.08,155.02,930.1,Other Personal Needs,Household appliance stores
Buckinghamshire Council ,30.06.2023,21.06.2023,Deputy Chief Executive,Communities - DCE,WWW.ARGOS.CO.UK,84.12,16.83,100.95,Other Personal Needs,Department stores
Buckinghamshire Council ,30.06.2023,21.06.2023,Deputy Chief Executive,Communities - DCE,AO RETAIL LIMITED,232.5,46.5,279,Other Personal Needs,Household appliance stores
Buckinghamshire Council ,30.06.2023,21.06.2023,Deputy Chief Executive,Communities - DCE,AO RETAIL LIMITED,784.58,156.92,941.5,Other Personal Needs,Household appliance stores
Buckinghamshire Council ,30.06.2023,21.06.2023,Deputy Chief Executive,Communities - DCE,AO RETAIL LIMITED,775.08,155.02,930.1,Other Personal Needs,Household appliance stores
Buckinghamshire Council ,30.06.2023,21.06.2023,Deputy Chief Executive,Communities - DCE,PAYPAL,-170.62,0,-170.62,Other Personal Needs,Variety stores
Buckinghamshire Council ,30.06.2023,21.06.2023,Children's Services,Education & Childrens Services - CS Dir,TESCO GIFT CARD,40,0,40,Sec 17: Accommodation,Grocery stores
Buckinghamshire Council ,30.06.2023,21.06.2023,Children's Services,Education & Childrens Services - CS Dir,AMZNMKTPLACE,39.95,0,39.95,Leaving Care - Grants for Care Leavers,Miscellaneous retail
Buckinghamshire Council ,30.06.2023,21.06.2023,Children's Services,Education & Childrens Services - CS Dir,AMZ,-38,0,-38,Leaving Care - Grants for Care Leavers,Direct sales companies
Buckinghamshire Council ,30.06.2023,21.06.2023,Resources,AH&R - Res Dir,POSTURITE LTD,55.99,0,55.99,Purchase.of Refreshments and Food,Misc. home furnishing
Buckinghamshire Council ,30.06.2023,21.06.2023,Communities,Climate Change & Environment - Community,DVLA VEHICLE TAX,302.5,0,302.5,Vehicle Insurance,Government services
Buckinghamshire Council ,30.06.2023,21.06.2023,Children's Services,Education & Childrens Services - CS Dir,WWW.PIZZAHUT.CO.UK,116.95,0,116.95,Subsistence,Fast food restaurants
Buckinghamshire Council ,30.06.2023,21.06.2023,Deputy Chief Executive,Communities - DCE,AO RETAIL LIMITED,374.16,74.84,449,Other Personal Needs,Household appliance stores
Buckinghamshire Council ,30.06.2023,21.06.2023,Resources,AH&R - Res Dir,AMZNMKTPLACE,21.24,0,21.24,Stationery & Office Supplies,Miscellaneous retail
Buckinghamshire Council ,30.06.2023,21.06.2023,Children's Services,Education & Childrens Services - CS Dir,WAITROSE,20.65,0,20.65,General Provisions (Food),Grocery stores
Buckinghamshire Council ,30.06.2023,21.06.2023,Communities,Culture & Leisure - Communities Dir,AMZNMKTPLACE,4.99,1,5.99,Administrative Equipment & Tools,Miscellaneous retail
Buckinghamshire Council ,30.06.2023,21.06.2023,Adults and Health,Health & Wellbeing - Adults & Health Dir,SMYTHS AYLESBURY,28.4,5.68,48.06,Activities & General Recreation,"Hobby, toy & game shops"
Buckinghamshire Council ,30.06.2023,21.06.2023,Adults and Health,Health & Wellbeing - Adults & Health Dir,SMYTHS AYLESBURY,13.98,0,13.98,Activities & General Recreation,"Hobby, toy & game shops"
Buckinghamshire Council ,30.06.2023,21.06.2023,Communities,Housing & Homelessness & Regulatory Comm,CBCE CONFERENCE,495,99,594,"Courses, Conference and Seminar Fees",Consultants & public relation services
Buckinghamshire Council ,30.06.2023,21.06.2023,Communities,Special Expenses,PHS GROUP,661.32,0,661.32,Cleaning - Contract Services,Misc business services
Buckinghamshire Council ,30.06.2023,21.06.2023,Adults and Health,Health & Wellbeing - Adults & Health Dir,ASDA SUPERSTORE,18.9,0,18.9,General Provisions (Food),Grocery stores
Buckinghamshire Council ,30.06.2023,21.06.2023,Children's Services,Education & Childrens Services - CS Dir,AMAZON.CO.UK,7.85,0,7.85,"Books, Records, Films & Oth Publications",Direct sales companies
Buckinghamshire Council ,30.06.2023,21.06.2023,Children's Services,Education & Childrens Services - CS Dir,AMAZON.CO.UK,262.97,0,262.97,IT Equipment Purchase,Direct sales companies
Buckinghamshire Council ,30.06.2023,21.06.2023,Children's Services,Education & Childrens Services - CS Dir,AMZNMKTPLACE,28.08,0,28.08,Printing & Stationery,Miscellaneous retail
Buckinghamshire Council ,30.06.2023,21.06.2023,Children's Services,Education & Childrens Services - CS Dir,WWW.READING.GOV,11,0,11,Sec 20/31: Specialist Services,Government services
Buckinghamshire Council ,30.06.2023,21.06.2023,Children's Services,Education & Childrens Services - CS Dir,BUCKINGHAMSHIRE CNCL,11,0,11,Sec 20/31: Specialist Services,Government services
Buckinghamshire Council ,30.06.2023,21.06.2023,Children's Services,Education & Childrens Services - CS Dir,WWW.LINCOLNSHIRE,-7,0,-7,Sec 20/31: Specialist Services,Government services
Buckinghamshire Council ,30.06.2023,21.06.2023,Children's Services,artnerships - Children's Services,SAINSBURY S S/MKTS,3.4,0,3.4,"Courses, Conference and Seminar Fees",Grocery stores
Buckinghamshire Council ,30.06.2023,21.06.2023,Children's Services,Education & Childrens Services - CS Dir,ALLPAY *RED KITE COMMUNIT,120,0,120,Sec 17: Accommodation,Charitable organisations
Buckinghamshire Council ,30.06.2023,21.06.2023,Adults and Health,Health & Wellbeing - Adults & Health Dir,COMFORT TRANSPORT,45,0,45,Other Short Term Support,Taxicabs & limousines
Buckinghamshire Council ,30.06.2023,21.06.2023,Adults and Health,Health & Wellbeing - Adults & Health Dir,TRAVELODGE GB0000,582.93,0,582.93,Other Short Term Support,Travelodge
Buckinghamshire Council ,30.06.2023,21.06.2023,Children's Services,Education & Childrens Services - CS Dir,TRAVELODGE GB0000,851.12,0,851.12,Sec 17: Accommodation,Travelodge
Buckinghamshire Council ,30.06.2023,21.06.2023,Children's Services,Education & Childrens Services - CS Dir,DOMINO S PIZZA,37.06,0,37.06,Subsistence,Restaurants
Buckinghamshire Council ,30.06.2023,21.06.2023,Deputy Chief Executive,Leader - DCE,PUREGUSTO COFFEE COMPANY,68.24,0,68.24,General Provisions (Food),Misc. general merchandise
Buckinghamshire Council ,30.06.2023,21.06.2023,Deputy Chief Executive,Leader - DCE,PUREGUSTO COFFEE COMPANY,34.68,0,34.68,General Provisions (Food),Misc. general merchandise
Buckinghamshire Council ,30.06.2023,21.06.2023,Children's Services,Education & Childrens Services - CS Dir,WWW.BUCKINGHAMSHIRE.GOV,223.44,0,223.44,Leaving Care  - Financial Assistance,Government services
Buckinghamshire Council ,30.06.2023,21.06.2023,Children's Services,Education & Childrens Services - CS Dir,CURRYS ONLINE,289,0,289,Leaving Care - Grants for Care Leavers,Electronics shops
Buckinghamshire Council ,30.06.2023,21.06.2023,Adults and Health,Health & Wellbeing - Adults & Health Dir,B & Q 1124,4.9,0,4.9,Activities & General Recreation,Home supply warehouse stores
Buckinghamshire Council ,30.06.2023,21.06.2023,Adults and Health,Health & Wellbeing - Adults & Health Dir,HOME BARGAINS,5.98,0,5.98,Activities & General Recreation,Hardware stores
Buckinghamshire Council ,30.06.2023,21.06.2023,Adults and Health,Health & Wellbeing - Adults & Health Dir,B & Q 1124,13.45,0,13.45,Activities & General Recreation,Home supply warehouse stores
Buckinghamshire Council ,30.06.2023,21.06.2023,Adults and Health,Health & Wellbeing - Adults & Health Dir,HOME BARGAINS,5.98,0,5.98,Activities & General Recreation,Hardware stores
Buckinghamshire Council ,30.06.2023,21.06.2023,Children's Services,Education & Childrens Services - CS Dir,ABSOLUTELY TEN PIN,18,0,18,Activities & General Recreation,Misc. recreational services
Buckinghamshire Council ,30.06.2023,21.06.2023,Communities,Climate Change & Environment - Community,MOONPIG,13.48,0,13.48,Other Employees Expenses,Misc. general merchandise
Buckinghamshire Council ,30.06.2023,21.06.2023,"Planning, Growth & Sustainability",Housing & Homelessness & Regulatory PGS,CURRYS ONLINE,"1,037.00",0,"1,037.00",Furniture,Electronics shops
Buckinghamshire Council ,30.06.2023,21.06.2023,"Planning, Growth & Sustainability",Special Expenses,WWW.BUCKINGHAMSHIRE.GOV,23,0,23,Computer Software Licences & Purchase,Government services
Buckinghamshire Council ,30.06.2023,21.06.2023,Adults and Health,Health & Wellbeing - Adults & Health Dir,AMAZON.CO.UK,20.59,0,20.59,Activities & General Recreation,Direct sales companies
Buckinghamshire Council ,30.06.2023,21.06.2023,Adults and Health,Health & Wellbeing - Adults & Health Dir,AMZNMKTPLACE,70.93,0,70.93,Activities & General Recreation,Miscellaneous retail
Buckinghamshire Council ,30.06.2023,20.06.2023,Deputy Chief Executive,Communities - DCE,PAYPAL,126.66,25.34,152,Other Personal Needs,Variety stores
Buckinghamshire Council ,30.06.2023,20.06.2023,Adults and Health,Health & Wellbeing - Adults & Health Dir,ICELAND FOODS,42.79,0,42.79,General Provisions (Food),Grocery stores
Buckinghamshire Council ,30.06.2023,20.06.2023,Children's Services,Education & Childrens Services - CS Dir,ODEON AYLESBURY,3.08,0.62,3.7,Miscellaneous (Other)  Expenses,Cinemas
Buckinghamshire Council ,30.06.2023,20.06.2023,Deputy Chief Executive,Communities - DCE,AO RETAIL LIMITED,795.9,159.18,955.08,Other Personal Needs,Household appliance stores
Buckinghamshire Council ,30.06.2023,20.06.2023,Deputy Chief Executive,Communities - DCE,AO RETAIL LIMITED,0.02,0,0.02,Other Personal Needs,Household appliance stores
Buckinghamshire Council ,30.06.2023,20.06.2023,Deputy Chief Executive,Communities - DCE,AO RETAIL LIMITED,826.6,165.32,991.92,Other Personal Needs,Household appliance stores
Buckinghamshire Council ,30.06.2023,20.06.2023,Deputy Chief Executive,Communities - DCE,AO RETAIL LIMITED,0.08,0,0.08,Other Personal Needs,Household appliance stores
Buckinghamshire Council ,30.06.2023,20.06.2023,Deputy Chief Executive,Communities - DCE,WWW.ARGOS.CO.UK,562.45,112.49,674.94,Other Personal Needs,Department stores
Buckinghamshire Council ,30.06.2023,20.06.2023,Deputy Chief Executive,Communities - DCE,WWW.ARGOS.CO.UK,0.01,0,0.01,Other Personal Needs,Department stores
Buckinghamshire Council ,30.06.2023,20.06.2023,Deputy Chief Executive,Communities - DCE,WWW.ARGOS.CO.UK,460.79,92.16,552.95,Other Personal Needs,Department stores
Buckinghamshire Council ,30.06.2023,20.06.2023,Children's Services,Education & Childrens Services - CS Dir,AMZNMKTPLACE,24.99,0,24.99,Leaving Care - Grants for Care Leavers,Miscellaneous retail
Buckinghamshire Council ,30.06.2023,20.06.2023,Children's Services,Education & Childrens Services - CS Dir,AMZNMKTPLACE,38.95,0,38.95,Leaving Care - Grants for Care Leavers,Miscellaneous retail
Buckinghamshire Council ,30.06.2023,20.06.2023,Children's Services,Education & Childrens Services - CS Dir,AMZNMKTPLACE,185.99,0,185.99,Leaving Care - Grants for Care Leavers,Miscellaneous retail
Buckinghamshire Council ,30.06.2023,20.06.2023,Children's Services,Education & Childrens Services - CS Dir,AMZNMKTPLACE,114.98,0,114.98,Leaving Care - Grants for Care Leavers,Miscellaneous retail
Buckinghamshire Council ,30.06.2023,20.06.2023,"Planning, Growth & Sustainability",AH&R - PGS Dir,HOMEBASE,10.5,0,10.5,Other Equipment and Materials,Home supply warehouse stores
Buckinghamshire Council ,30.06.2023,20.06.2023,"Planning, Growth & Sustainability",AH&R - PGS Dir,SCREWFIX DIR LTD,18.08,0,18.08,Other Equipment and Materials,Timber & building supplies
Buckinghamshire Council ,30.06.2023,20.06.2023,Deputy Chief Executive,Communities - DCE,AO RETAIL LIMITED,253.3,50.66,303.96,Other Personal Needs,Household appliance stores
Buckinghamshire Council ,30.06.2023,20.06.2023,Deputy Chief Executive,Communities - DCE,AO RETAIL LIMITED,0.04,0,0.04,Other Personal Needs,Household appliance stores
Buckinghamshire Council ,30.06.2023,20.06.2023,Deputy Chief Executive,Communities - DCE,WWW.ARGOS.CO.UK,96.6,19.32,115.92,Other Personal Needs,Department stores
Buckinghamshire Council ,30.06.2023,20.06.2023,Deputy Chief Executive,Communities - DCE,WWW.ARGOS.CO.UK,0.03,0,0.03,Other Personal Needs,Department stores
Buckinghamshire Council ,30.06.2023,20.06.2023,Deputy Chief Executive,Communities - DCE,AO RETAIL LIMITED,510.83,102.17,613,Other Personal Needs,Household appliance stores
Buckinghamshire Council ,30.06.2023,20.06.2023,Deputy Chief Executive,Communities - DCE,WWW.ARGOS.CO.UK,88.29,17.66,105.95,Other Personal Needs,Department stores
Buckinghamshire Council ,30.06.2023,20.06.2023,Resources,AH&R - Res Dir,BUCKINGHAMSHIRE CNCL,11,0,11,Miscellaneous (Other)  Expenses,Government services
Buckinghamshire Council ,30.06.2023,20.06.2023,"Planning, Growth & Sustainability",Housing & Homelessness & Regulatory PGS,AMAZON.CO.UK,22.46,0,22.46,Printing & Stationery,Direct sales companies
Buckinghamshire Council ,30.06.2023,20.06.2023,Adults and Health,Health & Wellbeing - Adults & Health Dir,CHERWELL CARS,149,0,149,Other Short Term Support,Taxicabs & limousines
Buckinghamshire Council ,30.06.2023,20.06.2023,Adults and Health,Health & Wellbeing - Adults & Health Dir,WICKES CHESHAM,33.75,6.75,40.5,Activities & General Recreation,Timber & building supplies
Buckinghamshire Council ,30.06.2023,20.06.2023,"Planning, Growth & Sustainability",AH&R - PGS Dir,WWW.SCREWFIX.COM,40.99,0,40.99,General Repairs & Maintenance,Timber & building supplies
Buckinghamshire Council ,30.06.2023,20.06.2023,"Planning, Growth & Sustainability",AH&R - PGS Dir,AMZNMKTPLACE,17.99,0,17.99,Administrative Equipment & Tools,Miscellaneous retail
Buckinghamshire Council ,30.06.2023,20.06.2023,"Planning, Growth & Sustainability",AH&R - PGS Dir,TOOLSTATION LTD,42.65,0,42.65,General Repairs & Maintenance,Timber & building supplies
Buckinghamshire Council ,30.06.2023,20.06.2023,"Planning, Growth & Sustainability",AH&R - PGS Dir,WICKES AYLESBURY,32.5,0,32.5,General Repairs & Maintenance,Timber & building supplies
Buckinghamshire Council ,30.06.2023,20.06.2023,Communities,Special Expenses,WWW.PHS.CO.UK,177.12,0,177.12,Leasing Costs,Misc business services
Buckinghamshire Council ,30.06.2023,20.06.2023,"Planning, Growth & Sustainability",AH&R - PGS Dir,SCREWFIX DIR LTD,36.99,0,36.99,General Repairs & Maintenance,Timber & building supplies
Buckinghamshire Council ,30.06.2023,20.06.2023,Communities,Culture & Leisure - Communities Dir,AMZNMktplace,12.99,0,12.99,Awaiting Coding,Miscellaneous retail
Buckinghamshire Council ,30.06.2023,20.06.2023,Communities,Culture & Leisure - Communities Dir,TESCO STORES 3099,32.49,0,32.49,Events Expenditure,Grocery stores
Buckinghamshire Council ,30.06.2023,20.06.2023,Children's Services,Education & Childrens Services - CS Dir,CARD FACTORY,12.04,0,12.04,Other Equipment and Materials,"Gift, card & novelty shops"
Buckinghamshire Council ,30.06.2023,20.06.2023,Children's Services,Education & Childrens Services - CS Dir,THE RANGE,18.17,0,18.17,Other Equipment and Materials,Department stores
Buckinghamshire Council ,30.06.2023,20.06.2023,Children's Services,Education & Childrens Services - CS Dir,T K MAXX,10,0,10,Other Equipment and Materials,Variety stores
Buckinghamshire Council ,30.06.2023,20.06.2023,Resources,AH&R - Res Dir,NEW YORK DELI GATEHOUSE,72,0,72,Subsistence,Restaurants
Buckinghamshire Council ,30.06.2023,20.06.2023,Children's Services,Education & Childrens Services - CS Dir,THE WORKS,2,0,2,Activities & General Recreation,Discount stores
Buckinghamshire Council ,30.06.2023,20.06.2023,Children's Services,Education & Childrens Services - CS Dir,ONE BELOW,9.5,0,9.5,Activities & General Recreation,Grocery stores
Buckinghamshire Council ,30.06.2023,20.06.2023,Children's Services,Education & Childrens Services - CS Dir,MARKS&SPENCER PLC SA,51.35,0,51.35,Purchase.of Refreshments and Food,Grocery stores
Buckinghamshire Council ,30.06.2023,20.06.2023,Children's Services,Education & Childrens Services - CS Dir,ASDA  STORES 4396,14.65,0,14.65,General Provisions (Food),Grocery stores
Buckinghamshire Council ,30.06.2023,20.06.2023,Adults and Health,Health & Wellbeing - Adults & Health Dir,ASDA SUPERSTORE,89.36,0,89.36,General Provisions (Food),Grocery stores
Buckinghamshire Council ,30.06.2023,20.06.2023,Communities,Culture & Leisure - Communities Dir,WWW.THERMOMETERSDIRECT,29.4,0,29.4,Administrative Equipment & Tools,Miscellaneous retail
Buckinghamshire Council ,30.06.2023,20.06.2023,Children's Services,Education & Childrens Services - CS Dir,POSTURITE LTD,486,0,486,Professional Services (non curriculum) - External,Misc. home furnishing
Buckinghamshire Council ,30.06.2023,20.06.2023,Children's Services,Education & Childrens Services - CS Dir,NEUROBOX LIMITED* #345,"1,344.00",0,"1,344.00",Professional Services (non curriculum) - External,Consultants & public relation services
Buckinghamshire Council ,30.06.2023,20.06.2023,Children's Services,Education & Childrens Services - CS Dir,EUROFLORIST UK LTD,30.98,0,30.98,Seeds & Plants,Florists
Buckinghamshire Council ,30.06.2023,20.06.2023,Communities,ommunities - Trust Accounts,WICKES SLOUGH,20,0,20,General Repairs & Maintenance,Timber & building supplies
Buckinghamshire Council ,30.06.2023,20.06.2023,,,IKEA LTD SHOP ONLINE,390,0,390,Purchase of Furniture,Furniture & home furnishing
Buckinghamshire Council ,30.06.2023,20.06.2023,Communities,Climate Change & Environment - Community,AMZNMKTPLACE,208.71,0,208.71,Health & Safety Supplies & Services,Miscellaneous retail
Buckinghamshire Council ,30.06.2023,20.06.2023,Deputy Chief Executive,Communities - DCE,AMZNMKTPLACE,11.99,0,11.99,Administrative Equipment & Tools,Miscellaneous retail
Buckinghamshire Council ,30.06.2023,20.06.2023,Communities,Climate Change & Environment - Community,GSF CAR PARTS,339.61,0,339.61,Repair & Maint of Vehicles & Plant,Motor vehicle supplies & parts
Buckinghamshire Council ,30.06.2023,20.06.2023,Communities,Climate Change & Environment - Community,B & Q 1305,17.97,0,17.97,Equipment,Home supply warehouse stores
Buckinghamshire Council ,30.06.2023,20.06.2023,Adults and Health,Health & Wellbeing - Adults & Health Dir,AMAZON.CO.UK,250,0,250,Miscellaneous (Other)  Expenses,Direct sales companies
Buckinghamshire Council ,30.06.2023,20.06.2023,Children's Services,Education & Childrens Services - CS Dir,TESCO GIFT CARD,10,0,10,Sec 20/31: Financial Assistance,Grocery stores
Buckinghamshire Council ,30.06.2023,20.06.2023,Children's Services,Education & Childrens Services - CS Dir,HOME BARGAINS,5.47,0,5.47,Consumable Supplies,Hardware stores
Buckinghamshire Council ,30.06.2023,20.06.2023,Adults and Health,Health & Wellbeing - Adults & Health Dir,A1 TAXILINE,80,0,80,Staff Travelling Expenses,Taxicabs & limousines
Buckinghamshire Council ,30.06.2023,20.06.2023,Communities,ommunities - Trading Accounts,ALLIED AUTOCARE PARTS,60,0,60,Vehicle Repair Recharge,Automobile dealers - new & used
Buckinghamshire Council ,30.06.2023,20.06.2023,Children's Services,Education & Childrens Services - CS Dir,AMZNMKTPLACE,159.98,0,159.98,Leaving Care - Grants for Care Leavers,Miscellaneous retail
Buckinghamshire Council ,30.06.2023,20.06.2023,"Planning, Growth & Sustainability",AH&R - PGS Dir,AMZNMKTPLACE,3.99,0,3.99,Miscellaneous (Other)  Expenses,Miscellaneous retail
Buckinghamshire Council ,30.06.2023,20.06.2023,Children's Services,Education & Childrens Services - CS Dir,AMAZON.CO.UK,32.97,0,32.97,Miscellaneous (Other)  Expenses,Direct sales companies
Buckinghamshire Council ,30.06.2023,20.06.2023,Children's Services,Education & Childrens Services - CS Dir,AMZNMKTPLACE,40.79,0,40.79,Consumable Supplies,Miscellaneous retail
Buckinghamshire Council ,30.06.2023,19.06.2023,Communities,Culture & Leisure - Communities Dir,WWW.BUCKINGHAMSHIRE.GOV,21,0,21,Events Expenditure,Government services
Buckinghamshire Council ,30.06.2023,19.06.2023,Resources,AH&R - Res Dir,PRIME VIDEO CHANNELS,5.99,0,5.99,Stationery & Office Supplies,Continuous subscriptions
Buckinghamshire Council ,30.06.2023,19.06.2023,Children's Services,Education & Childrens Services - CS Dir,WWW.ARGOS.CO.UK,13.5,0,13.5,Sec 17: Financial Assistance One Off,Department stores
Buckinghamshire Council ,30.06.2023,19.06.2023,Children's Services,Education & Childrens Services - CS Dir,WWW.ARGOS.CO.UK,-13.5,0,-13.5,Sec 17: Financial Assistance One Off,Department stores
Buckinghamshire Council ,30.06.2023,19.06.2023,Children's Services,Education & Childrens Services - CS Dir,AMZNMKTPLACE,57.87,0,57.87,Leaving Care - Grants for Care Leavers,Miscellaneous retail
Buckinghamshire Council ,30.06.2023,19.06.2023,Children's Services,Education & Childrens Services - CS Dir,AMZNMKTPLACE,58.95,0,58.95,Leaving Care - Grants for Care Leavers,Miscellaneous retail
Buckinghamshire Council ,30.06.2023,19.06.2023,Children's Services,Education & Childrens Services - CS Dir,ASDA GEORGE COM LEEDS,52.95,0,52.95,Leaving Care - Grants for Care Leavers,Grocery stores
Buckinghamshire Council ,30.06.2023,19.06.2023,Children's Services,Education & Childrens Services - CS Dir,AMZNMKTPLACE,139.9,0,139.9,Leaving Care - Grants for Care Leavers,Miscellaneous retail
Buckinghamshire Council ,30.06.2023,19.06.2023,Children's Services,Education & Childrens Services - CS Dir,BKG*HOTEL AT BOOKING.C,218.48,0,218.48,Other Employees Expenses,Travel agencies
Buckinghamshire Council ,30.06.2023,19.06.2023,Children's Services,Education & Childrens Services - CS Dir,WWW.ARGOS.CO.UK,474,0,474,Leaving Care - Grants for Care Leavers,Department stores
Buckinghamshire Council ,30.06.2023,19.06.2023,Children's Services,Education & Childrens Services - CS Dir,TESCO STORES 2041,190.66,0,190.66,General Provisions (Food),Grocery stores
Buckinghamshire Council ,30.06.2023,19.06.2023,Resources,AH&R - Res Dir,SAINSBURY S S/MKTS,42.65,0,42.65,Purchase.of Refreshments and Food,Grocery stores
Buckinghamshire Council ,30.06.2023,19.06.2023,Communities,Climate Change & Environment - Community,DVLA VEHICLE TAX,97.5,0,97.5,Vehicle Insurance,Government services
Buckinghamshire Council ,30.06.2023,19.06.2023,Communities,Climate Change & Environment - Community,DVLA VEHICLE TAX,167.5,0,167.5,Vehicle Insurance,Government services
Buckinghamshire Council ,30.06.2023,19.06.2023,Adults and Health,Health & Wellbeing - Adults & Health Dir,AMZNMKTPLACE,65.93,0,65.93,Health & Safety Supplies & Services,Miscellaneous retail
Buckinghamshire Council ,30.06.2023,19.06.2023,Adults and Health,Health & Wellbeing - Adults & Health Dir,TESCO STORES 5135,134.72,0,134.72,General Provisions (Food),Grocery stores
Buckinghamshire Council ,30.06.2023,19.06.2023,Children's Services,Education & Childrens Services - CS Dir,EASYJET,111.98,0,111.98,Staff Travelling Expenses,Easyjet
Buckinghamshire Council ,30.06.2023,19.06.2023,Resources,AH&R - Res Dir,GEN REGISTER OFFICE,14,0,14,Miscellaneous (Other)  Expenses,Government services
Buckinghamshire Council ,30.06.2023,19.06.2023,"Planning, Growth & Sustainability",AH&R - PGS Dir,TESCO STORES 5525,9.9,0,9.9,Purchase.of Refreshments and Food,Grocery stores
Buckinghamshire Council ,30.06.2023,19.06.2023,"Planning, Growth & Sustainability",Housing & Homelessness & Regulatory PGS,POST OFFICE COUNTER,27.5,0,27.5,General Postage,Postal services
Buckinghamshire Council ,30.06.2023,19.06.2023,Communities,Climate Change & Environment - Community,AMZNMKTPLACE,39.95,0,39.95,Equipment,Miscellaneous retail
Buckinghamshire Council ,30.06.2023,19.06.2023,Children's Services,Education & Childrens Services - CS Dir,WWW.LINCOLNSHIRE,11,0,11,Sec 20/31: Specialist Services,Government services
Buckinghamshire Council ,30.06.2023,19.06.2023,Children's Services,Education & Childrens Services - CS Dir,WWW.EALING.GOV.UK,19.5,0,19.5,Sec 20/31: Specialist Services,Government services
Buckinghamshire Council ,30.06.2023,19.06.2023,Children's Services,Education & Childrens Services - CS Dir,TRAVELODGE GB0000,256.5,0,256.5,Sec 17: Accommodation,Travelodge
Buckinghamshire Council ,30.06.2023,19.06.2023,Children's Services,Education & Childrens Services - CS Dir,NEALES TAXIS LTD,600,0,600,Sec 17: Transport,Taxicabs & limousines
Buckinghamshire Council ,30.06.2023,19.06.2023,Communities,Climate Change & Environment - Community,PAYPAL,137.95,0,137.95,Waste Prevention costs,Publishing & printing services
Buckinghamshire Council ,30.06.2023,19.06.2023,Children's Services,Education & Childrens Services - CS Dir,LIDL GB AYLESBURY,17.02,0,17.02,Activities & General Recreation,Grocery stores
Buckinghamshire Council ,30.06.2023,19.06.2023,Children's Services,Education & Childrens Services - CS Dir,HOBBYCRAFT,8.8,0,8.8,Activities & General Recreation,Art & craft shops
Buckinghamshire Council ,30.06.2023,19.06.2023,Children's Services,Education & Childrens Services - CS Dir,TESCO STORES 2041,2.5,0,2.5,Purchase.of Refreshments and Food,Grocery stores
Buckinghamshire Council ,30.06.2023,19.06.2023,Communities,Climate Change & Environment - Community,VISTAPRINT,67.69,0,67.69,Marketing,Misc business services
Buckinghamshire Council ,30.06.2023,19.06.2023,Communities,Culture & Leisure - Communities Dir,SP ALDI GROCERY VOUC,250,0,250,Other Employees Expenses,Misc. general merchandise
Buckinghamshire Council ,30.06.2023,19.06.2023,Adults and Health,Communities - Adults & Health,SHELTER TRADING LTD,180,0,180,Project Work and Project Management Costs,"Gift, card & novelty shops"
Buckinghamshire Council ,30.06.2023,19.06.2023,Children's Services,Education & Childrens Services - CS Dir,WWW.ARGOS.CO.UK,253.95,0,253.95,Leaving Care - Grants for Care Leavers,Department stores
Buckinghamshire Council ,30.06.2023,19.06.2023,Adults and Health,Health & Wellbeing - Adults & Health Dir,ICELAND FOODS,-10.1,0,-10.1,General Provisions (Food),Grocery stores
Buckinghamshire Council ,30.06.2023,19.06.2023,Communities,ommunities - Trust Accounts,OAKTREE GARDEN CENTRE,76.42,0,76.42,Seeds & Plants,Lawn & garden supply/nursery
Buckinghamshire Council ,30.06.2023,19.06.2023,Children's Services,Education & Childrens Services - CS Dir,SCOTTISH POWER,532.69,0,532.69,Sec 17: Financial Assistance,Fuel dealers
Buckinghamshire Council ,30.06.2023,19.06.2023,Communities,Climate Change & Environment - Community,LIDL GB OAKFIELD ROAD,43.2,0,43.2,Purchase.of Refreshments and Food,Grocery stores
Buckinghamshire Council ,30.06.2023,19.06.2023,Communities,Climate Change & Environment - Community,TESCO STORES 2041,25.2,0,25.2,Purchase.of Refreshments and Food,Grocery stores
Buckinghamshire Council ,30.06.2023,19.06.2023,"Planning, Growth & Sustainability",Transport - PGS Dir,CILT UK,70.8,0,70.8,"Courses, Conference and Seminar Fees",Charitable organisations
Buckinghamshire Council ,30.06.2023,19.06.2023,Children's Services,Education & Childrens Services - CS Dir,HOLIDAY INN AYLESB,82.5,0,82.5,Consumable Supplies,"Hotels, motels & resorts"
Buckinghamshire Council ,30.06.2023,19.06.2023,Adults and Health,Health & Wellbeing - Adults & Health Dir,TESCO STORES 5135,91.15,0,91.15,General Provisions (Food),Grocery stores
Buckinghamshire Council ,30.06.2023,19.06.2023,"Planning, Growth & Sustainability",Housing & Homelessness & Regulatory PGS,ROYAL MAIL ONLINE SHOP,106.4,0,106.4,General Postage,Postal services
Buckinghamshire Council ,30.06.2023,19.06.2023,"Planning, Growth & Sustainability",Housing & Homelessness & Regulatory PGS,AMAZON.CO.UK,27.29,0,27.29,Stationery & Office Supplies,Direct sales companies
Buckinghamshire Council ,30.06.2023,19.06.2023,"Planning, Growth & Sustainability",Housing & Homelessness & Regulatory PGS,AMAZON.CO.UK,11.38,0,11.38,Stationery & Office Supplies,Direct sales companies
Buckinghamshire Council ,30.06.2023,19.06.2023,Adults and Health,Health & Wellbeing - Adults & Health Dir,TRAVELODGE GB0000,709.84,0,709.84,Other Short Term Support,Travelodge
Buckinghamshire Council ,30.06.2023,19.06.2023,Deputy Chief Executive,AH&R- DCE Dir,PAYPAL,177.45,35.49,212.94,Miscellaneous (Other)  Expenses,Variety stores
Buckinghamshire Council ,30.06.2023,19.06.2023,Deputy Chief Executive,AH&R- DCE Dir,PAYPAL,0.06,0,0.06,Miscellaneous (Other)  Expenses,Variety stores
Buckinghamshire Council ,30.06.2023,19.06.2023,Deputy Chief Executive,AH&R- DCE Dir,PAYPAL,294.15,58.83,352.98,Miscellaneous (Other)  Expenses,Variety stores
Buckinghamshire Council ,30.06.2023,19.06.2023,Deputy Chief Executive,AH&R- DCE Dir,PAYPAL,299.97,0,299.97,Miscellaneous (Other)  Expenses,Variety stores
Buckinghamshire Council ,30.06.2023,18.06.2023,Children's Services,Education & Childrens Services - CS Dir,NANDOS AYLESBURY,29.35,0,29.35,Subsistence,Restaurants
Buckinghamshire Council ,30.06.2023,18.06.2023,Resources,AH&R - Res Dir,AMAZON.CO.UK,47.73,0,47.73,Computer Consumables,Direct sales companies
Buckinghamshire Council ,30.06.2023,18.06.2023,Deputy Chief Executive,AH&R- DCE Dir,AMZNMKTPLACE,121.3,24.26,145.56,Stationery & Office Supplies,Miscellaneous retail
Buckinghamshire Council ,30.06.2023,18.06.2023,Deputy Chief Executive,AH&R- DCE Dir,AMZNMKTPLACE,0.02,0,0.02,Stationery & Office Supplies,Miscellaneous retail
Buckinghamshire Council ,30.06.2023,18.06.2023,Children's Services,Education & Childrens Services - CS Dir,AMZNMKTPLACE,65.98,0,65.98,Consumable Supplies,Miscellaneous retail
Buckinghamshire Council ,30.06.2023,18.06.2023,Adults and Health,Health & Wellbeing - Adults & Health Dir,ICELAND FOODS,35.1,0,35.1,General Provisions (Food),Grocery stores
Buckinghamshire Council ,30.06.2023,17.06.2023,Resources,AH&R - Res Dir,C2E791000497B UKVI,"-1,500.00",0,"-1,500.00",Professional Services (non curriculum) - External,Government services
Buckinghamshire Council ,30.06.2023,17.06.2023,Children's Services,Education & Childrens Services - CS Dir,CANVA* 03819-14603627,34.99,0,34.99,Marketing,"Commercial photo, art & graphic"
Buckinghamshire Council ,30.06.2023,17.06.2023,Children's Services,Education & Childrens Services - CS Dir,AMZNMKTPLACE,25.99,0,25.99,Miscellaneous (Other)  Expenses,Miscellaneous retail
Buckinghamshire Council ,30.06.2023,17.06.2023,Deputy Chief Executive,Communities - DCE,COSTA COFFEE,4.25,0,4.25,General Provisions (Food),Restaurants
Buckinghamshire Council ,30.06.2023,17.06.2023,Children's Services,Education & Childrens Services - CS Dir,DUNELM LTD,25,0,25,Awaiting Coding,Drapery & upholstery shops
Buckinghamshire Council ,30.06.2023,17.06.2023,Children's Services,Education & Childrens Services - CS Dir,TESCO STORES 2041,27.9,0,27.9,Awaiting Coding,Grocery stores
Buckinghamshire Council ,30.06.2023,17.06.2023,Deputy Chief Executive,Leader - DCE,WM MORRISONS STORE,6,0,6,General Provisions (Food),Grocery stores
Buckinghamshire Council ,30.06.2023,17.06.2023,Children's Services,Education & Childrens Services - CS Dir,LINKEDIN ADS 9151447944,87.85,0,87.85,Other internal recharge��������������,Advertising services
Buckinghamshire Council ,30.06.2023,17.06.2023,Adults and Health,Health & Wellbeing - Adults & Health Dir,AMZNMktplace,25.99,0,25.99,Awaiting Coding,Miscellaneous retail
Buckinghamshire Council ,30.06.2023,17.06.2023,Communities,ommunities - Trust Accounts,PPOINT_*THE MANOR STORES,55.94,0,55.94,General Provisions (Food),Misc Food stores
Buckinghamshire Council ,30.06.2023,17.06.2023,Resources,AH&R - Res Dir,FACEBK *TH4DVQ35X2,51.65,0,51.65,Permanent Recruitment Costs,Advertising services
Buckinghamshire Council ,30.06.2023,17.06.2023,Children's Services,Education & Childrens Services - CS Dir,DOMINO S PIZZA,81.46,0,81.46,Subsistence,Restaurants
Buckinghamshire Council ,30.06.2023,17.06.2023,Children's Services,Education & Childrens Services - CS Dir,SCREWFIX DIR LTD,8.99,0,8.99,General Repairs & Maintenance,Timber & building supplies
Buckinghamshire Council ,30.06.2023,16.06.2023,Children's Services,Education & Childrens Services - CS Dir,AMZNMKTPLACE,6.05,1.21,7.26,Service Development,Miscellaneous retail
Buckinghamshire Council ,30.06.2023,16.06.2023,Children's Services,Education & Childrens Services - CS Dir,AMZNMKTPLACE,0.02,0,0.02,Service Development,Miscellaneous retail
Buckinghamshire Council ,30.06.2023,16.06.2023,Children's Services,Education & Childrens Services - CS Dir,AMZNMKTPLACE,24.98,5,38.96,Service Development,Miscellaneous retail
Buckinghamshire Council ,30.06.2023,16.06.2023,Children's Services,Education & Childrens Services - CS Dir,AMZNMKTPLACE,4.15,0.83,4.98,Service Development,Miscellaneous retail
Buckinghamshire Council ,30.06.2023,16.06.2023,Children's Services,Education & Childrens Services - CS Dir,AMZNMKTPLACE,4,0,4,Service Development,Miscellaneous retail
Buckinghamshire Council ,30.06.2023,16.06.2023,Children's Services,Education & Childrens Services - CS Dir,TAXI PRICE COMPARE,423.5,0,423.5,Sec 20/31: Transport,Computer software stores
Buckinghamshire Council ,30.06.2023,16.06.2023,Children's Services,Education & Childrens Services - CS Dir,TRAINLINE.COM,151.03,0,151.03,Staff Travelling Expenses,Passenger railways
Buckinghamshire Council ,30.06.2023,16.06.2023,Deputy Chief Executive,Communities - DCE,WWW.ARGOS.CO.UK,370.79,74.16,444.95,Other Personal Needs,Department stores
Buckinghamshire Council ,30.06.2023,16.06.2023,Deputy Chief Executive,Communities - DCE,WWW.ARGOS.CO.UK,322.95,0,322.95,Other Personal Needs,Department stores
Buckinghamshire Council ,30.06.2023,16.06.2023,Deputy Chief Executive,Communities - DCE,AO RETAIL LIMITED,900.05,180.01,"1,080.06",Other Personal Needs,Household appliance stores
Buckinghamshire Council ,30.06.2023,16.06.2023,Deputy Chief Executive,Communities - DCE,AO RETAIL LIMITED,0.04,0,0.04,Other Personal Needs,Household appliance stores
Buckinghamshire Council ,30.06.2023,16.06.2023,Deputy Chief Executive,Communities - DCE,WWW.ARGOS.CO.UK,262.95,0,262.95,Other Personal Needs,Department stores
Buckinghamshire Council ,30.06.2023,16.06.2023,Deputy Chief Executive,Communities - DCE,AO RETAIL LIMITED,513.41,102.69,616.1,Other Personal Needs,Household appliance stores
Buckinghamshire Council ,30.06.2023,16.06.2023,Deputy Chief Executive,Communities - DCE,PAYPAL,170.62,0,170.62,Other Personal Needs,Variety stores
Buckinghamshire Council ,30.06.2023,16.06.2023,Deputy Chief Executive,Communities - DCE,AO RETAIL LIMITED,322.58,64.52,387.1,Other Personal Needs,Household appliance stores
Buckinghamshire Council ,30.06.2023,16.06.2023,Deputy Chief Executive,Communities - DCE,PAYPAL,29.15,5.83,34.98,Other Personal Needs,Variety stores
Buckinghamshire Council ,30.06.2023,16.06.2023,Deputy Chief Executive,Communities - DCE,PAYPAL,0.02,0,0.02,Other Personal Needs,Variety stores
Buckinghamshire Council ,30.06.2023,16.06.2023,Deputy Chief Executive,Communities - DCE,PAYPAL,428.29,85.66,513.95,Other Personal Needs,Variety stores
Buckinghamshire Council ,30.06.2023,16.06.2023,Deputy Chief Executive,Communities - DCE,PAYPAL,438.95,0,438.95,Other Personal Needs,Variety stores
Buckinghamshire Council ,30.06.2023,16.06.2023,Deputy Chief Executive,Communities - DCE,WWW.ARGOS.CO.UK,14.95,2.99,17.94,Other Personal Needs,Department stores
Buckinghamshire Council ,30.06.2023,16.06.2023,Deputy Chief Executive,Communities - DCE,WWW.ARGOS.CO.UK,0.01,0,0.01,Other Personal Needs,Department stores
Buckinghamshire Council ,30.06.2023,16.06.2023,Deputy Chief Executive,Communities - DCE,AO RETAIL LIMITED,826.6,165.32,991.92,Other Personal Needs,Household appliance stores
Buckinghamshire Council ,30.06.2023,16.06.2023,Deputy Chief Executive,Communities - DCE,AO RETAIL LIMITED,0.08,0,0.08,Other Personal Needs,Household appliance stores
Buckinghamshire Council ,30.06.2023,16.06.2023,Deputy Chief Executive,Communities - DCE,AO RETAIL LIMITED,553.4,110.68,664.08,Other Personal Needs,Household appliance stores
Buckinghamshire Council ,30.06.2023,16.06.2023,Deputy Chief Executive,Communities - DCE,AO RETAIL LIMITED,0.02,0,0.02,Other Personal Needs,Household appliance stores
Buckinghamshire Council ,30.06.2023,16.06.2023,Deputy Chief Executive,Communities - DCE,AO RETAIL LIMITED,-228.3,-45.66,-273.96,Other Personal Needs,Household appliance stores
Buckinghamshire Council ,30.06.2023,16.06.2023,Deputy Chief Executive,Communities - DCE,AO RETAIL LIMITED,-0.04,0,-0.04,Other Personal Needs,Household appliance stores
Buckinghamshire Council ,30.06.2023,16.06.2023,Children's Services,Education & Childrens Services - CS Dir,TAXIPAY,83.5,0,83.5,Sec 20/31: Supp for Contact,Taxicabs & limousines
Buckinghamshire Council ,30.06.2023,16.06.2023,Children's Services,Education & Childrens Services - CS Dir,BKG*HOTEL AT BOOKING.C,90,0,90,Sec 20/31: Supp for Contact,Travel agencies
Buckinghamshire Council ,30.06.2023,16.06.2023,Children's Services,Education & Childrens Services - CS Dir,TAXIPAY,83.5,0,83.5,Sec 20/31: Supp for Contact,Taxicabs & limousines
Buckinghamshire Council ,30.06.2023,16.06.2023,Children's Services,Education & Childrens Services - CS Dir,BKG*BOOKING.COM HOTEL,79,0,79,Sec 20/31: Supp for Contact,Travel agencies
Buckinghamshire Council ,30.06.2023,16.06.2023,Children's Services,Education & Childrens Services - CS Dir,TRAINLINE,247.89,0,247.89,Sec 20/31: Supp for Contact,Passenger railways
Buckinghamshire Council ,30.06.2023,16.06.2023,Children's Services,Education & Childrens Services - CS Dir,AMZNMktplace,248.81,0,248.81,Awaiting Coding,Miscellaneous retail
Buckinghamshire Council ,30.06.2023,16.06.2023,Resources,AH&R - Res Dir,CCBCOFFICE,664,0,664,Court Fees,Fines
Buckinghamshire Council ,30.06.2023,16.06.2023,Children's Services,Education & Childrens Services - CS Dir,SP RING UK,99.99,0,99.99,YOS - Direct Work,Electronics shops
Buckinghamshire Council ,30.06.2023,16.06.2023,Adults and Health,Health & Wellbeing - Adults & Health Dir,CHILTERN BTS TELESALES,16.7,0,16.7,Staff Travelling Expenses,Passenger railways
Buckinghamshire Council ,30.06.2023,16.06.2023,"Planning, Growth & Sustainability",AH&R - PGS Dir,ASDA SUPERSTORE,2.9,0.58,3.48,Cleaning Materials,Grocery stores
Buckinghamshire Council ,30.06.2023,16.06.2023,"Planning, Growth & Sustainability",AH&R - PGS Dir,ASDA SUPERSTORE,0.02,0,0.02,Cleaning Materials,Grocery stores
Buckinghamshire Council ,30.06.2023,16.06.2023,"Planning, Growth & Sustainability",AH&R - PGS Dir,MEGA PETROLEUM LIM,29.99,0,29.99,Other Equipment and Materials,Service stations
Buckinghamshire Council ,30.06.2023,16.06.2023,Communities,Housing & Homelessness & Regulatory Comm,TESCO STORES 2020,11.2,0,11.2,Purchase.of Refreshments and Food,Grocery stores
Buckinghamshire Council ,30.06.2023,16.06.2023,Communities,Housing & Homelessness & Regulatory Comm,TESCO STORES 2020,58.6,0,58.6,Furniture Fittings & IT,Grocery stores
Buckinghamshire Council ,30.06.2023,16.06.2023,Children's Services,Education & Childrens Services - CS Dir,MIDPAC,324,0,324,Project Funding,Miscellaneous retail
Buckinghamshire Council ,30.06.2023,16.06.2023,Children's Services,Education & Childrens Services - CS Dir,SP VENDINGSUPERSTORE,83.4,0,83.4,Project Funding,Grocery stores
Buckinghamshire Council ,30.06.2023,16.06.2023,Children's Services,Education & Childrens Services - CS Dir,ASDA GEORGE COM LEEDS,52.95,0,52.95,Project Funding,Grocery stores
Buckinghamshire Council ,30.06.2023,16.06.2023,Communities,Culture & Leisure - Communities Dir,TIMPSON LTD,22.5,0,22.5,Awaiting Coding,Miscellaneous retail
Buckinghamshire Council ,30.06.2023,16.06.2023,Children's Services,Education & Childrens Services - CS Dir,NEALES TAXIS LTD,104.15,20.83,124.98,Sec 17: Transport,Taxicabs & limousines
Buckinghamshire Council ,30.06.2023,16.06.2023,Children's Services,Education & Childrens Services - CS Dir,NEALES TAXIS LTD,0.02,0,0.02,Sec 17: Transport,Taxicabs & limousines
Buckinghamshire Council ,30.06.2023,16.06.2023,Children's Services,Education & Childrens Services - CS Dir,BUCKINGHAM HOTELS,900,180,"1,080.00","Courses, Conference and Seminar Fees","Hotels, motels & resorts"
Buckinghamshire Council ,30.06.2023,16.06.2023,Adults and Health,Health & Wellbeing - Adults & Health Dir,WWW.ARGOS.CO.UK,79.95,0,79.95,Administrative Equipment & Tools,Department stores
Buckinghamshire Council ,30.06.2023,16.06.2023,"Planning, Growth & Sustainability",AH&R - PGS Dir,ASDA SUPERSTORE,18.6,0,18.6,General Provisions (Food),Grocery stores
Buckinghamshire Council ,30.06.2023,16.06.2023,Children's Services,Education & Childrens Services - CS Dir,PAYPAL,299.99,0,299.99,Leaving Care - Grants for Care Leavers,Variety stores
Buckinghamshire Council ,30.06.2023,16.06.2023,Children's Services,Education & Childrens Services - CS Dir,PAYPAL,372.95,0,372.95,Leaving Care - Grants for Care Leavers,Variety stores
Buckinghamshire Council ,30.06.2023,16.06.2023,Children's Services,Education & Childrens Services - CS Dir,WWW.ARGOS.CO.UK,104,0,104,Leaving Care - Grants for Care Leavers,Department stores
Buckinghamshire Council ,30.06.2023,16.06.2023,Deputy Chief Executive,AH&R- DCE Dir,CHALFONT TAXIS,20,0,20,Staff Travelling Expenses,Taxicabs & limousines
Buckinghamshire Council ,30.06.2023,16.06.2023,Deputy Chief Executive,AH&R- DCE Dir,CHALFONT TAXIS,20,0,20,Staff Travelling Expenses,Taxicabs & limousines
Buckinghamshire Council ,30.06.2023,16.06.2023,Children's Services,Education & Childrens Services - CS Dir,POST OFFICE SELF SERVE,15.4,0,15.4,General Postage,Postal services
Buckinghamshire Council ,30.06.2023,16.06.2023,Children's Services,Education & Childrens Services - CS Dir,WWW.ARGOS.CO.UK,53.95,0,53.95,Equipment (including storage),Department stores
Buckinghamshire Council ,30.06.2023,16.06.2023,Children's Services,Education & Childrens Services - CS Dir,WICKES AYLESBURY,231.29,0,231.29,General Repairs & Maintenance,Timber & building supplies
Buckinghamshire Council ,30.06.2023,16.06.2023,Children's Services,Education & Childrens Services - CS Dir,HM PASSPORT OFFICE,58.5,0,58.5,Sec 20/31: Specialist Services,Government services
Buckinghamshire Council ,30.06.2023,16.06.2023,Communities,ommunities - Trust Accounts,BOOKER LTD - 38531354,586.7,0,586.7,Awaiting Coding,Grocery stores
Buckinghamshire Council ,30.06.2023,16.06.2023,"Planning, Growth & Sustainability",Planning & Regeneration - PGS,UBER   *TRIP,7.91,0,7.91,Staff Travelling Expenses,Taxicabs & limousines
Buckinghamshire Council ,30.06.2023,16.06.2023,Resources,AH&R - Res Dir,LINKEDIN ADS,44.76,0,44.76,Permanent Recruitment Costs,Advertising services
Buckinghamshire Council ,30.06.2023,16.06.2023,Deputy Chief Executive,Leader - DCE,BRIGHTON SST,65.2,0,65.2,Staff Travelling Expenses,Passenger railways
Buckinghamshire Council ,30.06.2023,16.06.2023,"Planning, Growth & Sustainability",Planning & Regeneration - PGS,HENLEY STANDARD,153.6,0,153.6,Other Employees Expenses,Stationery & office supplies stores
Buckinghamshire Council ,30.06.2023,16.06.2023,Communities,Climate Change & Environment - Community,ROADWARRIOR,12.22,0,12.22,Computer Support Services,"Programming, data processing & system design"
Buckinghamshire Council ,30.06.2023,16.06.2023,Communities,Climate Change & Environment - Community,ROADWARRIOR,12.22,0,12.22,Computer Support Services,"Programming, data processing & system design"
Buckinghamshire Council ,30.06.2023,16.06.2023,Communities,Climate Change & Environment - Community,WWW.HIGHFIELDQUALIFICA,196.32,0,196.32,Health & Safety Supplies & Services,Vocational & trade schools
Buckinghamshire Council ,30.06.2023,16.06.2023,Deputy Chief Executive,Communities - DCE,AMZNMKTPLACE,24.94,0,24.94,Administrative Equipment & Tools,Miscellaneous retail
Buckinghamshire Council ,30.06.2023,16.06.2023,Resources,AH&R - Res Dir,ARRIVA UK BUS,28.6,0,28.6,Staff Travelling Expenses,"Buses, charter & tour"
Buckinghamshire Council ,30.06.2023,16.06.2023,Communities,Culture & Leisure - Communities Dir,SAINSBURY S S/MKTS,18.89,0,18.89,Other Catering Supplies,Grocery stores
Buckinghamshire Council ,30.06.2023,15.06.2023,"Planning, Growth & Sustainability",Housing & Homelessness & Regulatory PGS,AMAZON.CO.UK,40,0,40,Miscellaneous (Other)  Expenses,Direct sales companies
Buckinghamshire Council ,30.06.2023,15.06.2023,Deputy Chief Executive,AH&R- DCE Dir,PAYPAL,311.65,62.33,373.98,Miscellaneous (Other)  Expenses,Electronics shops
Buckinghamshire Council ,30.06.2023,15.06.2023,Deputy Chief Executive,AH&R- DCE Dir,PAYPAL,0.02,0,0.02,Miscellaneous (Other)  Expenses,Electronics shops
Buckinghamshire Council ,30.06.2023,15.06.2023,Deputy Chief Executive,AH&R- DCE Dir,PAYPAL,-2,0,-2,Miscellaneous (Other)  Expenses,Variety stores
Buckinghamshire Council ,30.06.2023,15.06.2023,Deputy Chief Executive,Communities - DCE,AO RETAIL LIMITED,228.3,45.66,273.96,Other Personal Needs,Household appliance stores
Buckinghamshire Council ,30.06.2023,15.06.2023,Deputy Chief Executive,Communities - DCE,AO RETAIL LIMITED,0.04,0,0.04,Other Personal Needs,Household appliance stores
Buckinghamshire Council ,30.06.2023,15.06.2023,Children's Services,Education & Childrens Services - CS Dir,IKEA LTD 185 MILTON KEYNE,216,0,216,Furniture,Furniture & home furnishing
Buckinghamshire Council ,30.06.2023,15.06.2023,"Planning, Growth & Sustainability",Planning & Regeneration - PGS,TEXTANYWHERE,54,0,54,Miscellaneous (Other)  Expenses,Computer software stores
Buckinghamshire Council ,30.06.2023,15.06.2023,Communities,Culture & Leisure - Communities Dir,AMZNMKTPLACE,17.06,0,17.06,"Books, Records, Films & Oth Publications",Miscellaneous retail
Buckinghamshire Council ,30.06.2023,15.06.2023,"Planning, Growth & Sustainability",AH&R - PGS Dir,NEW YORK DELI GATEHOUSE,36,0,36,Miscellaneous (Other)  Expenses,Restaurants
Buckinghamshire Council ,30.06.2023,15.06.2023,Communities,artnerships - Communities,WWW.DISCOUNTFOOTBALLKI,369.41,0,369.41,Equipment,Sports & riding apparel shops
Buckinghamshire Council ,30.06.2023,15.06.2023,Adults and Health,Health & Wellbeing - Adults & Health Dir,B & Q 1305,45,0,45,Activities & General Recreation,Home supply warehouse stores
Buckinghamshire Council ,30.06.2023,15.06.2023,"Planning, Growth & Sustainability",AH&R - PGS Dir,TESCO STORES 5525,3.3,0,3.3,Purchase.of Refreshments and Food,Grocery stores
Buckinghamshire Council ,30.06.2023,15.06.2023,"Planning, Growth & Sustainability",Leader - PGS,PAYPAL,39,0,39,Events Expenditure,Consultants & public relation services
Buckinghamshire Council ,30.06.2023,15.06.2023,Children's Services,Education & Childrens Services - CS Dir,AMZNMKTPLACE,15.95,0,15.95,Consumable Supplies,Miscellaneous retail
Buckinghamshire Council ,30.06.2023,15.06.2023,Children's Services,Education & Childrens Services - CS Dir,AMZNMKTPLACE,34.98,0,34.98,Consumable Supplies,Miscellaneous retail
Buckinghamshire Council ,30.06.2023,15.06.2023,Deputy Chief Executive,Leader - DCE,POST OFFICE COUNTER,11.15,0,11.15,General Postage,Postal services
Buckinghamshire Council ,30.06.2023,15.06.2023,Deputy Chief Executive,Communities - DCE,RINGGO PARKING,1.65,0,1.65,Staff Travelling Expenses,Car parking & garages
Buckinghamshire Council ,30.06.2023,15.06.2023,Deputy Chief Executive,AH&R- DCE Dir,AMAZON.CO.UK,105.99,0,105.99,Members' Allowances - Travel & Subsist,Direct sales companies
Buckinghamshire Council ,30.06.2023,15.06.2023,Children's Services,Education & Childrens Services - CS Dir,NGKIDS.COM,35,0,35,"Books, Records, Films & Oth Publications",Newspapers / newsagents
Buckinghamshire Council ,30.06.2023,15.06.2023,Communities,Transport - Communities Dir,QD-AYLESBURY,2.89,0,2.89,Materials,Miscellaneous retail
Buckinghamshire Council ,30.06.2023,15.06.2023,Children's Services,Education & Childrens Services - CS Dir,LEBARA MOBILE LIMITED,25,0,25,Telephones,Phone services
Buckinghamshire Council ,30.06.2023,15.06.2023,Children's Services,Education & Childrens Services - CS Dir,AMZNMKTPLACE,6.8,0,6.8,Other Personal Needs,Miscellaneous retail
Buckinghamshire Council ,30.06.2023,15.06.2023,Children's Services,Education & Childrens Services - CS Dir,WYCOMBE RECYCLING LIMITED,60,12,72,Sec 17: Financial Assistance One Off,Utilities
Buckinghamshire Council ,30.06.2023,15.06.2023,Children's Services,Education & Childrens Services - CS Dir,IKEA LTD SHOP ONLINE,913,0,913,Leaving Care - Grants for Care Leavers,Furniture & home furnishing
Buckinghamshire Council ,30.06.2023,15.06.2023,Children's Services,Education & Childrens Services - CS Dir,AO RETAIL LIMITED,314,0,314,Leaving Care - Grants for Care Leavers,Household appliance stores
Buckinghamshire Council ,30.06.2023,15.06.2023,Resources,AH&R - Res Dir,PAYPAL,8.4,0,8.4,IT - Computer Network Charges,Computer network information services
Buckinghamshire Council ,30.06.2023,15.06.2023,Children's Services,Education & Childrens Services - CS Dir,ASDA SUPERSTORE,9.25,0,9.25,General Provisions (Food),Grocery stores
Buckinghamshire Council ,30.06.2023,15.06.2023,Children's Services,Education & Childrens Services - CS Dir,WILKO RETAIL LIMITED,74.4,0,74.4,Awaiting Coding,Misc. general merchandise
Buckinghamshire Council ,30.06.2023,15.06.2023,Children's Services,Education & Childrens Services - CS Dir,TRAINLINE.COM,75.44,0,75.44,Court Orders Sec 31: Supp. for Contact,Passenger railways
Buckinghamshire Council ,30.06.2023,15.06.2023,Communities,Culture & Leisure - Communities Dir,PROGREEN,60.45,12.09,72.54,Seeds & Plants,Lawn & garden supply/nursery
Buckinghamshire Council ,30.06.2023,15.06.2023,Children's Services,Education & Childrens Services - CS Dir,DUNELM SOFTFURNISHINGS,721.95,0,721.95,Leaving Care - Grants for Care Leavers,Furniture & home furnishing
Buckinghamshire Council ,30.06.2023,15.06.2023,"Planning, Growth & Sustainability",Housing & Homelessness & Regulatory PGS,AMZNMKTPLACE,32.14,0,32.14,Furniture,Miscellaneous retail
Buckinghamshire Council ,30.06.2023,15.06.2023,Communities,Culture & Leisure - Communities Dir,TOOLSTATION UK,11.65,2.33,13.98,Protective Clothing & Uniforms,Hardware stores
Buckinghamshire Council ,30.06.2023,15.06.2023,Adults and Health,Health & Wellbeing - Adults & Health Dir,CRYERS HILL STORES,16.95,0,16.95,"Books, Records, Films & Oth Publications",Newspapers / newsagents
Buckinghamshire Council ,30.06.2023,15.06.2023,"Planning, Growth & Sustainability",Housing & Homelessness & Regulatory PGS,POST OFFICE COUNTER,53.1,0,53.1,General Postage,Postal services
Buckinghamshire Council ,30.06.2023,15.06.2023,"Planning, Growth & Sustainability",Housing & Homelessness & Regulatory PGS,IKEA LTD SHOP ONLINE,"1,312.00",0,"1,312.00",Purchase of Other Items,Furniture & home furnishing
Buckinghamshire Council ,30.06.2023,15.06.2023,"Planning, Growth & Sustainability",Housing & Homelessness & Regulatory PGS,IKEA LTD SHOP ONLINE,"1,392.00",0,"1,392.00",Purchase of Other Items,Furniture & home furnishing
Buckinghamshire Council ,30.06.2023,15.06.2023,Resources,AH&R - Res Dir,VOUCHER EXPRESS,100,0,100,Awaiting Coding,Misc business services
Buckinghamshire Council ,30.06.2023,15.06.2023,Communities,Climate Change & Environment - Community,CH MORGAN,37.94,0,37.94,Professional Services (non curriculum) - External,"Architectural, engineering & surveying"
Buckinghamshire Council ,30.06.2023,15.06.2023,Children's Services,Education & Childrens Services - CS Dir,WWW.ARGOS.CO.UK,153.98,0,153.98,Consumable Supplies,Department stores
Buckinghamshire Council ,30.06.2023,15.06.2023,Adults and Health,Health & Wellbeing - Adults & Health Dir,AMZNMKTPLACE,103.94,0,103.94,Activities & General Recreation,Miscellaneous retail
Buckinghamshire Council ,30.06.2023,15.06.2023,Children's Services,Education & Childrens Services - CS Dir,HOLIDAY INN AYLESB,14.85,0,14.85,"Courses, Conference and Seminar Fees","Hotels, motels & resorts"
Buckinghamshire Council ,30.06.2023,15.06.2023,Communities,Transport - Communities Dir,AMZNMktplace,36.3,0,36.3,Awaiting Coding,Miscellaneous retail
Buckinghamshire Council ,30.06.2023,15.06.2023,Adults and Health,Health & Wellbeing - Adults & Health Dir,TIGER TAXIS,16,0,16,Staff Travelling Expenses,Taxicabs & limousines
Buckinghamshire Council ,30.06.2023,15.06.2023,Deputy Chief Executive,AH&R- DCE Dir,FATTORINI LOCAL,40.99,0,40.99,Purchase.of Refreshments and Food,Misc. general merchandise
Buckinghamshire Council ,30.06.2023,15.06.2023,Adults and Health,Health & Wellbeing - Adults & Health Dir,TRAVELODGE GB0000,221.3,0,221.3,Other Short Term Support,Travelodge
Buckinghamshire Council ,30.06.2023,15.06.2023,"Planning, Growth & Sustainability",Special Expenses,SAFETY SIGNS 4 LESS,40.15,8.03,48.18,Stationery & Office Supplies,Misc commercial machines equipment
Buckinghamshire Council ,30.06.2023,15.06.2023,"Planning, Growth & Sustainability",Special Expenses,SAFETY SIGNS 4 LESS,0.02,0,0.02,Stationery & Office Supplies,Misc commercial machines equipment
Buckinghamshire Council ,30.06.2023,15.06.2023,Children's Services,Education & Childrens Services - CS Dir,TESCO GIFT CARD,15,0,15,Sec 17: Financial Assistance One Off,Grocery stores
Buckinghamshire Council ,30.06.2023,15.06.2023,Children's Services,Education & Childrens Services - CS Dir,UK CARS (HIGH WYCOMBE) LT,"1,000.00",200,"1,200.00",Sec 20/31: Transport,Taxicabs & limousines
Buckinghamshire Council ,30.06.2023,15.06.2023,Communities,Culture & Leisure - Communities Dir,PRINT WORLD,45,0,45,Stationery & Office Supplies,Stationery & office supplies stores
Buckinghamshire Council ,30.06.2023,15.06.2023,Deputy Chief Executive,AH&R- DCE Dir,PLAZA CARS,28,0,28,Staff Travelling Expenses,Taxicabs & limousines
Buckinghamshire Council ,30.06.2023,15.06.2023,Communities,Transport - Communities Dir,PAYPAL,33.83,0,33.83,Awaiting Coding,Sporting goods shops
Buckinghamshire Council ,30.06.2023,14.06.2023,Communities,Culture & Leisure - Communities Dir,AMZNMKTPLACE,31.91,6.39,38.3,Administrative Equipment & Tools,Miscellaneous retail
Buckinghamshire Council ,30.06.2023,14.06.2023,Communities,Culture & Leisure - Communities Dir,AMZNMKTPLACE,32.32,6.47,38.79,Administrative Equipment & Tools,Miscellaneous retail
Buckinghamshire Council ,30.06.2023,14.06.2023,Children's Services,Education & Childrens Services - CS Dir,AMZNMKTPLACE,22.99,0,22.99,Stationery & Office Supplies,Miscellaneous retail
Buckinghamshire Council ,30.06.2023,14.06.2023,Communities,Climate Change & Environment - Community,AMAZON.CO.UK,71.98,0,71.98,Stationery & Office Supplies,Direct sales companies
Buckinghamshire Council ,30.06.2023,14.06.2023,"Planning, Growth & Sustainability",AH&R - PGS Dir,INSTIT OF OCCPTNL SAFE,660,0,660,"Workshop - Materials,Tools & Equipment",Membership organisations
Buckinghamshire Council ,30.06.2023,14.06.2023,Children's Services,Education & Childrens Services - CS Dir,BKG*HOTEL AT BOOKING.C,79.95,0,79.95,Sec 20/31: Supp for Contact,Travel agencies
Buckinghamshire Council ,30.06.2023,14.06.2023,Children's Services,Education & Childrens Services - CS Dir,MAES MANOR HOTEL,10,0,10,Sec 20/31: Supp for Contact,"Hotels, motels & resorts"
Buckinghamshire Council ,30.06.2023,14.06.2023,"Planning, Growth & Sustainability",Housing & Homelessness & Regulatory PGS,AMZNMKTPLACE,29.99,0,29.99,Miscellaneous (Other)  Expenses,Miscellaneous retail
Buckinghamshire Council ,30.06.2023,14.06.2023,Communities,Transport - Communities Dir,GWR OXFORD SST,85.3,0,85.3,Staff Travelling Expenses,Passenger railways
Buckinghamshire Council ,30.06.2023,14.06.2023,Children's Services,Education & Childrens Services - CS Dir,THE OXFORDSHIRE TAXI COMP,65,0,65,Sec 17: Financial Assistance One Off,Taxicabs & limousines
Buckinghamshire Council ,30.06.2023,14.06.2023,Children's Services,Education & Childrens Services - CS Dir,THE OXFORDSHIRE TAXI COMP,65,0,65,Sec 17: Financial Assistance One Off,Taxicabs & limousines
Buckinghamshire Council ,30.06.2023,14.06.2023,Children's Services,Education & Childrens Services - CS Dir,THE OXFORDSHIRE TAXI COMP,145,0,145,Sec 17: Financial Assistance One Off,Taxicabs & limousines
Buckinghamshire Council ,30.06.2023,14.06.2023,Children's Services,Education & Childrens Services - CS Dir,BAKER ROSS,109.04,21.81,130.85,Events Expenditure,Art & craft shops
Buckinghamshire Council ,30.06.2023,14.06.2023,Deputy Chief Executive,Communities - DCE,WWW.ARGOS.CO.UK,78.29,15.66,93.95,Other Personal Needs,Department stores
Buckinghamshire Council ,30.06.2023,14.06.2023,Deputy Chief Executive,Communities - DCE,AO RETAIL LIMITED,224.15,44.83,268.98,Other Personal Needs,Household appliance stores
Buckinghamshire Council ,30.06.2023,14.06.2023,Deputy Chief Executive,Communities - DCE,AO RETAIL LIMITED,0.02,0,0.02,Other Personal Needs,Household appliance stores
Buckinghamshire Council ,30.06.2023,14.06.2023,Deputy Chief Executive,Communities - DCE,AO RETAIL LIMITED,-282.5,-56.5,-339,Other Personal Needs,Household appliance stores
Buckinghamshire Council ,30.06.2023,14.06.2023,Children's Services,Education & Childrens Services - CS Dir,AMAZON PRIME,8.99,0,8.99,Stationery & Office Supplies,Continuous subscriptions
Buckinghamshire Council ,30.06.2023,14.06.2023,"Planning, Growth & Sustainability",Climate Change & Environment - PGS,TRAVELODGE GB0000,230.99,0,230.99,"Courses, Conference and Seminar Fees",Travelodge
Buckinghamshire Council ,30.06.2023,14.06.2023,"Planning, Growth & Sustainability",Climate Change & Environment - PGS,TRAVELODGE GB0000,64.75,0,64.75,"Courses, Conference and Seminar Fees",Travelodge
Buckinghamshire Council ,30.06.2023,14.06.2023,Children's Services,Education & Childrens Services - CS Dir,PAYPAL,40,0,40,Training Materials,Vocational & trade schools
Buckinghamshire Council ,30.06.2023,14.06.2023,Children's Services,Education & Childrens Services - CS Dir,PAYPAL,60,0,60,Training Materials,Vocational & trade schools
Buckinghamshire Council ,30.06.2023,14.06.2023,Communities,Climate Change & Environment - Community,DVLA VEHICLE TAX,302.5,0,302.5,Vehicle Insurance,Government services
Buckinghamshire Council ,30.06.2023,14.06.2023,Communities,Climate Change & Environment - Community,DVLA VEHICLE TAX,302.5,0,302.5,Vehicle Insurance,Government services
Buckinghamshire Council ,30.06.2023,14.06.2023,Communities,Climate Change & Environment - Community,DVLA VEHICLE TAX,302.5,0,302.5,Vehicle Insurance,Government services
Buckinghamshire Council ,30.06.2023,14.06.2023,Communities,Climate Change & Environment - Community,DVLA VEHICLE TAX,302.5,0,302.5,Vehicle Insurance,Government services
Buckinghamshire Council ,30.06.2023,14.06.2023,"Planning, Growth & Sustainability",AH&R - PGS Dir,BRIANTS OF RISBOROUGH,12.1,0,12.1,Other Equipment and Materials,Timber & building supplies
Buckinghamshire Council ,30.06.2023,14.06.2023,"Planning, Growth & Sustainability",Housing & Homelessness & Regulatory PGS,LAND REGISTRY ECOM CCC,3,0,3,Homelessness,Government services
Buckinghamshire Council ,30.06.2023,14.06.2023,Resources,AH&R - Res Dir,VERLINGUE LIMITED,275,0,275,Professional Services (non curriculum) - External,"Insurance sales, underwritering, premiums"
Buckinghamshire Council ,30.06.2023,14.06.2023,Communities,artnerships - Communities,YOUR CAF  IN THE PARK,2.5,0,2.5,Miscellaneous (Other)  Expenses,Fast food restaurants
Buckinghamshire Council ,30.06.2023,14.06.2023,Communities,Housing & Homelessness & Regulatory Comm,SHELL HAZLEMERE,17.55,0,17.55,Maintenance of Grounds,Service stations
Buckinghamshire Council ,30.06.2023,14.06.2023,Adults and Health,Health & Wellbeing - Adults & Health Dir,SAINSBURYS S/MKTS,40.59,0,40.59,General Provisions (Food),Grocery stores
Buckinghamshire Council ,30.06.2023,14.06.2023,Children's Services,Education & Childrens Services - CS Dir,NEW YORK DELI (AYLESBURY),23.76,0,23.76,Purchase.of Refreshments and Food,Restaurants
Buckinghamshire Council ,30.06.2023,14.06.2023,Communities,Housing & Homelessness & Regulatory Comm,AMZNMKTPLACE,4.99,0,4.99,Furniture Fittings & IT,Miscellaneous retail
Buckinghamshire Council ,30.06.2023,14.06.2023,Children's Services,Education & Childrens Services - CS Dir,AMZNMKTPLACE,163.96,0,163.96,Consumable Supplies,Miscellaneous retail
Buckinghamshire Council ,30.06.2023,14.06.2023,Communities,Culture & Leisure - Communities Dir,TIMPSON LTD,24.95,0,24.95,Awaiting Coding,Miscellaneous retail
Buckinghamshire Council ,30.06.2023,14.06.2023,Communities,Culture & Leisure - Communities Dir,SAN REMO,9.15,1.83,10.98,Purchase.of Refreshments and Food,Fast food restaurants
Buckinghamshire Council ,30.06.2023,14.06.2023,Communities,Culture & Leisure - Communities Dir,SAN REMO,0.02,0,0.02,Purchase.of Refreshments and Food,Fast food restaurants
Buckinghamshire Council ,30.06.2023,14.06.2023,Children's Services,Education & Childrens Services - CS Dir,AMAZON.CO.UK,14,0,14,Stationery & Office Supplies,Direct sales companies
Buckinghamshire Council ,30.06.2023,14.06.2023,Adults and Health,Health & Wellbeing - Adults & Health Dir,WM MORRISONS STORE,159.4,0,159.4,Subsistence,Grocery stores
Buckinghamshire Council ,30.06.2023,14.06.2023,Adults and Health,Health & Wellbeing - Adults & Health Dir,WM MORRISONS STORE,-12,0,-12,Subsistence,Grocery stores
Buckinghamshire Council ,30.06.2023,14.06.2023,Children's Services,Education & Childrens Services - CS Dir,TAXIPAY,90,0,90,Sec 20/31: Supp for Contact,Taxicabs & limousines
Buckinghamshire Council ,30.06.2023,14.06.2023,Children's Services,Education & Childrens Services - CS Dir,TAXIPAY,90,0,90,Sec 20/31: Supp for Contact,Taxicabs & limousines
Buckinghamshire Council ,30.06.2023,14.06.2023,Children's Services,Education & Childrens Services - CS Dir,WHITECAP LEISURE LIMITED,6,0,6,Activities & General Recreation,Amusement parks & circuses
Buckinghamshire Council ,30.06.2023,14.06.2023,Children's Services,Education & Childrens Services - CS Dir,WYCOMBE RECYCLING LIMITED,295.68,59.14,354.82,Sec 17: Financial Assistance One Off,Utilities
Buckinghamshire Council ,30.06.2023,14.06.2023,Adults and Health,Health & Wellbeing - Adults & Health Dir,BKG*HOTEL AT BOOKING.C,"1,007.40",0,"1,007.40",Other Short Term Support,Travel agencies
Buckinghamshire Council ,30.06.2023,14.06.2023,Communities,Climate Change & Environment - Community,AMZNMKTPLACE,27.72,0,27.72,Equipment,Miscellaneous retail
Buckinghamshire Council ,30.06.2023,14.06.2023,"Planning, Growth & Sustainability",Housing & Homelessness & Regulatory PGS,CHARTERED INSTITUTE OF EN,99,0,99,"Courses, Conference and Seminar Fees",Charitable organisations
Buckinghamshire Council ,30.06.2023,14.06.2023,Children's Services,Education & Childrens Services - CS Dir,BUDGETCARS.UK.COM,15,0,15,Sec 20/31: Transport,Taxicabs & limousines
Buckinghamshire Council ,30.06.2023,14.06.2023,Children's Services,Education & Childrens Services - CS Dir,ASDA  STORES 4396,1.9,0,1.9,General Provisions (Food),Grocery stores
Buckinghamshire Council ,30.06.2023,14.06.2023,Children's Services,Education & Childrens Services - CS Dir,ASDA  STORES 4396,7.4,0,7.4,Equipment for Training and Mats for Ins.,Grocery stores
Buckinghamshire Council ,30.06.2023,14.06.2023,Communities,Transport - Communities Dir,AMZNMKTPLACE,79.99,0,79.99,Stationery & Office Supplies,Miscellaneous retail
Buckinghamshire Council ,30.06.2023,14.06.2023,Children's Services,Education & Childrens Services - CS Dir,AMZNMKTPLACE,11.85,0,11.85,General Repairs & Maintenance,Miscellaneous retail
Buckinghamshire Council ,30.06.2023,14.06.2023,Deputy Chief Executive,Leader - DCE,SAINSBURY S S/MKTS,14.8,0,14.8,Printing & Stationery,Grocery stores
Buckinghamshire Council ,30.06.2023,14.06.2023,Communities,artnerships - Communities,AMZNMktplace,6.99,0,6.99,Awaiting Coding,Miscellaneous retail
Buckinghamshire Council ,30.06.2023,14.06.2023,Deputy Chief Executive,Leader - DCE,FACEBK MR4S9RPPN2,840,0,840,Advertising,Advertising services
Buckinghamshire Council ,30.06.2023,14.06.2023,"Planning, Growth & Sustainability",AH&R - PGS Dir,VITAL PARTS LTD,44.75,0,44.75,Miscellaneous (Other)  Expenses,Misc. general merchandise
Buckinghamshire Council ,30.06.2023,14.06.2023,Children's Services,Education & Childrens Services - CS Dir,WWW.BUCKINGHAMSHIRE.GOV,128.35,0,128.35,Leaving Care  - Financial Assistance,Government services
Buckinghamshire Council ,30.06.2023,14.06.2023,"Planning, Growth & Sustainability",Planning & Regeneration - PGS,ARRIVA THE SHIRES LIMITED,1.3,0,1.3,Staff Travelling Expenses,"Buses, charter & tour"
Buckinghamshire Council ,30.06.2023,14.06.2023,Resources,AH&R - Res Dir,SSPUK-11222961,10.2,0,10.2,Subsistence,Fast food restaurants
Buckinghamshire Council ,30.06.2023,14.06.2023,Children's Services,Education & Childrens Services - CS Dir,AMZNMKTPLACE,10.95,0,10.95,Activities & General Recreation,Miscellaneous retail
Buckinghamshire Council ,30.06.2023,14.06.2023,Communities,Climate Change & Environment - Community,THE OXFORD COLLEGE OF,930,0,930,"Courses, Conference and Seminar Fees",Colleges & universities
Buckinghamshire Council ,30.06.2023,14.06.2023,Communities,Leader - PGS,MAILCHIMP,50.51,0,50.51,Software Support,
Buckinghamshire Council ,30.06.2023,14.06.2023,"Planning, Growth & Sustainability",Housing & Homelessness & Regulatory PGS,WAITROSE 177,100,0,100,Other General Office Expenses,Grocery stores
Buckinghamshire Council ,30.06.2023,14.06.2023,Deputy Chief Executive,Communities - DCE,EURO CAR PARKS LIMITED -,2,0,2,Staff Travelling Expenses,Car parking & garages
Buckinghamshire Council ,30.06.2023,14.06.2023,"Planning, Growth & Sustainability",Climate Change & Environment - PGS,XL DISPLAYS LTD,179.4,0,179.4,Events Expenditure,Misc. general merchandise
Buckinghamshire Council ,30.06.2023,14.06.2023,Adults and Health,Health & Wellbeing - Adults & Health Dir,TRAVELODGE GB0000,140.73,0,140.73,Other Short Term Support,Travelodge
Buckinghamshire Council ,30.06.2023,14.06.2023,Deputy Chief Executive,AH&R- DCE Dir,PAYPAL,560.83,112.17,673,Miscellaneous (Other)  Expenses,Electronics shops
Buckinghamshire Council ,30.06.2023,14.06.2023,Children's Services,Education & Childrens Services - CS Dir,TRAINLINE,30.15,0,30.15,Sec 20/31: Transport,Passenger railways
Buckinghamshire Council ,30.06.2023,14.06.2023,Deputy Chief Executive,AH&R- DCE Dir,PAYPAL,639,0,639,Miscellaneous (Other)  Expenses,Variety stores
Buckinghamshire Council ,30.06.2023,14.06.2023,Deputy Chief Executive,AH&R- DCE Dir,PAYPAL,675.95,0,675.95,Miscellaneous (Other)  Expenses,Variety stores
Buckinghamshire Council ,30.06.2023,13.06.2023,"Planning, Growth & Sustainability",AH&R - PGS Dir,AMZNMKTPLACE,10.8,2.16,12.96,Administrative Equipment & Tools,Miscellaneous retail
Buckinghamshire Council ,30.06.2023,13.06.2023,"Planning, Growth & Sustainability",AH&R - PGS Dir,AMZNMKTPLACE,0.02,0,0.02,Administrative Equipment & Tools,Miscellaneous retail
Buckinghamshire Council ,30.06.2023,13.06.2023,Deputy Chief Executive,AH&R- DCE Dir,OPTIMAL WORKSHOP,205.33,0,205.33,Computer Consumables,Computer software stores
Buckinghamshire Council ,30.06.2023,13.06.2023,Adults and Health,Health & Wellbeing - Adults & Health Dir,SAINSBURYS S/MKTS,23.3,0,23.3,Awaiting Coding,Grocery stores
Buckinghamshire Council ,30.06.2023,13.06.2023,Children's Services,Education & Childrens Services - CS Dir,THE WORKS,3.72,0,3.72,"Exp of School, Club & College Activities",Restaurants
Buckinghamshire Council ,30.06.2023,13.06.2023,Deputy Chief Executive,Communities - DCE,AO RETAIL LIMITED,228.3,45.66,273.96,Other Personal Needs,Household appliance stores
Buckinghamshire Council ,30.06.2023,13.06.2023,Deputy Chief Executive,Communities - DCE,AO RETAIL LIMITED,0.04,0,0.04,Other Personal Needs,Household appliance stores
Buckinghamshire Council ,30.06.2023,13.06.2023,Deputy Chief Executive,Communities - DCE,PAYPAL,-12.95,0,-12.95,Other Personal Needs,Variety stores
Buckinghamshire Council ,30.06.2023,13.06.2023,Children's Services,Education & Childrens Services - CS Dir,MINI SKIPS  SOUTHERN,303,60.6,363.6,Sec 17: Financial Assistance One Off,Utilities
Buckinghamshire Council ,30.06.2023,13.06.2023,Deputy Chief Executive,Communities - DCE,AO RETAIL LIMITED,776.65,155.33,931.98,Other Personal Needs,Household appliance stores
Buckinghamshire Council ,30.06.2023,13.06.2023,Deputy Chief Executive,Communities - DCE,AO RETAIL LIMITED,0.02,0,0.02,Other Personal Needs,Household appliance stores
Buckinghamshire Council ,30.06.2023,13.06.2023,Deputy Chief Executive,Communities - DCE,AO RETAIL LIMITED,315.83,63.17,379,Other Personal Needs,Household appliance stores
Buckinghamshire Council ,30.06.2023,13.06.2023,Deputy Chief Executive,Communities - DCE,AO RETAIL LIMITED,228.3,45.66,273.96,Other Personal Needs,Household appliance stores
Buckinghamshire Council ,30.06.2023,13.06.2023,Deputy Chief Executive,Communities - DCE,AO RETAIL LIMITED,0.04,0,0.04,Other Personal Needs,Household appliance stores
Buckinghamshire Council ,30.06.2023,13.06.2023,"Planning, Growth & Sustainability",Housing & Homelessness & Regulatory PGS,WWW.ICO.ORG.UK,60,0,60,Professional Services (non curriculum) - External,Government services
Buckinghamshire Council ,30.06.2023,13.06.2023,Communities,Climate Change & Environment - Community,DVLA VEHICLE TAX,302.5,0,302.5,Vehicle Insurance,Government services
Buckinghamshire Council ,30.06.2023,13.06.2023,Communities,Climate Change & Environment - Community,DVLA VEHICLE TAX,302.5,0,302.5,Vehicle Insurance,Government services
Buckinghamshire Council ,30.06.2023,13.06.2023,Communities,Climate Change & Environment - Community,DVLA VEHICLE TAX,302.5,0,302.5,Vehicle Insurance,Government services
Buckinghamshire Council ,30.06.2023,13.06.2023,Communities,Climate Change & Environment - Community,DVLA VEHICLE TAX,302.5,0,302.5,Vehicle Insurance,Government services
Buckinghamshire Council ,30.06.2023,13.06.2023,Communities,Climate Change & Environment - Community,DVLA VEHICLE TAX,302.5,0,302.5,Vehicle Insurance,Government services
Buckinghamshire Council ,30.06.2023,13.06.2023,"Planning, Growth & Sustainability",AH&R - PGS Dir,AMAZON.CO.UK,33,0,33,Protective Clothing & Uniforms,Direct sales companies
Buckinghamshire Council ,30.06.2023,13.06.2023,"Planning, Growth & Sustainability",Housing & Homelessness & Regulatory PGS,LAND REGISTRY ECOM CCC,3,0,3,Homelessness,Government services
Buckinghamshire Council ,30.06.2023,13.06.2023,Children's Services,Education & Childrens Services - CS Dir,EB *COMBATING CHILD SE,-79.64,0,-79.64,"Courses, Conference and Seminar Fees",Misc business services
Buckinghamshire Council ,30.06.2023,13.06.2023,Adults and Health,Health & Wellbeing - Adults & Health Dir,AMZNMKTPLACE,23.95,0,23.95,Health & Safety Supplies & Services,Miscellaneous retail
Buckinghamshire Council ,30.06.2023,13.06.2023,Adults and Health,Health & Wellbeing - Adults & Health Dir,TESCO STORES 5135,208.62,0,208.62,General Provisions (Food),Grocery stores
Buckinghamshire Council ,30.06.2023,13.06.2023,Communities,artnerships - Communities,MILTON KEYNES T/O,58,0,58,Miscellaneous (Other)  Expenses,Passenger railways
Buckinghamshire Council ,30.06.2023,13.06.2023,Communities,artnerships - Communities,WEST MIDLAND TRAINS,11.7,0,11.7,Miscellaneous (Other)  Expenses,Car parking & garages
Buckinghamshire Council ,30.06.2023,13.06.2023,Adults and Health,Health & Wellbeing - Adults & Health Dir,SAINSBURYS S/MKTS,20.55,0,20.55,General Provisions (Food),Grocery stores
Buckinghamshire Council ,30.06.2023,13.06.2023,Children's Services,Education & Childrens Services - CS Dir,OFSTED INTERNET,"3,742.00",0,"3,742.00",Supply of consultancy services,Government services
Buckinghamshire Council ,30.06.2023,13.06.2023,Resources,AH&R - Res Dir,TRAINLINE,46.03,0,46.03,Staff Travelling Expenses,Passenger railways
Buckinghamshire Council ,30.06.2023,13.06.2023,Children's Services,Education & Childrens Services - CS Dir,AMAZON.CO.UK,42,0,42,Stationery & Office Supplies,Direct sales companies
Buckinghamshire Council ,30.06.2023,13.06.2023,"Planning, Growth & Sustainability",Planning & Regeneration - PGS,AMAZON.CO.UK,14.99,0,14.99,Stationery & Office Supplies,Direct sales companies
Buckinghamshire Council ,30.06.2023,13.06.2023,Communities,Culture & Leisure - Communities Dir,SAINSBURYS S/MKTS,31.27,0,31.27,Purchase.of Refreshments and Food,Grocery stores
Buckinghamshire Council ,30.06.2023,13.06.2023,Communities,Transport - Communities Dir,SP SIGNTRADESUPPLIES,76.33,0,76.33,Area Teams and Materials,Construction materials
Buckinghamshire Council ,30.06.2023,13.06.2023,Deputy Chief Executive,AH&R- DCE Dir,SOFTWARE-UC.COM,174.98,0,174.98,Computer Software Licences & Purchase,Computer software stores
Buckinghamshire Council ,30.06.2023,13.06.2023,Children's Services,Education & Childrens Services - CS Dir,PAYPAL,25,0,25,"Books, Records, Films & Oth Publications",Medical & health services
Buckinghamshire Council ,30.06.2023,13.06.2023,Children's Services,Education & Childrens Services - CS Dir,MYSTERIES IN TIME LTD,107.4,0,107.4,"Books, Records, Films & Oth Publications",Misc. general merchandise
Buckinghamshire Council ,30.06.2023,13.06.2023,Deputy Chief Executive,Communities - DCE,MARKS&SPENCER PLC SACA,34.18,0,34.18,General Provisions (Food),Grocery stores
Buckinghamshire Council ,30.06.2023,13.06.2023,Deputy Chief Executive,Communities - DCE,SAINSBURYS S/MKTS,89.5,0,89.5,General Provisions (Food),Grocery stores
Buckinghamshire Council ,30.06.2023,13.06.2023,Children's Services,Education & Childrens Services - CS Dir,DESSERT GUY,12,0,12,Subsistence,Restaurants
Buckinghamshire Council ,30.06.2023,13.06.2023,Children's Services,Education & Childrens Services - CS Dir,SPLASH CAFE,5,0,5,Subsistence,Restaurants
Buckinghamshire Council ,30.06.2023,13.06.2023,Children's Services,Education & Childrens Services - CS Dir,SPLASH CAFE,4,0,4,Subsistence,Restaurants
Buckinghamshire Council ,30.06.2023,13.06.2023,Children's Services,Education & Childrens Services - CS Dir,SPLASH CAFE,5,0,5,Subsistence,Restaurants
Buckinghamshire Council ,30.06.2023,13.06.2023,Deputy Chief Executive,Communities - DCE,WINGRAVE STORES & POST OF,18.65,0,18.65,General Provisions (Food),Grocery stores
Buckinghamshire Council ,30.06.2023,13.06.2023,Adults and Health,Health & Wellbeing - Adults & Health Dir,WWW.PAY.UKCRS.COM,150,0,150,Other Short Term Support,Misc business services
Buckinghamshire Council ,30.06.2023,13.06.2023,Communities,Culture & Leisure - Communities Dir,EURO CAR PARTS P,27.9,5.58,33.48,Repair & Maint of Vehicles & Plant,Automotive parts & accessories
Buckinghamshire Council ,30.06.2023,13.06.2023,Communities,Culture & Leisure - Communities Dir,EURO CAR PARTS P,0.01,0,0.01,Repair & Maint of Vehicles & Plant,Automotive parts & accessories
Buckinghamshire Council ,30.06.2023,13.06.2023,Children's Services,Education & Childrens Services - CS Dir,NEALES TAXIS LTD,520,0,520,Sec 20/31: Transport,Taxicabs & limousines
Buckinghamshire Council ,30.06.2023,13.06.2023,Children's Services,Education & Childrens Services - CS Dir,NEALES TAXIS LTD,"1,000.00",0,"1,000.00",Sec 20/31: Transport,Taxicabs & limousines
Buckinghamshire Council ,30.06.2023,13.06.2023,Children's Services,Education & Childrens Services - CS Dir,NEALES TAXIS LTD,"1,000.00",0,"1,000.00",Sec 20/31: Transport,Taxicabs & limousines
Buckinghamshire Council ,30.06.2023,13.06.2023,Deputy Chief Executive,AH&R- DCE Dir,TAXIPAY,14,0,14,Staff Travelling Expenses,Taxicabs & limousines
Buckinghamshire Council ,30.06.2023,13.06.2023,Children's Services,Education & Childrens Services - CS Dir,WWW.TOWERHOUSEGUEST.CO,66,0,66,"Courses, Conference and Seminar Fees","Hotels, motels & resorts"
Buckinghamshire Council ,30.06.2023,13.06.2023,Deputy Chief Executive,AH&R- DCE Dir,CLOUDFLARE,210.28,0,210.28,Computer Consumables,Computer software stores
Buckinghamshire Council ,30.06.2023,13.06.2023,Resources,AH&R - Res Dir,AMAZON.CO.UK,350,0,350,Miscellaneous (Other)  Expenses,Direct sales companies
Buckinghamshire Council ,30.06.2023,13.06.2023,Children's Services,Education & Childrens Services - CS Dir,WWW.ARGOS.CO.UK,130,0,130,Support for Foster Carers,Department stores
Buckinghamshire Council ,30.06.2023,13.06.2023,Children's Services,Education & Childrens Services - CS Dir,B & Q 1305,41,0,41,Equipment for Training and Mats for Ins.,Home supply warehouse stores
Buckinghamshire Council ,30.06.2023,13.06.2023,Children's Services,Education & Childrens Services - CS Dir,Hobbycraft,7,0,7,Awaiting Coding,Art & craft shops
Buckinghamshire Council ,30.06.2023,13.06.2023,"Planning, Growth & Sustainability",AH&R - PGS Dir,WWW.SCREWFIX.COM,124.99,25,149.99,Cleaning & Domestic Equipment,Timber & building supplies
Buckinghamshire Council ,30.06.2023,13.06.2023,Communities,Culture & Leisure - Communities Dir,WWW.BUCKINGHAMSHIRE.GOV,21,0,21,Administrative Equipment & Tools,Government services
Buckinghamshire Council ,30.06.2023,13.06.2023,Children's Services,Education & Childrens Services - CS Dir,HTTPS://THEOLDFLEECE.B,210,0,210,Subsistence,Fast food restaurants
Buckinghamshire Council ,30.06.2023,13.06.2023,Children's Services,Education & Childrens Services - CS Dir,WWW.ARGOS.CO.UK,136.95,0,136.95,Leaving Care - Grants for Care Leavers,Department stores
Buckinghamshire Council ,30.06.2023,13.06.2023,Children's Services,Education & Childrens Services - CS Dir,WWW.LEEDS.AC.UK,"2,314.62",0,"2,314.62",Leaving Care - Higher Education Supp,Colleges & universities
Buckinghamshire Council ,30.06.2023,13.06.2023,Children's Services,Education & Childrens Services - CS Dir,WWW.ARGOS.CO.UK,142.95,0,142.95,Leaving Care - Grants for Care Leavers,Department stores
Buckinghamshire Council ,30.06.2023,13.06.2023,Children's Services,Education & Childrens Services - CS Dir,WWW.ARGOS.CO.UK,-142.95,0,-142.95,Leaving Care - Grants for Care Leavers,Department stores
Buckinghamshire Council ,30.06.2023,13.06.2023,Communities,ommunities - Trust Accounts,WICKES SLOUGH,15,0,15,General Repairs & Maintenance,Timber & building supplies
Buckinghamshire Council ,30.06.2023,13.06.2023,Communities,ommunities - Trust Accounts,OLYMPIC WORKWEAR,85.55,0,85.55,Protective Clothing & Uniforms,Uniforms & commercial clothing
Buckinghamshire Council ,30.06.2023,13.06.2023,"Planning, Growth & Sustainability",Housing & Homelessness & Regulatory PGS,AMZNMKTPLACE,126.85,0,126.85,Furniture,Miscellaneous retail
Buckinghamshire Council ,30.06.2023,13.06.2023,Resources,AH&R - Res Dir,FACEBK 28KNFP3H82,61,0,61,Permanent Recruitment Costs,Advertising services
Buckinghamshire Council ,30.06.2023,13.06.2023,Resources,AH&R - Res Dir,BICESTER NORTH SSTP,79.1,0,79.1,Staff Travelling Expenses,Passenger railways
Buckinghamshire Council ,30.06.2023,13.06.2023,Resources,AH&R - Res Dir,APCOA PARKING UK,8.7,0,8.7,Staff Travelling Expenses,Car parking & garages
Buckinghamshire Council ,30.06.2023,13.06.2023,Communities,Climate Change & Environment - Community,LIDL GB OAKFIELD ROAD,68,0,68,Purchase.of Refreshments and Food,Grocery stores
Buckinghamshire Council ,30.06.2023,13.06.2023,Communities,Climate Change & Environment - Community,LIDL GB AYLESBURY,41.57,0,41.57,Purchase.of Refreshments and Food,Grocery stores
Buckinghamshire Council ,30.06.2023,13.06.2023,Deputy Chief Executive,AH&R- DCE Dir,SQ *GROUP CARDS,4.79,0,4.79,Stationery & Office Supplies,"Gift, card & novelty shops"
Buckinghamshire Council ,30.06.2023,13.06.2023,Children's Services,Education & Childrens Services - CS Dir,SAINSBURY S S/MKTS,61.65,0,61.65,Leisure Cards for LAC,Grocery stores
Buckinghamshire Council ,30.06.2023,13.06.2023,Communities,ommunities - Trading Accounts,DVLA VEHICLE TAX,165,0,165,Vehicle Taxation Costs,Tax payments
Buckinghamshire Council ,30.06.2023,13.06.2023,Communities,ommunities - Trading Accounts,DVLA VEHICLE TAX,325,0,325,Vehicle Taxation Costs,Tax payments
Buckinghamshire Council ,30.06.2023,13.06.2023,Communities,ommunities - Trading Accounts,DVLA VEHICLE TAX,165,0,165,Vehicle Taxation Costs,Tax payments
Buckinghamshire Council ,30.06.2023,13.06.2023,Children's Services,Education & Childrens Services - CS Dir,A1 TAXI SERVICE,35,7,42,Sec 20/31: Transport,Taxicabs & limousines
Buckinghamshire Council ,30.06.2023,13.06.2023,Children's Services,Education & Childrens Services - CS Dir,NEALES TAXIS LTD,104.15,20.83,124.98,Sec 20/31: Transport,Taxicabs & limousines
Buckinghamshire Council ,30.06.2023,13.06.2023,Children's Services,Education & Childrens Services - CS Dir,NEALES TAXIS LTD,0.02,0,0.02,Sec 20/31: Transport,Taxicabs & limousines
Buckinghamshire Council ,30.06.2023,13.06.2023,Communities,artnerships - Communities,PAYPAL,35,0,35,Miscellaneous (Other)  Expenses,Shoe shops
Buckinghamshire Council ,30.06.2023,13.06.2023,Deputy Chief Executive,AH&R- DCE Dir,PAYPAL,885.79,177.16,"1,062.95",Miscellaneous (Other)  Expenses,Variety stores
Buckinghamshire Council ,30.06.2023,13.06.2023,Deputy Chief Executive,AH&R- DCE Dir,PAYPAL,455.8,91.16,546.96,Miscellaneous (Other)  Expenses,Variety stores
Buckinghamshire Council ,30.06.2023,13.06.2023,Deputy Chief Executive,AH&R- DCE Dir,PAYPAL,0.03,0,0.03,Miscellaneous (Other)  Expenses,Variety stores
Buckinghamshire Council ,30.06.2023,13.06.2023,Deputy Chief Executive,AH&R- DCE Dir,PAYPAL,804.8,160.96,965.76,Miscellaneous (Other)  Expenses,Variety stores
Buckinghamshire Council ,30.06.2023,13.06.2023,Deputy Chief Executive,AH&R- DCE Dir,PAYPAL,0.24,0,0.24,Miscellaneous (Other)  Expenses,Variety stores
Buckinghamshire Council ,30.06.2023,13.06.2023,Deputy Chief Executive,AH&R- DCE Dir,PAYPAL,310.79,62.16,372.95,Miscellaneous (Other)  Expenses,Variety stores
Buckinghamshire Council ,30.06.2023,13.06.2023,Adults and Health,Health & Wellbeing - Adults & Health Dir,ICELAND FOODS,68.65,0,68.65,General Provisions (Food),Grocery stores
Buckinghamshire Council ,30.06.2023,12.06.2023,Adults and Health,Health & Wellbeing - Adults & Health Dir,TESCO SUBSCRIPTION,7.99,0,7.99,Stationery & Office Supplies,Continuous subscriptions
Buckinghamshire Council ,30.06.2023,12.06.2023,"Planning, Growth & Sustainability",Housing & Homelessness & Regulatory PGS,LAND REGISTRY ECOM CCC,3,0,3,Homelessness,Government services
Buckinghamshire Council ,30.06.2023,12.06.2023,Children's Services,Education & Childrens Services - CS Dir,AMZNMKTPLACE,65.99,0,65.99,Leaving Care - Grants for Care Leavers,Miscellaneous retail
Buckinghamshire Council ,30.06.2023,12.06.2023,Children's Services,Education & Childrens Services - CS Dir,TESCO STORES 2038,158.28,0,158.28,General Provisions (Food),Grocery stores
Buckinghamshire Council ,30.06.2023,12.06.2023,Deputy Chief Executive,Communities - DCE,AO RETAIL LIMITED,228.3,45.66,273.96,Other Personal Needs,Household appliance stores
Buckinghamshire Council ,30.06.2023,12.06.2023,Deputy Chief Executive,Communities - DCE,AO RETAIL LIMITED,0.04,0,0.04,Other Personal Needs,Household appliance stores
Buckinghamshire Council ,30.06.2023,12.06.2023,Deputy Chief Executive,Communities - DCE,AO RETAIL LIMITED,544.15,108.83,652.98,Other Personal Needs,Household appliance stores
Buckinghamshire Council ,30.06.2023,12.06.2023,Deputy Chief Executive,Communities - DCE,AO RETAIL LIMITED,0.02,0,0.02,Other Personal Needs,Household appliance stores
Buckinghamshire Council ,30.06.2023,12.06.2023,Deputy Chief Executive,Communities - DCE,AO RETAIL LIMITED,452.5,90.5,543,Other Personal Needs,Household appliance stores
Buckinghamshire Council ,30.06.2023,12.06.2023,Deputy Chief Executive,Communities - DCE,WWW.ARGOS.CO.UK,224.1,44.82,268.92,Other Personal Needs,Department stores
Buckinghamshire Council ,30.06.2023,12.06.2023,Deputy Chief Executive,Communities - DCE,WWW.ARGOS.CO.UK,0.03,0,0.03,Other Personal Needs,Department stores
Buckinghamshire Council ,30.06.2023,12.06.2023,Deputy Chief Executive,Communities - DCE,AO RETAIL LIMITED,452.45,90.49,542.94,Other Personal Needs,Household appliance stores
Buckinghamshire Council ,30.06.2023,12.06.2023,Deputy Chief Executive,Communities - DCE,AO RETAIL LIMITED,0.06,0,0.06,Other Personal Needs,Household appliance stores
Buckinghamshire Council ,30.06.2023,12.06.2023,Children's Services,Education & Childrens Services - CS Dir,WWW.ANNARBOR.CO.UK,195,0,195,Training Materials,Catalogue sales
Buckinghamshire Council ,30.06.2023,12.06.2023,Children's Services,Education & Childrens Services - CS Dir,WWW.ANNARBOR.CO.UK,-195,0,-195,Stationery & Office Supplies,Catalogue sales
Buckinghamshire Council ,30.06.2023,12.06.2023,Communities,Climate Change & Environment - Community,DVLA VEHICLE TAX,302.5,0,302.5,Vehicle Insurance,Government services
Buckinghamshire Council ,30.06.2023,12.06.2023,Communities,Climate Change & Environment - Community,DVLA VEHICLE TAX,322.5,0,322.5,Vehicle Insurance,Government services
Buckinghamshire Council ,30.06.2023,12.06.2023,Communities,Climate Change & Environment - Community,DVLA VEHICLE TAX,322.5,0,322.5,Vehicle Insurance,Government services
Buckinghamshire Council ,30.06.2023,12.06.2023,Communities,Climate Change & Environment - Community,DVLA VEHICLE TAX,167.5,0,167.5,Vehicle Insurance,Government services
Buckinghamshire Council ,30.06.2023,12.06.2023,Communities,Climate Change & Environment - Community,DVLA VEHICLE TAX,302.5,0,302.5,Vehicle Insurance,Government services
Buckinghamshire Council ,30.06.2023,12.06.2023,Children's Services,Education & Childrens Services - CS Dir,TESCO GIFT CARD,50,0,50,Sec 17: Financial Assistance One Off,Grocery stores
Buckinghamshire Council ,30.06.2023,12.06.2023,Communities,Housing & Homelessness & Regulatory Comm,WWW.MDMCREATIVE.COM,389.48,0,389.48,Printing & Stationery,"Programming, data processing & system design"
Buckinghamshire Council ,30.06.2023,12.06.2023,Resources,AH&R - Res Dir,AMAZON.CO.UK,250,0,250,Stationery & Office Supplies,Direct sales companies
Buckinghamshire Council ,30.06.2023,12.06.2023,Adults and Health,Health & Wellbeing - Adults & Health Dir,SAFETYSUPPL,26.3,0,26.3,Health & Safety Supplies & Services,Department stores
Buckinghamshire Council ,30.06.2023,12.06.2023,Adults and Health,Health & Wellbeing - Adults & Health Dir,SAINSBURYS S/MKTS,11.3,0,11.3,General Provisions (Food),Grocery stores
Buckinghamshire Council ,30.06.2023,12.06.2023,Communities,artnerships - Communities,YOUR CAF  IN THE PARK,6.1,0,6.1,Miscellaneous (Other)  Expenses,Fast food restaurants
Buckinghamshire Council ,30.06.2023,12.06.2023,"Planning, Growth & Sustainability",Housing & Homelessness & Regulatory PGS,VIVA ACCESS LTD,161.4,0,161.4,"Courses, Conference and Seminar Fees",Schools
Buckinghamshire Council ,30.06.2023,12.06.2023,Communities,Housing & Homelessness & Regulatory Comm,BOOKER LTD - 38534944,310.88,62.18,531,Vending Machines Supplies,Grocery stores
Buckinghamshire Council ,30.06.2023,12.06.2023,Communities,Housing & Homelessness & Regulatory Comm,BOOKER LTD - 38534944,157.94,0,157.94,Purchase.of Refreshments and Food,Grocery stores
Buckinghamshire Council ,30.06.2023,12.06.2023,Children's Services,Education & Childrens Services - CS Dir,MAILCHIMP,216.53,0,216.53,Service Development,
Buckinghamshire Council ,30.06.2023,12.06.2023,"Planning, Growth & Sustainability",Leader - PGS,THE KINGS HEAD,487,0,487,Miscellaneous (Other)  Expenses,Restaurants
Buckinghamshire Council ,30.06.2023,12.06.2023,Children's Services,Education & Childrens Services - CS Dir,HOBBYCRAFT TRADING LIMITE,90.09,0,90.09,Educational Equipment,Art & craft shops
Buckinghamshire Council ,30.06.2023,12.06.2023,Deputy Chief Executive,AH&R- DCE Dir,HOBBYCRAFT,5,0,5,Events Expenditure,Art & craft shops
Buckinghamshire Council ,30.06.2023,12.06.2023,Deputy Chief Executive,Communities - DCE,SAINSBURYS S/MKTS,10.5,0,10.5,General Provisions (Food),Grocery stores
Buckinghamshire Council ,30.06.2023,12.06.2023,Adults and Health,Health & Wellbeing - Adults & Health Dir,CARDS DIRECT AYLESBURY,0.89,0,0.89,Miscellaneous (Other)  Expenses,Stationery & office supplies
Buckinghamshire Council ,30.06.2023,12.06.2023,Children's Services,Education & Childrens Services - CS Dir,TAXIPAY,140,0,140,Sec 20/31: Transport,Taxicabs & limousines
Buckinghamshire Council ,30.06.2023,12.06.2023,"Planning, Growth & Sustainability",Partnership Climate Change & Envir - PGS,DROPBOX,95.88,0,95.88,Computer Support Services,Computer network information services
Buckinghamshire Council ,30.06.2023,12.06.2023,Deputy Chief Executive,AH&R- DCE Dir,CABCO SLOUGH TAXIS,18,0,18,Staff Travelling Expenses,Taxicabs & limousines
Buckinghamshire Council ,30.06.2023,12.06.2023,Children's Services,Education & Childrens Services - CS Dir,SQ *REED.CO.UK,389.99,0,389.99,Furniture,Schools
Buckinghamshire Council ,30.06.2023,12.06.2023,Children's Services,Education & Childrens Services - CS Dir,WM MORRISONS STORE,12.53,0,12.53,Activities & General Recreation,Grocery stores
Buckinghamshire Council ,30.06.2023,12.06.2023,Children's Services,Education & Childrens Services - CS Dir,ASDA GEORGE COM LEEDS,26.5,0,26.5,Sec 17: Financial Assistance One Off,Grocery stores
Buckinghamshire Council ,30.06.2023,12.06.2023,Deputy Chief Executive,Leader - DCE,AMAZON.CO.UK,250,0,250,Stationery & Office Supplies,Direct sales companies
Buckinghamshire Council ,30.06.2023,12.06.2023,Resources,AH&R - Res Dir,C2E856400713G UKVI,"1,199.00",0,"1,199.00",Professional Services (non curriculum) - External,Government services
Buckinghamshire Council ,30.06.2023,12.06.2023,Children's Services,Education & Childrens Services - CS Dir,PORTOBELLO MOTO,185,0,185,Leaving Care - Higher Education Supp,Estate Agents & Property Management
Buckinghamshire Council ,30.06.2023,12.06.2023,Children's Services,Education & Childrens Services - CS Dir,TRAINLINE,59.27,0,59.27,Leaving Care  - Financial Assistance,Passenger railways
Buckinghamshire Council ,30.06.2023,12.06.2023,Children's Services,Education & Childrens Services - CS Dir,EASYJET,112.96,0,112.96,Staff Travelling Expenses,Easyjet
Buckinghamshire Council ,30.06.2023,12.06.2023,"Planning, Growth & Sustainability",Housing & Homelessness & Regulatory PGS,IKEA LTD SHOP ONLINE,885,0,885,Furniture,Furniture & home furnishing
Buckinghamshire Council ,30.06.2023,12.06.2023,Communities,Culture & Leisure - Communities Dir,AMAZON.CO.UK,24.99,0,24.99,Stationery & Office Supplies,Direct sales companies
Buckinghamshire Council ,30.06.2023,12.06.2023,Adults and Health,Health & Wellbeing - Adults & Health Dir,TESCO STORES 5135,105.33,0,105.33,General Provisions (Food),Grocery stores
Buckinghamshire Council ,30.06.2023,12.06.2023,Children's Services,Education & Childrens Services - CS Dir,ARRIVA UK BUS,13,0,13,Staff Travelling Expenses,"Buses, charter & tour"
Buckinghamshire Council ,30.06.2023,12.06.2023,Communities,Transport - Communities Dir,AMZ*Building blocks ba,-126.98,0,-126.98,Awaiting Coding,Miscellaneous retail
Buckinghamshire Council ,30.06.2023,12.06.2023,Communities,Housing & Homelessness & Regulatory Comm,AMZNMKTPLACE,111.86,0,111.86,Furniture Fittings & IT,Miscellaneous retail
Buckinghamshire Council ,30.06.2023,12.06.2023,Communities,artnerships - Communities,BT PLC BUSINESS MOTO BPAY,64,12.8,76.8,Telephones,Phone services
Buckinghamshire Council ,30.06.2023,12.06.2023,Communities,artnerships - Communities,BT PLC BUSINESS MOTO BPAY,0.01,0,0.01,Telephones,Phone services
Buckinghamshire Council ,30.06.2023,12.06.2023,Children's Services,Education & Childrens Services - CS Dir,NEALE'S TAXIS LIMI,6,0,6,Sec 17: Transport,Taxicabs & limousines
Buckinghamshire Council ,30.06.2023,12.06.2023,Resources,AH&R - Res Dir,VOUCHER EXPRESS,250,0,250,Miscellaneous (Other)  Expenses,Misc business services
Buckinghamshire Council ,30.06.2023,12.06.2023,Children's Services,Education & Childrens Services - CS Dir,PREMIER INN,86,0,86,"Courses, Conference and Seminar Fees",Premier Inn
Buckinghamshire Council ,30.06.2023,12.06.2023,Children's Services,Education & Childrens Services - CS Dir,ARRIVA UK BUS,7.8,0,7.8,Staff Travelling Expenses,"Buses, charter & tour"
Buckinghamshire Council ,30.06.2023,11.06.2023,Deputy Chief Executive,Communities - DCE,PAYPAL,-320,0,-320,Other Personal Needs,Variety stores
Buckinghamshire Council ,30.06.2023,11.06.2023,Children's Services,Education & Childrens Services - CS Dir,AMAZON.CO.UK,5.99,0,5.99,Other Personal Needs,Direct sales companies
Buckinghamshire Council ,30.06.2023,11.06.2023,Resources,AH&R - Res Dir,AMZ*GOLF SHOP ONLINE,250,0,250,Miscellaneous (Other)  Expenses,Sports & riding apparel shops
Buckinghamshire Council ,30.06.2023,11.06.2023,Children's Services,Education & Childrens Services - CS Dir,LINKEDIN ADS 9129757084,87.05,0,87.05,Advertising,Advertising services
Buckinghamshire Council ,30.06.2023,11.06.2023,Children's Services,Education & Childrens Services - CS Dir,AMZNMKTPLACE,36.24,0,36.24,Leaving Care - Grants for Care Leavers,Miscellaneous retail
Buckinghamshire Council ,30.06.2023,11.06.2023,Communities,ommunities - Trust Accounts,COSTCO WHOLESALE #102,64.95,0,64.95,Stationery & Office Supplies,Buying & shopping services/clubs
Buckinghamshire Council ,30.06.2023,11.06.2023,Communities,Culture & Leisure - Communities Dir,AMAZON.CO.UK,24.99,0,24.99,Stationery & Office Supplies,Direct sales companies
Buckinghamshire Council ,30.06.2023,11.06.2023,Deputy Chief Executive,AH&R- DCE Dir,SLACK T181RTHAL,8.4,0,8.4,Computer Consumables,Computer software stores
Buckinghamshire Council ,30.06.2023,11.06.2023,Resources,AH&R - Res Dir,AMZNMKTPLACE,20.98,0,20.98,Specialist Equipment,Miscellaneous retail
Buckinghamshire Council ,30.06.2023,10.06.2023,Resources,AH&R - Res Dir,HOBBYCRAFT,28.9,0,28.9,Stationery & Office Supplies,Art & craft shops
Buckinghamshire Council ,30.06.2023,10.06.2023,Deputy Chief Executive,Communities - DCE,AO RETAIL LIMITED,-289,0,-289,Other Personal Needs,Household appliance stores
Buckinghamshire Council ,30.06.2023,10.06.2023,Adults and Health,Health & Wellbeing - Adults & Health Dir,ARGOS MAIDENHEAD,20,0,20,Health & Safety Supplies & Services,Discount stores
Buckinghamshire Council ,30.06.2023,10.06.2023,Deputy Chief Executive,Communities - DCE,RINGGO PARKING,1.65,0,1.65,Staff Travelling Expenses,Car parking & garages
Buckinghamshire Council ,30.06.2023,10.06.2023,Communities,Transport - Communities Dir,AMZNMKTPLACE,382.74,0,382.74,Miscellaneous (Other)  Expenses,Miscellaneous retail
Buckinghamshire Council ,30.06.2023,10.06.2023,Children's Services,Education & Childrens Services - CS Dir,AMAZON PRIME,8.99,0,8.99,Miscellaneous (Other)  Expenses,Continuous subscriptions
Buckinghamshire Council ,30.06.2023,10.06.2023,Children's Services,Education & Childrens Services - CS Dir,WWW.ARGOS.CO.UK,40,0,40,Other Equipment and Materials,Department stores
Buckinghamshire Council ,30.06.2023,10.06.2023,Children's Services,Education & Childrens Services - CS Dir,ASDA GROCERIES ONLINE,55.25,0,55.25,General Provisions (Food),Grocery stores
Buckinghamshire Council ,30.06.2023,10.06.2023,Children's Services,Education & Childrens Services - CS Dir,ASDA GROCERIES ONLINE,-1.75,0,-1.75,General Provisions (Food),Grocery stores
Buckinghamshire Council ,30.06.2023,10.06.2023,Adults and Health,Health & Wellbeing - Adults & Health Dir,TRAVELODGE GB0000,"-1,083.93",0,"-1,083.93",Other Short Term Support,Travelodge
Buckinghamshire Council ,30.06.2023,10.06.2023,Communities,Climate Change & Environment - Community,THOMSON REUTERS UK LTD,80,16,96,Maintenance of Grounds,Professional services
Buckinghamshire Council ,30.06.2023,10.06.2023,Children's Services,Education & Childrens Services - CS Dir,AMZNMKTPLACE,24.46,0,24.46,Support for Foster Carers,Miscellaneous retail
Buckinghamshire Council ,30.06.2023,10.06.2023,Children's Services,Education & Childrens Services - CS Dir,AMZNMKTPLACE,24.46,0,24.46,Support for Foster Carers,Miscellaneous retail
Buckinghamshire Council ,30.06.2023,10.06.2023,Deputy Chief Executive,Leader - DCE,ADDISON LEE EXTRA,5.94,0,5.94,Staff Travelling Expenses,Taxicabs & limousines
Buckinghamshire Council ,30.06.2023,10.06.2023,Resources,AH&R - Res Dir,LINKEDIN ADS 9127806094,71.82,0,71.82,Permanent Recruitment Costs,Advertising services
Buckinghamshire Council ,30.06.2023,09.06.2023,Children's Services,Education & Childrens Services - CS Dir,AMZNMKTPLACE,29.99,0,29.99,Leaving Care - Grants for Care Leavers,Miscellaneous retail
Buckinghamshire Council ,30.06.2023,09.06.2023,Adults and Health,Health & Wellbeing - Adults & Health Dir,AMZNMKTPLACE,47.87,0,47.87,Printing & Stationery,Miscellaneous retail
Buckinghamshire Council ,30.06.2023,09.06.2023,Children's Services,Education & Childrens Services - CS Dir,AMZNMKTPLACE,145.93,0,145.93,Consumable Supplies,Miscellaneous retail
Buckinghamshire Council ,30.06.2023,09.06.2023,Children's Services,Education & Childrens Services - CS Dir,THE OXFORDSHIRE TAXI COMP,320,0,320,Sec 17: Financial Assistance One Off,Taxicabs & limousines
Buckinghamshire Council ,30.06.2023,09.06.2023,Children's Services,Education & Childrens Services - CS Dir,COSTA COFFEE CHESHAM,6.15,0,6.15,"Exp of School, Club & College Activities",Fast food restaurants
Buckinghamshire Council ,30.06.2023,09.06.2023,Deputy Chief Executive,Communities - DCE,AO RETAIL LIMITED,349.16,69.84,419,Other Personal Needs,Household appliance stores
Buckinghamshire Council ,30.06.2023,09.06.2023,Deputy Chief Executive,Communities - DCE,AO RETAIL LIMITED,315.83,63.17,379,Other Personal Needs,Household appliance stores
Buckinghamshire Council ,30.06.2023,09.06.2023,Deputy Chief Executive,Communities - DCE,WWW.ARGOS.CO.UK,277.45,55.49,332.94,Other Personal Needs,Department stores
Buckinghamshire Council ,30.06.2023,09.06.2023,Deputy Chief Executive,Communities - DCE,WWW.ARGOS.CO.UK,0.01,0,0.01,Other Personal Needs,Department stores
Buckinghamshire Council ,30.06.2023,09.06.2023,Deputy Chief Executive,Communities - DCE,AO RETAIL LIMITED,452.45,90.49,542.94,Other Personal Needs,Household appliance stores
Buckinghamshire Council ,30.06.2023,09.06.2023,Deputy Chief Executive,Communities - DCE,AO RETAIL LIMITED,0.06,0,0.06,Other Personal Needs,Household appliance stores
Buckinghamshire Council ,30.06.2023,09.06.2023,Children's Services,Education & Childrens Services - CS Dir,WWW.ARGOS.CO.UK,60,0,60,Leaving Care  - Financial Assistance,Department stores
Buckinghamshire Council ,30.06.2023,09.06.2023,Children's Services,Education & Childrens Services - CS Dir,BKG*HOTEL AT BOOKING.C,81,0,81,Other Employees Expenses,Travel agencies
Buckinghamshire Council ,30.06.2023,09.06.2023,"Planning, Growth & Sustainability",Climate Change & Environment - PGS,HTTPS://SCRIBE.HOW/B,24.05,0,24.05,Computer Consumables,Computer software stores
Buckinghamshire Council ,30.06.2023,09.06.2023,Deputy Chief Executive,Communities - DCE,TESCO STORES 2564,7.05,0,7.05,Marketing,Grocery stores
Buckinghamshire Council ,30.06.2023,09.06.2023,Children's Services,Education & Childrens Services - CS Dir,BKG*HOTEL AT BOOKING.C,88,0,88,Sec 20/31: Supp for Contact,Travel agencies
Buckinghamshire Council ,30.06.2023,09.06.2023,Children's Services,Education & Childrens Services - CS Dir,TRAINLINE.COM,100.21,0,100.21,Sec 20/31: Supp for Contact,Passenger railways
Buckinghamshire Council ,30.06.2023,09.06.2023,Children's Services,Education & Childrens Services - CS Dir,TRAINLINE,241.99,0,241.99,Sec 20/31: Supp for Contact,Passenger railways
Buckinghamshire Council ,30.06.2023,09.06.2023,Deputy Chief Executive,AH&R- DCE Dir,CORUS HOTEL HYDE PARK,175,0,175,Members' Allowances - Travel & Subsist,"Hotels, motels & resorts"
Buckinghamshire Council ,30.06.2023,09.06.2023,Deputy Chief Executive,AH&R- DCE Dir,CORUS HOTEL HYDE PARK,175,0,175,Members' Allowances - Travel & Subsist,"Hotels, motels & resorts"
Buckinghamshire Council ,30.06.2023,09.06.2023,Deputy Chief Executive,AH&R- DCE Dir,CORUS HOTEL HYDE PARK,164,0,164,Members' Allowances - Travel & Subsist,"Hotels, motels & resorts"
Buckinghamshire Council ,30.06.2023,09.06.2023,"Planning, Growth & Sustainability",AH&R - PGS Dir,ISAAC LORD LIMITED,4.81,0,4.81,Other Equipment and Materials,Hardware stores
Buckinghamshire Council ,30.06.2023,09.06.2023,Deputy Chief Executive,Communities - DCE,AO RETAIL LIMITED,240.83,48.17,289,Other Personal Needs,Household appliance stores
Buckinghamshire Council ,30.06.2023,09.06.2023,Children's Services,Education & Childrens Services - CS Dir,UK CARS (HIGH WYCOMBE) LT,"1,200.00",0,"1,200.00",Sec 20/31: Transport,Taxicabs & limousines
Buckinghamshire Council ,30.06.2023,09.06.2023,Communities,Culture & Leisure - Communities Dir,WAITROSE,60.4,0,60.4,Subsistence,Grocery stores
Buckinghamshire Council ,30.06.2023,09.06.2023,Communities,Culture & Leisure - Communities Dir,WAITROSE,2.3,0,2.3,Subsistence,Grocery stores
Buckinghamshire Council ,30.06.2023,09.06.2023,"Planning, Growth & Sustainability",AH&R - PGS Dir,BOOKER LTD - 38534944,124.34,24.87,149.21,Vending Machines Supplies,Grocery stores
Buckinghamshire Council ,30.06.2023,09.06.2023,"Planning, Growth & Sustainability",AH&R - PGS Dir,LOCK & KEY CENTRE,14,0,14,Community Premises Expenditure,Shoe repairs
Buckinghamshire Council ,30.06.2023,09.06.2023,Communities,artnerships - Communities,ADOBE CREATIVE CLOUD,43.32,0,43.32,Advertising,Computer software stores
Buckinghamshire Council ,30.06.2023,09.06.2023,Communities,artnerships - Communities,MAILCHIMP,11.14,0,11.14,Advertising,
Buckinghamshire Council ,30.06.2023,09.06.2023,Children's Services,Education & Childrens Services - CS Dir,MAILCHIMP,48.56,0,48.56,Computer Consumables,
Buckinghamshire Council ,30.06.2023,09.06.2023,Children's Services,Education & Childrens Services - CS Dir,AMZNMKTPLACE,59.96,0,59.96,Stationery & Office Supplies,Miscellaneous retail
Buckinghamshire Council ,30.06.2023,09.06.2023,Children's Services,Education & Childrens Services - CS Dir,PEARSON EDUCATION LTD.,24.19,0,24.19,"Books, Records, Films & Oth Publications",Schools
Buckinghamshire Council ,30.06.2023,09.06.2023,Children's Services,Education & Childrens Services - CS Dir,AMZNMKTPLACE,22.49,0,22.49,Miscellaneous (Other)  Expenses,Miscellaneous retail
Buckinghamshire Council ,30.06.2023,09.06.2023,Children's Services,Education & Childrens Services - CS Dir,AMZNMKTPLACE,78,0,78,Cleaning & Domestic Equipment,Miscellaneous retail
Buckinghamshire Council ,30.06.2023,09.06.2023,Children's Services,Education & Childrens Services - CS Dir,SMYTHS AYLESBURY,21.78,0,21.78,Other Equipment and Materials,"Hobby, toy & game shops"
Buckinghamshire Council ,30.06.2023,09.06.2023,Children's Services,Education & Childrens Services - CS Dir,THE RANGE,1,0,1,Other Equipment and Materials,Department stores
Buckinghamshire Council ,30.06.2023,09.06.2023,"Planning, Growth & Sustainability",Partnership Climate Change & Envir - PGS,CANVA* 03811-20431413,99.99,0,99.99,Graphics Materials,"Commercial photo, art & graphic"
Buckinghamshire Council ,30.06.2023,09.06.2023,Communities,Climate Change & Environment - Community,CHILTERN - MARYLEBONE,19.9,0,19.9,Car Allowances Mileage & Lump Sum,Passenger railways
